PublisherLabel,PublisherURI,"Body name","Body","Service area","Service division","Responsible unit","Expenses type","Date","Transaction","Amount","Supplier name"
"Bracknell Forest Council","http://opendatacommunities.org/id/unitary-authority/bracknell-forest","Bracknell Forest Council","00MA","Management and Support Services - CYPL","Strategy, Resources and Early Interventions","Human Resources","Recruitment Expenses",28/11/2013 00:00:00,"6534889",750,"CAPITA RESOURCING LTD"
"Bracknell Forest Council","http://opendatacommunities.org/id/unitary-authority/bracknell-forest","Bracknell Forest Council","00MA","Management and Support Services - CYPL","Strategy, Resources and Early Interventions","Human Resources","Recruitment Expenses",27/11/2013 00:00:00,"6534890",891,"CAPITA RESOURCING LTD"
"Bracknell Forest Council","http://opendatacommunities.org/id/unitary-authority/bracknell-forest","Bracknell Forest Council","00MA","Management and Support Services - CYPL","Strategy, Resources and Early Interventions","Human Resources","Recruitment Expenses",29/11/2013 00:00:00,"6534915",5000,"CAPITA RESOURCING LTD"
"Bracknell Forest Council","http://opendatacommunities.org/id/unitary-authority/bracknell-forest","Bracknell Forest Council","00MA","Older People (Aged 65 or Over)","Home Care","Homecare EMI","Contracted Services",10/12/2013 00:00:00,"30232302",136.8,"CARE 1ST LTD"
"Bracknell Forest Council","http://opendatacommunities.org/id/unitary-authority/bracknell-forest","Bracknell Forest Council","00MA","Older People (Aged 65 or Over)","Home Care","Homecare EMI","Contracted Services",10/12/2013 00:00:00,"30232302",106.4,"CARE 1ST LTD"
"Bracknell Forest Council","http://opendatacommunities.org/id/unitary-authority/bracknell-forest","Bracknell Forest Council","00MA","Physical Disability/Sensory Impairment","Homecare","Home Care-Phys Disab","Contracted Services",10/12/2013 00:00:00,"30232302",239.4,"CARE 1ST LTD"
"Bracknell Forest Council","http://opendatacommunities.org/id/unitary-authority/bracknell-forest","Bracknell Forest Council","00MA","Older People (Aged 65 or Over)","Home Care","Home Care-Elderly","Contracted Services",10/12/2013 00:00:00,"30232302",965.2,"CARE 1ST LTD"
"Bracknell Forest Council","http://opendatacommunities.org/id/unitary-authority/bracknell-forest","Bracknell Forest Council","00MA","Older People (Aged 65 or Over)","Home Care","Home Care-Elderly","Contracted Services",10/12/2013 00:00:00,"30232302",638.4,"CARE 1ST LTD"
"Bracknell Forest Council","http://opendatacommunities.org/id/unitary-authority/bracknell-forest","Bracknell Forest Council","00MA","Older People (Aged 65 or Over)","Home Care","Home Care-Elderly","Contracted Services",10/12/2013 00:00:00,"30232302",1094.4,"CARE 1ST LTD"
"Bracknell Forest Council","http://opendatacommunities.org/id/unitary-authority/bracknell-forest","Bracknell Forest Council","00MA","Older People (Aged 65 or Over)","Home Care","Home Care-Elderly","Contracted Services",10/12/2013 00:00:00,"30232302",212.8,"CARE 1ST LTD"
"Bracknell Forest Council","http://opendatacommunities.org/id/unitary-authority/bracknell-forest","Bracknell Forest Council","00MA","Older People (Aged 65 or Over)","Home Care","Homecare PD 65 and Over","Contracted Services",10/12/2013 00:00:00,"30232302",440.8,"CARE 1ST LTD"
"Bracknell Forest Council","http://opendatacommunities.org/id/unitary-authority/bracknell-forest","Bracknell Forest Council","00MA","Older People (Aged 65 or Over)","Home Care","Home Care-Elderly","Contracted Services",10/12/2013 00:00:00,"30232302",425.6,"CARE 1ST LTD"
"Bracknell Forest Council","http://opendatacommunities.org/id/unitary-authority/bracknell-forest","Bracknell Forest Council","00MA","Physical Disability/Sensory Impairment","Homecare","Home Care-Phys Disab","Contracted Services",10/12/2013 00:00:00,"30232302",334.4,"CARE 1ST LTD"
"Bracknell Forest Council","http://opendatacommunities.org/id/unitary-authority/bracknell-forest","Bracknell Forest Council","00MA","Older People (Aged 65 or Over)","Home Care","Home Care-Elderly","Contracted Services",10/12/2013 00:00:00,"30232302",870.2,"CARE 1ST LTD"
"Bracknell Forest Council","http://opendatacommunities.org/id/unitary-authority/bracknell-forest","Bracknell Forest Council","00MA","Older People (Aged 65 or Over)","Home Care","Home Care-Elderly","Contracted Services",10/12/2013 00:00:00,"30232302",2717,"CARE 1ST LTD"
"Bracknell Forest Council","http://opendatacommunities.org/id/unitary-authority/bracknell-forest","Bracknell Forest Council","00MA","Older People (Aged 65 or Over)","Home Care","Home Care-Elderly","Contracted Services",10/12/2013 00:00:00,"30232302",425.6,"CARE 1ST LTD"
"Bracknell Forest Council","http://opendatacommunities.org/id/unitary-authority/bracknell-forest","Bracknell Forest Council","00MA","Older People (Aged 65 or Over)","Home Care","Home Care-Elderly","Contracted Services",10/12/2013 00:00:00,"30232302",3458,"CARE 1ST LTD"
"Bracknell Forest Council","http://opendatacommunities.org/id/unitary-authority/bracknell-forest","Bracknell Forest Council","00MA","Older People (Aged 65 or Over)","Home Care","Home Care-Elderly","Contracted Services",10/12/2013 00:00:00,"30232302",2128,"CARE 1ST LTD"
"Bracknell Forest Council","http://opendatacommunities.org/id/unitary-authority/bracknell-forest","Bracknell Forest Council","00MA","Older People (Aged 65 or Over)","Home Care","Homecare EMI","Contracted Services",10/12/2013 00:00:00,"30232302",1911.8,"CARE IN YOUR HOME"
"Bracknell Forest Council","http://opendatacommunities.org/id/unitary-authority/bracknell-forest","Bracknell Forest Council","00MA","Learning Disability (under 65)","Homecare","Home Care Learning Disability","Contracted Services",10/12/2013 00:00:00,"30232302",957.6,"CARE IN YOUR HOME"
"Bracknell Forest Council","http://opendatacommunities.org/id/unitary-authority/bracknell-forest","Bracknell Forest Council","00MA","Older People (Aged 65 or Over)","Home Care","Home Care - Mental Health Over 65","Contracted Services",10/12/2013 00:00:00,"30232302",547,"CARE IN YOUR HOME"
"Bracknell Forest Council","http://opendatacommunities.org/id/unitary-authority/bracknell-forest","Bracknell Forest Council","00MA","Older People (Aged 65 or Over)","Home Care","Home Care-Elderly","Contracted Services",10/12/2013 00:00:00,"30232302",45.6,"CARE IN YOUR HOME"
"Bracknell Forest Council","http://opendatacommunities.org/id/unitary-authority/bracknell-forest","Bracknell Forest Council","00MA","Older People (Aged 65 or Over)","Home Care","Home Care-Elderly","Contracted Services",10/12/2013 00:00:00,"30232302",1496.4,"CARE IN YOUR HOME"
"Bracknell Forest Council","http://opendatacommunities.org/id/unitary-authority/bracknell-forest","Bracknell Forest Council","00MA","Older People (Aged 65 or Over)","Home Care","Homecare PD 65 and Over","Contracted Services",10/12/2013 00:00:00,"30232302",1166.2,"CARE IN YOUR HOME"
"Bracknell Forest Council","http://opendatacommunities.org/id/unitary-authority/bracknell-forest","Bracknell Forest Council","00MA","Older People (Aged 65 or Over)","Home Care","Home Care-Elderly","Contracted Services",10/12/2013 00:00:00,"30232302",2629.6,"CARE IN YOUR HOME"
"Bracknell Forest Council","http://opendatacommunities.org/id/unitary-authority/bracknell-forest","Bracknell Forest Council","00MA","Physical Disability/Sensory Impairment","Homecare","Home Care-Phys Disab","Contracted Services",10/12/2013 00:00:00,"30232302",7.4,"CARE IN YOUR HOME"
"Bracknell Forest Council","http://opendatacommunities.org/id/unitary-authority/bracknell-forest","Bracknell Forest Council","00MA","Older People (Aged 65 or Over)","Home Care","Home Care-Elderly","Contracted Services",10/12/2013 00:00:00,"30232302",619.2,"CARE IN YOUR HOME"
"Bracknell Forest Council","http://opendatacommunities.org/id/unitary-authority/bracknell-forest","Bracknell Forest Council","00MA","Older People (Aged 65 or Over)","Home Care","Home Care-Elderly","Contracted Services",10/12/2013 00:00:00,"30232302",680,"CARE IN YOUR HOME"
"Bracknell Forest Council","http://opendatacommunities.org/id/unitary-authority/bracknell-forest","Bracknell Forest Council","00MA","Older People (Aged 65 or Over)","Home Care","Homecare PD 65 and Over","Contracted Services",10/12/2013 00:00:00,"30232302",904,"CARE IN YOUR HOME"
"Bracknell Forest Council","http://opendatacommunities.org/id/unitary-authority/bracknell-forest","Bracknell Forest Council","00MA","Older People (Aged 65 or Over)","Home Care","Home Care-Elderly","Contracted Services",10/12/2013 00:00:00,"30232302",364.6,"CARE IN YOUR HOME"
"Bracknell Forest Council","http://opendatacommunities.org/id/unitary-authority/bracknell-forest","Bracknell Forest Council","00MA","Older People (Aged 65 or Over)","Home Care","Home Care-Elderly","Contracted Services",10/12/2013 00:00:00,"30232302",425.6,"CARE IN YOUR HOME"
"Bracknell Forest Council","http://opendatacommunities.org/id/unitary-authority/bracknell-forest","Bracknell Forest Council","00MA","Older People (Aged 65 or Over)","Home Care","Home Care-Elderly","Contracted Services",10/12/2013 00:00:00,"30232302",1176.8,"CARE IN YOUR HOME"
"Bracknell Forest Council","http://opendatacommunities.org/id/unitary-authority/bracknell-forest","Bracknell Forest Council","00MA","Older People (Aged 65 or Over)","Home Care","Home Care-Elderly","Contracted Services",10/12/2013 00:00:00,"30232302",562,"CARE IN YOUR HOME"
"Bracknell Forest Council","http://opendatacommunities.org/id/unitary-authority/bracknell-forest","Bracknell Forest Council","00MA","Older People (Aged 65 or Over)","Home Care","Home Care-Elderly","Contracted Services",10/12/2013 00:00:00,"30232302",152,"CARE IN YOUR HOME"
"Bracknell Forest Council","http://opendatacommunities.org/id/unitary-authority/bracknell-forest","Bracknell Forest Council","00MA","Older People (Aged 65 or Over)","Home Care","Home Care-Elderly","Contracted Services",10/12/2013 00:00:00,"30232302",190,"CARE IN YOUR HOME"
"Bracknell Forest Council","http://opendatacommunities.org/id/unitary-authority/bracknell-forest","Bracknell Forest Council","00MA","Older People (Aged 65 or Over)","Home Care","Home Care-Elderly","Contracted Services",10/12/2013 00:00:00,"30232302",3256.6,"CARE IN YOUR HOME"
"Bracknell Forest Council","http://opendatacommunities.org/id/unitary-authority/bracknell-forest","Bracknell Forest Council","00MA","Older People (Aged 65 or Over)","Home Care","Home Care-Elderly","Contracted Services",10/12/2013 00:00:00,"30232302",653.6,"CARE IN YOUR HOME"
"Bracknell Forest Council","http://opendatacommunities.org/id/unitary-authority/bracknell-forest","Bracknell Forest Council","00MA","Mental Health Needs (Under 65)","Homecare","Home Care Mental Illness","Contracted Services",10/12/2013 00:00:00,"30232302",360.6,"CARE IN YOUR HOME"
"Bracknell Forest Council","http://opendatacommunities.org/id/unitary-authority/bracknell-forest","Bracknell Forest Council","00MA","Older People (Aged 65 or Over)","Home Care","Home Care-Elderly","Contracted Services",10/12/2013 00:00:00,"30232302",482.6,"CARE IN YOUR HOME"
"Bracknell Forest Council","http://opendatacommunities.org/id/unitary-authority/bracknell-forest","Bracknell Forest Council","00MA","Older People (Aged 65 or Over)","Home Care","Home Care-Elderly","Contracted Services",10/12/2013 00:00:00,"30232302",89.2,"CARE IN YOUR HOME"
"Bracknell Forest Council","http://opendatacommunities.org/id/unitary-authority/bracknell-forest","Bracknell Forest Council","00MA","Older People (Aged 65 or Over)","Home Care","Homecare EMI","Contracted Services",19/12/2013 00:00:00,"30232955",622,"CARE IN YOUR HOME"
"Bracknell Forest Council","http://opendatacommunities.org/id/unitary-authority/bracknell-forest","Bracknell Forest Council","00MA","Older People (Aged 65 or Over)","Home Care","Homecare EMI","Contracted Services",19/12/2013 00:00:00,"30232955",634,"CARE IN YOUR HOME"
"Bracknell Forest Council","http://opendatacommunities.org/id/unitary-authority/bracknell-forest","Bracknell Forest Council","00MA","Learning Disability (under 65)","Homecare","Home Care Learning Disability","Contracted Services",19/12/2013 00:00:00,"30232955",843.6,"CARE IN YOUR HOME"
"Bracknell Forest Council","http://opendatacommunities.org/id/unitary-authority/bracknell-forest","Bracknell Forest Council","00MA","Older People (Aged 65 or Over)","Home Care","Home Care-Elderly","Contracted Services",19/12/2013 00:00:00,"30232955",132.8,"CARE IN YOUR HOME"
"Bracknell Forest Council","http://opendatacommunities.org/id/unitary-authority/bracknell-forest","Bracknell Forest Council","00MA","Older People (Aged 65 or Over)","Home Care","Home Care-Elderly","Contracted Services",19/12/2013 00:00:00,"30232955",634.2,"CARE IN YOUR HOME"
"Bracknell Forest Council","http://opendatacommunities.org/id/unitary-authority/bracknell-forest","Bracknell Forest Council","00MA","Older People (Aged 65 or Over)","Home Care","Home Care-Elderly","Contracted Services",19/12/2013 00:00:00,"30232955",497.8,"CARE IN YOUR HOME"
"Bracknell Forest Council","http://opendatacommunities.org/id/unitary-authority/bracknell-forest","Bracknell Forest Council","00MA","Older People (Aged 65 or Over)","Home Care","Home Care-Elderly","Contracted Services",19/12/2013 00:00:00,"30232955",334.4,"CARE IN YOUR HOME"
"Bracknell Forest Council","http://opendatacommunities.org/id/unitary-authority/bracknell-forest","Bracknell Forest Council","00MA","Recreation, Sports and Leisure","Indoor Sports & Recreation Facilities","Leisure Centre - Catering General","Cost of Goods Sold",29/11/2013 00:00:00,"30231982",6.78,"3663"
"Bracknell Forest Council","http://opendatacommunities.org/id/unitary-authority/bracknell-forest","Bracknell Forest Council","00MA","Business Support","Premises Development","Easthampstead Park Centre - Catering","Cost of Goods Sold",02/12/2013 00:00:00,"30231982",353.47,"3663"
"Bracknell Forest Council","http://opendatacommunities.org/id/unitary-authority/bracknell-forest","Bracknell Forest Council","00MA","Business Support","Premises Development","Easthampstead Park Centre - Catering","Cost of Goods Sold",02/12/2013 00:00:00,"30231982",20.7,"3663"
"Bracknell Forest Council","http://opendatacommunities.org/id/unitary-authority/bracknell-forest","Bracknell Forest Council","00MA","Business Support","Premises Development","Easthampstead Park Centre - Catering","Cost of Goods Sold",28/11/2013 00:00:00,"30231982",-7.48,"3663"
"Bracknell Forest Council","http://opendatacommunities.org/id/unitary-authority/bracknell-forest","Bracknell Forest Council","00MA","Recreation, Sports and Leisure","Indoor Sports & Recreation Facilities","Leisure Centre - Catering General","Cost of Goods Sold",29/11/2013 00:00:00,"30231982",-7.12,"3663"
"Bracknell Forest Council","http://opendatacommunities.org/id/unitary-authority/bracknell-forest","Bracknell Forest Council","00MA","Recreation, Sports and Leisure","Golf Courses","Leisure DSO - Downshire Catering","Cost of Goods Sold",26/11/2013 00:00:00,"30231982",800.3,"3663"
"Bracknell Forest Council","http://opendatacommunities.org/id/unitary-authority/bracknell-forest","Bracknell Forest Council","00MA","Recreation, Sports and Leisure","Golf Courses","Leisure DSO - Downshire Catering","Cost of Goods Sold",26/11/2013 00:00:00,"30231982",106.52,"3663"
"Bracknell Forest Council","http://opendatacommunities.org/id/unitary-authority/bracknell-forest","Bracknell Forest Council","00MA","Recreation, Sports and Leisure","Indoor Sports & Recreation Facilities","Leisure Centre - Catering General","Cost of Goods Sold",27/11/2013 00:00:00,"30231982",442.34,"3663"
"Bracknell Forest Council","http://opendatacommunities.org/id/unitary-authority/bracknell-forest","Bracknell Forest Council","00MA","Recreation, Sports and Leisure","Indoor Sports & Recreation Facilities","Leisure Centre - Catering General","Cost of Goods Sold",27/11/2013 00:00:00,"30231982",14.56,"3663"
"Bracknell Forest Council","http://opendatacommunities.org/id/unitary-authority/bracknell-forest","Bracknell Forest Council","00MA","Recreation, Sports and Leisure","Indoor Sports & Recreation Facilities","Leisure Centre - Catering General","Cost of Goods Sold",27/11/2013 00:00:00,"30231982",54.99,"3663"
"Bracknell Forest Council","http://opendatacommunities.org/id/unitary-authority/bracknell-forest","Bracknell Forest Council","00MA","Business Support","Premises Development","Easthampstead Park Centre - Catering","Cost of Goods Sold",15/11/2013 00:00:00,"30231982",355.32,"3663"
"Bracknell Forest Council","http://opendatacommunities.org/id/unitary-authority/bracknell-forest","Bracknell Forest Council","00MA","Business Support","Premises Development","Easthampstead Park Centre - Catering","Cost of Goods Sold",15/11/2013 00:00:00,"30231982",33.72,"3663"
"Bracknell Forest Council","http://opendatacommunities.org/id/unitary-authority/bracknell-forest","Bracknell Forest Council","00MA","Business Support","Premises Development","Easthampstead Park Centre - Catering","Cost of Goods Sold",26/11/2013 00:00:00,"30231982",411.74,"3663"
"Bracknell Forest Council","http://opendatacommunities.org/id/unitary-authority/bracknell-forest","Bracknell Forest Council","00MA","Business Support","Premises Development","Easthampstead Park Centre - Catering","Cost of Goods Sold",26/11/2013 00:00:00,"30231982",64.94,"3663"
"Bracknell Forest Council","http://opendatacommunities.org/id/unitary-authority/bracknell-forest","Bracknell Forest Council","00MA","Business Support","Premises Development","Easthampstead Park Centre - Catering","Cost of Goods Sold",27/11/2013 00:00:00,"30231982",84.48,"3663"
"Bracknell Forest Council","http://opendatacommunities.org/id/unitary-authority/bracknell-forest","Bracknell Forest Council","00MA","Older People (Aged 65 or Over)","Home Care","Home Care-Elderly","Contracted Services",19/12/2013 00:00:00,"30232955",1488.4,"CARE IN YOUR HOME"
"Bracknell Forest Council","http://opendatacommunities.org/id/unitary-authority/bracknell-forest","Bracknell Forest Council","00MA","Older People (Aged 65 or Over)","Home Care","Home Care-Elderly","Contracted Services",19/12/2013 00:00:00,"30232955",2629.6,"CARE IN YOUR HOME"
"Bracknell Forest Council","http://opendatacommunities.org/id/unitary-authority/bracknell-forest","Bracknell Forest Council","00MA","Older People (Aged 65 or Over)","Home Care","Home Care-Elderly","Contracted Services",19/12/2013 00:00:00,"30232955",1333.8,"CARE IN YOUR HOME"
"Bracknell Forest Council","http://opendatacommunities.org/id/unitary-authority/bracknell-forest","Bracknell Forest Council","00MA","Older People (Aged 65 or Over)","Home Care","Home Care-Elderly","Contracted Services",19/12/2013 00:00:00,"30232955",687.8,"CARE IN YOUR HOME"
"Bracknell Forest Council","http://opendatacommunities.org/id/unitary-authority/bracknell-forest","Bracknell Forest Council","00MA","Older People (Aged 65 or Over)","Home Care","Home Care-Elderly","Contracted Services",19/12/2013 00:00:00,"30232955",2242,"CARE IN YOUR HOME"
"Bracknell Forest Council","http://opendatacommunities.org/id/unitary-authority/bracknell-forest","Bracknell Forest Council","00MA","Older People (Aged 65 or Over)","Home Care","Home Care-Elderly","Contracted Services",19/12/2013 00:00:00,"30232955",672.6,"CARE IN YOUR HOME"
"Bracknell Forest Council","http://opendatacommunities.org/id/unitary-authority/bracknell-forest","Bracknell Forest Council","00MA","Mental Health Needs (Under 65)","Homecare","Home Care Mental Illness","Contracted Services",19/12/2013 00:00:00,"30232955",372,"CARE IN YOUR HOME"
"Bracknell Forest Council","http://opendatacommunities.org/id/unitary-authority/bracknell-forest","Bracknell Forest Council","00MA","Older People (Aged 65 or Over)","Home Care","Home Care - Mental Health Over 65","Contracted Services",19/12/2013 00:00:00,"30232955",539.2,"CARE IN YOUR HOME"
"Bracknell Forest Council","http://opendatacommunities.org/id/unitary-authority/bracknell-forest","Bracknell Forest Council","00MA","Older People (Aged 65 or Over)","Home Care","Home Care-Elderly","Contracted Services",19/12/2013 00:00:00,"30232955",224.2,"CARE IN YOUR HOME"
"Bracknell Forest Council","http://opendatacommunities.org/id/unitary-authority/bracknell-forest","Bracknell Forest Council","00MA","Older People (Aged 65 or Over)","Home Care","Home Care-Elderly","Contracted Services",19/12/2013 00:00:00,"30232955",626.4,"CARE IN YOUR HOME"
"Bracknell Forest Council","http://opendatacommunities.org/id/unitary-authority/bracknell-forest","Bracknell Forest Council","00MA","Older People (Aged 65 or Over)","Home Care","Homecare PD 65 and Over","Contracted Services",19/12/2013 00:00:00,"30232955",1215.4,"CARE IN YOUR HOME"
"Bracknell Forest Council","http://opendatacommunities.org/id/unitary-authority/bracknell-forest","Bracknell Forest Council","00MA","Older People (Aged 65 or Over)","Home Care","Homecare PD 65 and Over","Contracted Services",19/12/2013 00:00:00,"30232955",676.2,"CARE IN YOUR HOME"
"Bracknell Forest Council","http://opendatacommunities.org/id/unitary-authority/bracknell-forest","Bracknell Forest Council","00MA","Older People (Aged 65 or Over)","Home Care","Home Care-Elderly","Contracted Services",19/12/2013 00:00:00,"30232955",155.8,"CARE IN YOUR HOME"
"Bracknell Forest Council","http://opendatacommunities.org/id/unitary-authority/bracknell-forest","Bracknell Forest Council","00MA","Learning Disability (under 65)","Residential Care Home Placements","Residential Placements-Lrng Disab","Contracted Services",17/12/2013 00:00:00,"30232702",2391.76,"CARE LTD"
"Bracknell Forest Council","http://opendatacommunities.org/id/unitary-authority/bracknell-forest","Bracknell Forest Council","00MA","Support Services & Management Costs","Information and Communication Technology","Electronic Monitoring","Other Fees for Bought-in Services",30/11/2013 00:00:00,"6535352",3699.25,"CARE MONITORING 2000 LTD"
"Bracknell Forest Council","http://opendatacommunities.org/id/unitary-authority/bracknell-forest","Bracknell Forest Council","00MA","Business Support","Premises Development","Easthampstead Park Centre - Catering","Cost of Goods Sold",28/11/2013 00:00:00,"30231982",114.29,"3663"
"Bracknell Forest Council","http://opendatacommunities.org/id/unitary-authority/bracknell-forest","Bracknell Forest Council","00MA","Business Support","Premises Development","Easthampstead Park Centre - Catering","Cost of Goods Sold",28/11/2013 00:00:00,"30231982",12.06,"3663"
"Bracknell Forest Council","http://opendatacommunities.org/id/unitary-authority/bracknell-forest","Bracknell Forest Council","00MA","Recreation, Sports and Leisure","Golf Courses","Leisure DSO - Downshire Catering","Cost of Goods Sold",28/11/2013 00:00:00,"30231982",25.98,"3663"
"Bracknell Forest Council","http://opendatacommunities.org/id/unitary-authority/bracknell-forest","Bracknell Forest Council","00MA","Older People (Aged 65 or Over)","Residential Care Home Placements","Bridgewell Unit","Cost of Goods Sold",27/11/2013 00:00:00,"30231982",273.81,"3663"
"Bracknell Forest Council","http://opendatacommunities.org/id/unitary-authority/bracknell-forest","Bracknell Forest Council","00MA","Older People (Aged 65 or Over)","Residential Care Home Placements","Bridgewell Unit","Cost of Goods Sold",27/11/2013 00:00:00,"30231982",17.98,"3663"
"Bracknell Forest Council","http://opendatacommunities.org/id/unitary-authority/bracknell-forest","Bracknell Forest Council","00MA","Older People (Aged 65 or Over)","Residential Care Home Placements","Heathlands EPH","Cost of Goods Sold",27/11/2013 00:00:00,"30231982",585.77,"3663"
"Bracknell Forest Council","http://opendatacommunities.org/id/unitary-authority/bracknell-forest","Bracknell Forest Council","00MA","Older People (Aged 65 or Over)","Residential Care Home Placements","Heathlands EPH","Cost of Goods Sold",27/11/2013 00:00:00,"30231982",103.7,"3663"
"Bracknell Forest Council","http://opendatacommunities.org/id/unitary-authority/bracknell-forest","Bracknell Forest Council","00MA","Older People (Aged 65 or Over)","Residential Care Home Placements","Bridgewell Unit","Cost of Goods Sold",04/12/2013 00:00:00,"30232404",315.41,"3663"
"Bracknell Forest Council","http://opendatacommunities.org/id/unitary-authority/bracknell-forest","Bracknell Forest Council","00MA","Older People (Aged 65 or Over)","Residential Care Home Placements","Bridgewell Unit","Cost of Goods Sold",04/12/2013 00:00:00,"30232404",25.29,"3663"
"Bracknell Forest Council","http://opendatacommunities.org/id/unitary-authority/bracknell-forest","Bracknell Forest Council","00MA","Older People (Aged 65 or Over)","Residential Care Home Placements","Heathlands EPH","Cost of Goods Sold",04/12/2013 00:00:00,"30232404",790.76,"3663"
"Bracknell Forest Council","http://opendatacommunities.org/id/unitary-authority/bracknell-forest","Bracknell Forest Council","00MA","Older People (Aged 65 or Over)","Residential Care Home Placements","Heathlands EPH","Cost of Goods Sold",04/12/2013 00:00:00,"30232404",130.32,"3663"
"Bracknell Forest Council","http://opendatacommunities.org/id/unitary-authority/bracknell-forest","Bracknell Forest Council","00MA","Recreation, Sports and Leisure","Dual Use Centres","Edgbarrow Sports Centre","Cost of Goods Sold",10/12/2013 00:00:00,"30232404",19.74,"3663"
"Bracknell Forest Council","http://opendatacommunities.org/id/unitary-authority/bracknell-forest","Bracknell Forest Council","00MA","Recreation, Sports and Leisure","Dual Use Centres","Edgbarrow Sports Centre","Cost of Goods Sold",10/12/2013 00:00:00,"30232404",86.86,"3663"
"Bracknell Forest Council","http://opendatacommunities.org/id/unitary-authority/bracknell-forest","Bracknell Forest Council","00MA","Business Support","Premises Development","Easthampstead Park Centre - Catering","Cost of Goods Sold",05/12/2013 00:00:00,"30232404",61.16,"3663"
"Bracknell Forest Council","http://opendatacommunities.org/id/unitary-authority/bracknell-forest","Bracknell Forest Council","00MA","Business Support","Premises Development","Easthampstead Park Centre - Catering","Cost of Goods Sold",06/12/2013 00:00:00,"30232404",286.9,"3663"
"Bracknell Forest Council","http://opendatacommunities.org/id/unitary-authority/bracknell-forest","Bracknell Forest Council","00MA","Business Support","Premises Development","Easthampstead Park Centre - Catering","Cost of Goods Sold",06/12/2013 00:00:00,"30232404",12.06,"3663"
"Bracknell Forest Council","http://opendatacommunities.org/id/unitary-authority/bracknell-forest","Bracknell Forest Council","00MA","Business Support","Premises Development","Easthampstead Park Centre - Catering","Cost of Goods Sold",09/12/2013 00:00:00,"30232404",299.98,"3663"
"Bracknell Forest Council","http://opendatacommunities.org/id/unitary-authority/bracknell-forest","Bracknell Forest Council","00MA","Business Support","Premises Development","Easthampstead Park Centre - Catering","Cost of Goods Sold",09/12/2013 00:00:00,"30232404",6.46,"3663"
"Bracknell Forest Council","http://opendatacommunities.org/id/unitary-authority/bracknell-forest","Bracknell Forest Council","00MA","Business Support","Premises Development","Easthampstead Park Centre - Catering","Cost of Goods Sold",10/12/2013 00:00:00,"30232404",273.07,"3663"
"Bracknell Forest Council","http://opendatacommunities.org/id/unitary-authority/bracknell-forest","Bracknell Forest Council","00MA","Business Support","Premises Development","Easthampstead Park Centre - Catering","Cost of Goods Sold",10/12/2013 00:00:00,"30232404",77.88,"3663"
"Bracknell Forest Council","http://opendatacommunities.org/id/unitary-authority/bracknell-forest","Bracknell Forest Council","00MA","Business Support","Premises Development","Easthampstead Park Centre - Catering","Cost of Goods Sold",10/12/2013 00:00:00,"30232404",-13.32,"3663"
"Bracknell Forest Council","http://opendatacommunities.org/id/unitary-authority/bracknell-forest","Bracknell Forest Council","00MA","Recreation, Sports and Leisure","Indoor Sports & Recreation Facilities","Leisure Centre - Catering General","Cost of Goods Sold",06/12/2013 00:00:00,"30232404",60.64,"3663"
"Bracknell Forest Council","http://opendatacommunities.org/id/unitary-authority/bracknell-forest","Bracknell Forest Council","00MA","Recreation, Sports and Leisure","Indoor Sports & Recreation Facilities","Leisure Centre - Catering General","Cost of Goods Sold",06/12/2013 00:00:00,"30232404",7.04,"3663"
"Bracknell Forest Council","http://opendatacommunities.org/id/unitary-authority/bracknell-forest","Bracknell Forest Council","00MA","Recreation, Sports and Leisure","Indoor Sports & Recreation Facilities","Leisure Centre - Catering General","Cost of Goods Sold",04/12/2013 00:00:00,"30232404",633.07,"3663"
"Bracknell Forest Council","http://opendatacommunities.org/id/unitary-authority/bracknell-forest","Bracknell Forest Council","00MA","Recreation, Sports and Leisure","Golf Courses","Leisure DSO - Downshire Catering","Cost of Goods Sold",03/12/2013 00:00:00,"30232404",392.62,"3663"
"Bracknell Forest Council","http://opendatacommunities.org/id/unitary-authority/bracknell-forest","Bracknell Forest Council","00MA","Recreation, Sports and Leisure","Golf Courses","Leisure DSO - Downshire Catering","Cost of Goods Sold",03/12/2013 00:00:00,"30232404",17.72,"3663"
"Bracknell Forest Council","http://opendatacommunities.org/id/unitary-authority/bracknell-forest","Bracknell Forest Council","00MA","Recreation, Sports and Leisure","Golf Courses","Leisure DSO - Downshire Catering","Cost of Goods Sold",03/12/2013 00:00:00,"30232404",63.32,"3663"
"Bracknell Forest Council","http://opendatacommunities.org/id/unitary-authority/bracknell-forest","Bracknell Forest Council","00MA","Recreation, Sports and Leisure","Golf Courses","Leisure DSO - Downshire Catering","Cost of Goods Sold",05/12/2013 00:00:00,"30232404",419.91,"3663"
"Bracknell Forest Council","http://opendatacommunities.org/id/unitary-authority/bracknell-forest","Bracknell Forest Council","00MA","Recreation, Sports and Leisure","Golf Courses","Leisure DSO - Downshire Catering","Cost of Goods Sold",05/12/2013 00:00:00,"30232404",10.01,"3663"
"Bracknell Forest Council","http://opendatacommunities.org/id/unitary-authority/bracknell-forest","Bracknell Forest Council","00MA","Business Support","Premises Development","Easthampstead Park Centre - Catering","Cost of Goods Sold",05/12/2013 00:00:00,"30232404",242.2,"3663"
"Bracknell Forest Council","http://opendatacommunities.org/id/unitary-authority/bracknell-forest","Bracknell Forest Council","00MA","Older People (Aged 65 or Over)","Residential Care Home Placements","Bridgewell Unit","Cost of Goods Sold",11/12/2013 00:00:00,"30232824",321.74,"3663"
"Bracknell Forest Council","http://opendatacommunities.org/id/unitary-authority/bracknell-forest","Bracknell Forest Council","00MA","Older People (Aged 65 or Over)","Residential Care Home Placements","Bridgewell Unit","Cost of Goods Sold",11/12/2013 00:00:00,"30232824",39.42,"3663"
"Bracknell Forest Council","http://opendatacommunities.org/id/unitary-authority/bracknell-forest","Bracknell Forest Council","00MA","Older People (Aged 65 or Over)","Residential Care Home Placements","Heathlands EPH","Cost of Goods Sold",11/12/2013 00:00:00,"30232824",759.43,"3663"
"Bracknell Forest Council","http://opendatacommunities.org/id/unitary-authority/bracknell-forest","Bracknell Forest Council","00MA","Older People (Aged 65 or Over)","Residential Care Home Placements","Heathlands EPH","Cost of Goods Sold",11/12/2013 00:00:00,"30232824",81.35,"3663"
"Bracknell Forest Council","http://opendatacommunities.org/id/unitary-authority/bracknell-forest","Bracknell Forest Council","00MA","Older People (Aged 65 or Over)","Residential Care Home Placements","Heathlands EPH","Cost of Goods Sold",16/12/2013 00:00:00,"30232824",95.42,"3663"
"Bracknell Forest Council","http://opendatacommunities.org/id/unitary-authority/bracknell-forest","Bracknell Forest Council","00MA","Business Support","Premises Development","Easthampstead Park Centre - Catering","Cost of Goods Sold",17/12/2013 00:00:00,"30232824",185.2,"3663"
"Bracknell Forest Council","http://opendatacommunities.org/id/unitary-authority/bracknell-forest","Bracknell Forest Council","00MA","Business Support","Premises Development","Easthampstead Park Centre - Catering","Cost of Goods Sold",17/12/2013 00:00:00,"30232824",72.17,"3663"
"Bracknell Forest Council","http://opendatacommunities.org/id/unitary-authority/bracknell-forest","Bracknell Forest Council","00MA","Recreation, Sports and Leisure","Indoor Sports & Recreation Facilities","Leisure Centre - Catering General","Cost of Goods Sold",11/12/2013 00:00:00,"30232824",13.17,"3663"
"Bracknell Forest Council","http://opendatacommunities.org/id/unitary-authority/bracknell-forest","Bracknell Forest Council","00MA","Recreation, Sports and Leisure","Indoor Sports & Recreation Facilities","Leisure Centre - Catering General","Cost of Goods Sold",11/12/2013 00:00:00,"30232824",133.24,"3663"
"Bracknell Forest Council","http://opendatacommunities.org/id/unitary-authority/bracknell-forest","Bracknell Forest Council","00MA","Recreation, Sports and Leisure","Indoor Sports & Recreation Facilities","Leisure Centre - Catering General","Cost of Goods Sold",11/12/2013 00:00:00,"30232824",8.86,"3663"
"Bracknell Forest Council","http://opendatacommunities.org/id/unitary-authority/bracknell-forest","Bracknell Forest Council","00MA","Recreation, Sports and Leisure","Indoor Sports & Recreation Facilities","Leisure Centre - Catering General","Cost of Goods Sold",11/12/2013 00:00:00,"30232824",287.38,"3663"
"Bracknell Forest Council","http://opendatacommunities.org/id/unitary-authority/bracknell-forest","Bracknell Forest Council","00MA","Recreation, Sports and Leisure","Indoor Sports & Recreation Facilities","Leisure Centre - Catering General","Cost of Goods Sold",11/12/2013 00:00:00,"30232824",14.75,"3663"
"Bracknell Forest Council","http://opendatacommunities.org/id/unitary-authority/bracknell-forest","Bracknell Forest Council","00MA","Recreation, Sports and Leisure","Indoor Sports & Recreation Facilities","Leisure Centre - Catering General","Cost of Goods Sold",17/12/2013 00:00:00,"30232824",-12.26,"3663"
"Bracknell Forest Council","http://opendatacommunities.org/id/unitary-authority/bracknell-forest","Bracknell Forest Council","00MA","Recreation, Sports and Leisure","Golf Courses","Leisure DSO - Downshire Catering","Cost of Goods Sold",10/12/2013 00:00:00,"30232824",511.98,"3663"
"Bracknell Forest Council","http://opendatacommunities.org/id/unitary-authority/bracknell-forest","Bracknell Forest Council","00MA","Recreation, Sports and Leisure","Golf Courses","Leisure DSO - Downshire Catering","Cost of Goods Sold",10/12/2013 00:00:00,"30232824",62.6,"3663"
"Bracknell Forest Council","http://opendatacommunities.org/id/unitary-authority/bracknell-forest","Bracknell Forest Council","00MA","Business Support","Premises Development","Easthampstead Park Centre - Catering","Cost of Goods Sold",11/12/2013 00:00:00,"30232824",285.36,"3663"
"Bracknell Forest Council","http://opendatacommunities.org/id/unitary-authority/bracknell-forest","Bracknell Forest Council","00MA","Business Support","Premises Development","Easthampstead Park Centre - Catering","Cost of Goods Sold",13/12/2013 00:00:00,"30232824",377.53,"3663"
"Bracknell Forest Council","http://opendatacommunities.org/id/unitary-authority/bracknell-forest","Bracknell Forest Council","00MA","Business Support","Premises Development","Easthampstead Park Centre - Catering","Cost of Goods Sold",13/12/2013 00:00:00,"30232824",38.41,"3663"
"Bracknell Forest Council","http://opendatacommunities.org/id/unitary-authority/bracknell-forest","Bracknell Forest Council","00MA","Business Support","Premises Development","Easthampstead Park Centre - Catering","Cost of Goods Sold",16/12/2013 00:00:00,"30232824",52.3,"3663"
"Bracknell Forest Council","http://opendatacommunities.org/id/unitary-authority/bracknell-forest","Bracknell Forest Council","00MA","Recreation, Sports and Leisure","Indoor Sports & Recreation Facilities","Leisure Centre - Catering General","Cost of Goods Sold",11/12/2013 00:00:00,"30232824",18.86,"3663"
"Bracknell Forest Council","http://opendatacommunities.org/id/unitary-authority/bracknell-forest","Bracknell Forest Council","00MA","Recreation, Sports and Leisure","Indoor Sports & Recreation Facilities","Leisure Centre - Catering General","Cost of Goods Sold",11/12/2013 00:00:00,"30232824",28.73,"3663"
"Bracknell Forest Council","http://opendatacommunities.org/id/unitary-authority/bracknell-forest","Bracknell Forest Council","00MA","Recreation, Sports and Leisure","Indoor Sports & Recreation Facilities","Leisure Centre - Catering General","Cost of Goods Sold",13/12/2013 00:00:00,"30232824",313.38,"3663"
"Bracknell Forest Council","http://opendatacommunities.org/id/unitary-authority/bracknell-forest","Bracknell Forest Council","00MA","Older People (Aged 65 or Over)","Residential Care Home Placements","Heathlands EPH","Cost of Goods Sold",23/12/2013 00:00:00,"30233261",69.42,"3663"
"Bracknell Forest Council","http://opendatacommunities.org/id/unitary-authority/bracknell-forest","Bracknell Forest Council","00MA","Older People (Aged 65 or Over)","Residential Care Home Placements","Bridgewell Unit","Cost of Goods Sold",18/12/2013 00:00:00,"30233261",568.08,"3663"
"Bracknell Forest Council","http://opendatacommunities.org/id/unitary-authority/bracknell-forest","Bracknell Forest Council","00MA","Older People (Aged 65 or Over)","Residential Care Home Placements","Bridgewell Unit","Cost of Goods Sold",18/12/2013 00:00:00,"30233261",49.23,"3663"
"Bracknell Forest Council","http://opendatacommunities.org/id/unitary-authority/bracknell-forest","Bracknell Forest Council","00MA","Older People (Aged 65 or Over)","Residential Care Home Placements","Heathlands EPH","Cost of Goods Sold",18/12/2013 00:00:00,"30233261",914.8,"3663"
"Bracknell Forest Council","http://opendatacommunities.org/id/unitary-authority/bracknell-forest","Bracknell Forest Council","00MA","Older People (Aged 65 or Over)","Residential Care Home Placements","Heathlands EPH","Cost of Goods Sold",18/12/2013 00:00:00,"30233261",93.41,"3663"
"Bracknell Forest Council","http://opendatacommunities.org/id/unitary-authority/bracknell-forest","Bracknell Forest Council","00MA","Older People (Aged 65 or Over)","Residential Care Home Placements","Heathlands EPH","Cost of Goods Sold",23/12/2013 00:00:00,"30233261",514.1,"3663"
"Bracknell Forest Council","http://opendatacommunities.org/id/unitary-authority/bracknell-forest","Bracknell Forest Council","00MA","Recreation, Sports and Leisure","Golf Courses","Leisure DSO - Downshire Catering","Cost of Goods Sold",17/12/2013 00:00:00,"30233261",1064.49,"3663"
"Bracknell Forest Council","http://opendatacommunities.org/id/unitary-authority/bracknell-forest","Bracknell Forest Council","00MA","Recreation, Sports and Leisure","Golf Courses","Leisure DSO - Downshire Catering","Cost of Goods Sold",17/12/2013 00:00:00,"30233261",160.98,"3663"
"Bracknell Forest Council","http://opendatacommunities.org/id/unitary-authority/bracknell-forest","Bracknell Forest Council","00MA","Recreation, Sports and Leisure","Golf Courses","Leisure DSO - Downshire Catering","Cost of Goods Sold",17/12/2013 00:00:00,"30233261",39.52,"3663"
"Bracknell Forest Council","http://opendatacommunities.org/id/unitary-authority/bracknell-forest","Bracknell Forest Council","00MA","Recreation, Sports and Leisure","Golf Courses","Leisure DSO - Downshire Catering","Cost of Goods Sold",17/12/2013 00:00:00,"30233261",30.78,"3663"
"Bracknell Forest Council","http://opendatacommunities.org/id/unitary-authority/bracknell-forest","Bracknell Forest Council","00MA","Recreation, Sports and Leisure","Indoor Sports & Recreation Facilities","Leisure Centre - Catering General","Cost of Goods Sold",18/12/2013 00:00:00,"30233261",46.95,"3663"
"Bracknell Forest Council","http://opendatacommunities.org/id/unitary-authority/bracknell-forest","Bracknell Forest Council","00MA","Recreation, Sports and Leisure","Indoor Sports & Recreation Facilities","Leisure Centre - Catering General","Cost of Goods Sold",18/12/2013 00:00:00,"30233261",635.84,"3663"
"Bracknell Forest Council","http://opendatacommunities.org/id/unitary-authority/bracknell-forest","Bracknell Forest Council","00MA","Recreation, Sports and Leisure","Indoor Sports & Recreation Facilities","Leisure Centre - Catering General","Cost of Goods Sold",18/12/2013 00:00:00,"30233261",39.07,"3663"
"Bracknell Forest Council","http://opendatacommunities.org/id/unitary-authority/bracknell-forest","Bracknell Forest Council","00MA","Business Support","Premises Development","Easthampstead Park Centre - Catering","Cost of Goods Sold",20/12/2013 00:00:00,"30233261",192.6,"3663"
"Bracknell Forest Council","http://opendatacommunities.org/id/unitary-authority/bracknell-forest","Bracknell Forest Council","00MA","Business Support","Premises Development","Easthampstead Park Centre - Catering","Cost of Goods Sold",20/12/2013 00:00:00,"30233261",34.6,"3663"
"Bracknell Forest Council","http://opendatacommunities.org/id/unitary-authority/bracknell-forest","Bracknell Forest Council","00MA","Mental Health Needs (Under 65)","Residential Care Home Placements","Residential Placements-Mental Illness","Contracted Services",17/12/2013 00:00:00,"30232702",2346,"2 CARE"
"Bracknell Forest Council","http://opendatacommunities.org/id/unitary-authority/bracknell-forest","Bracknell Forest Council","00MA","Mental Health Needs (Under 65)","Residential Care Home Placements","Residential Placements-Mental Illness","Contracted Services",17/12/2013 00:00:00,"30232702",2346.08,"2 CARE"
"Bracknell Forest Council","http://opendatacommunities.org/id/unitary-authority/bracknell-forest","Bracknell Forest Council","00MA","","","Disabled Facilities Grant","Grants Paid",13/12/2013 00:00:00,"6535497",590,"A & B BUILDERS"
"Bracknell Forest Council","http://opendatacommunities.org/id/unitary-authority/bracknell-forest","Bracknell Forest Council","00MA","Culture and Heritage","Heritage Museums & Galleries","The Look Out","Equipment - R&M",11/12/2013 00:00:00,"6536232",1101,"A & P CHAMBERS LTD"
"Bracknell Forest Council","http://opendatacommunities.org/id/unitary-authority/bracknell-forest","Bracknell Forest Council","00MA","Environmental Initiatives","Sustainable Development Strategies","Energy Management","Contracted Services",16/12/2013 00:00:00,"6536011",600,"A C SKINNER"
"Bracknell Forest Council","http://opendatacommunities.org/id/unitary-authority/bracknell-forest","Bracknell Forest Council","00MA","Supporting People","Supporting People","Supporting People Payments","Transfer Payments - Supporting People",06/12/2013 00:00:00,"6534946",624.2,"ABILITY HOUSING ASSOCIATION"
"Bracknell Forest Council","http://opendatacommunities.org/id/unitary-authority/bracknell-forest","Bracknell Forest Council","00MA","Supporting People","Supporting People","Supporting People Payments","Transfer Payments - Supporting People",03/01/2014 00:00:00,"6537096",624.2,"ABILITY HOUSING ASSOCIATION"
"Bracknell Forest Council","http://opendatacommunities.org/id/unitary-authority/bracknell-forest","Bracknell Forest Council","00MA","Support Services & Management Costs","Information and Communication Technology","IT","Computer -Purchase",26/11/2013 00:00:00,"6536517",6678,"ABRITAS LTD"
"Bracknell Forest Council","http://opendatacommunities.org/id/unitary-authority/bracknell-forest","Bracknell Forest Council","00MA","Support Services & Management Costs","Information and Communication Technology","IT","Computer Software Maintenance",26/11/2013 00:00:00,"6536517",14843,"ABRITAS LTD"
"Bracknell Forest Council","http://opendatacommunities.org/id/unitary-authority/bracknell-forest","Bracknell Forest Council","00MA","Service Management & Support Services","Service Management & Support Services","Training - Performance & Resources","Training Costs",02/04/2013 00:00:00,"6535493",1040,"ACAS"
"Bracknell Forest Council","http://opendatacommunities.org/id/unitary-authority/bracknell-forest","Bracknell Forest Council","00MA","Early Years","Centrally managed Expenditure - Early Years","Early Years and Childcare","Grants and Donations",20/12/2013 00:00:00,"30233080",1081.93,"ACORN UNDER FIVES"
"Bracknell Forest Council","http://opendatacommunities.org/id/unitary-authority/bracknell-forest","Bracknell Forest Council","00MA","","","Disabled Facilities Grant","Grants Paid",05/12/2013 00:00:00,"6534785",1950,"ADAPTABLE BUILDING SERVICES"
"Bracknell Forest Council","http://opendatacommunities.org/id/unitary-authority/bracknell-forest","Bracknell Forest Council","00MA","","","Disabled Facilities Grant","Grants Paid",09/12/2013 00:00:00,"6535098",2310,"ADAPTABLE BUILDING SERVICES"
"Bracknell Forest Council","http://opendatacommunities.org/id/unitary-authority/bracknell-forest","Bracknell Forest Council","00MA","","","Disabled Facilities Grant","Grants Paid",23/12/2013 00:00:00,"6536350",3850,"ADAPTABLE BUILDING SERVICES"
"Bracknell Forest Council","http://opendatacommunities.org/id/unitary-authority/bracknell-forest","Bracknell Forest Council","00MA","Central Support Services - COF","Construction and Property","Depot Facilities","Security Systems",01/12/2013 00:00:00,"6536280",696.31,"ADT FIRE AND SECURITY"
"Bracknell Forest Council","http://opendatacommunities.org/id/unitary-authority/bracknell-forest","Bracknell Forest Council","00MA","Children Looked After","Residential care","Children's Home Placements","Contracted Services",20/11/2013 00:00:00,"6534870",15278.66,"ADVANCED CHILDCARE"
"Bracknell Forest Council","http://opendatacommunities.org/id/unitary-authority/bracknell-forest","Bracknell Forest Council","00MA","Children Looked After","Residential care","Children's Home Placements","Contracted Services",18/12/2013 00:00:00,"6536837",15500,"ADVANCED CHILDCARE"
"Bracknell Forest Council","http://opendatacommunities.org/id/unitary-authority/bracknell-forest","Bracknell Forest Council","00MA","Children Looked After","Residential care","Children's Home Placements","Contracted Services",18/12/2013 00:00:00,"6536838",15278.66,"ADVANCED CHILDCARE"
"Bracknell Forest Council","http://opendatacommunities.org/id/unitary-authority/bracknell-forest","Bracknell Forest Council","00MA","Children Looked After","Residential care","Children's Home Placements","Contracted Services",18/12/2013 00:00:00,"6536840",-4514.32,"ADVANCED CHILDCARE"
"Bracknell Forest Council","http://opendatacommunities.org/id/unitary-authority/bracknell-forest","Bracknell Forest Council","00MA","Children Looked After","Residential care","Children's Home Placements","Contracted Services",18/12/2013 00:00:00,"6536841",4000,"ADVANCED CHILDCARE"
"Bracknell Forest Council","http://opendatacommunities.org/id/unitary-authority/bracknell-forest","Bracknell Forest Council","00MA","Services to Young People","Other Services to Young People","NEET Reduction Funding","Contracted Services",15/11/2013 00:00:00,"6535627",37265.92,"ADVIZA PARTNERSHIP"
"Bracknell Forest Council","http://opendatacommunities.org/id/unitary-authority/bracknell-forest","Bracknell Forest Council","00MA","Children Looked After","Education of LAC","Educational Attainment for Looked After Children","Contracted Services",15/11/2013 00:00:00,"6535627",1916,"ADVIZA PARTNERSHIP"
"Bracknell Forest Council","http://opendatacommunities.org/id/unitary-authority/bracknell-forest","Bracknell Forest Council","00MA","Learning Disability (under 65)","Residential Care Home Placements","Residential Placements-Lrng Disab","Contracted Services",17/12/2013 00:00:00,"30232702",4760,"AFFINITY TRUST"
"Bracknell Forest Council","http://opendatacommunities.org/id/unitary-authority/bracknell-forest","Bracknell Forest Council","00MA","Older People (Aged 65 or Over)","Other Services To Older People","Other Care & Support-Elderly","Taxi Charges",19/12/2013 00:00:00,"6536304",2025.79,"AGE CONCERN BRACKNELL FOREST"
"Bracknell Forest Council","http://opendatacommunities.org/id/unitary-authority/bracknell-forest","Bracknell Forest Council","00MA","Older People (Aged 65 or Over)","Day Care","Day centre Placements-Elderly","Voluntary Sector Service Providers",19/12/2013 00:00:00,"6536304",13557.21,"AGE CONCERN BRACKNELL FOREST"
"Bracknell Forest Council","http://opendatacommunities.org/id/unitary-authority/bracknell-forest","Bracknell Forest Council","00MA","Recreation, Sports and Leisure","Indoor Sports & Recreation Facilities","Leisure DSO - Leisure Centre Maintenance","Swimming Pool Chemicals",30/10/2013 00:00:00,"6535875",2527.2,"AIR PRODUCTS PLC"
"Bracknell Forest Council","http://opendatacommunities.org/id/unitary-authority/bracknell-forest","Bracknell Forest Council","00MA","Mental Health Needs (Under 65)","Residential Care Home Placements","Residential Placements-Mental Illness","Contracted Services",17/12/2013 00:00:00,"30232702",1253.56,"ALDWICK RESIDENTIAL CARE HOME"
"Bracknell Forest Council","http://opendatacommunities.org/id/unitary-authority/bracknell-forest","Bracknell Forest Council","00MA","Traffic Management & Road Safety","Traffic Management","Traffic Management","Contracted Services",22/11/2013 00:00:00,"6535063",1558.63,"ALEXANDER ADVERTISING(INT)LTD"
"Bracknell Forest Council","http://opendatacommunities.org/id/unitary-authority/bracknell-forest","Bracknell Forest Council","00MA","Traffic Management & Road Safety","Traffic Management","Traffic Management","Contracted Services",06/12/2013 00:00:00,"6535767",935.96,"ALEXANDER ADVERTISING(INT)LTD"
"Bracknell Forest Council","http://opendatacommunities.org/id/unitary-authority/bracknell-forest","Bracknell Forest Council","00MA","Business Support","Premises Development","Easthampstead Park Conference Centre","Cleaning materials",10/10/2013 00:00:00,"6535341",1028.65,"ALLIANCE DISPOSABLES LTD"
"Bracknell Forest Council","http://opendatacommunities.org/id/unitary-authority/bracknell-forest","Bracknell Forest Council","00MA","Business Support","Premises Development","Easthampstead Park Centre - Catering","Cleaning materials",22/11/2013 00:00:00,"30232824",491.93,"ALLIANCE DISPOSABLES LTD"
"Bracknell Forest Council","http://opendatacommunities.org/id/unitary-authority/bracknell-forest","Bracknell Forest Council","00MA","Business Support","Premises Development","Easthampstead Park Centre - Catering","Cleaning materials",27/11/2013 00:00:00,"30232824",7.18,"ALLIANCE DISPOSABLES LTD"
"Bracknell Forest Council","http://opendatacommunities.org/id/unitary-authority/bracknell-forest","Bracknell Forest Council","00MA","Business Support","Premises Development","Easthampstead Park Centre - Catering","Cleaning materials",06/12/2013 00:00:00,"30232824",593.02,"ALLIANCE DISPOSABLES LTD"
"Bracknell Forest Council","http://opendatacommunities.org/id/unitary-authority/bracknell-forest","Bracknell Forest Council","00MA","Business Support","Premises Development","Easthampstead Park Centre - Catering","Cleaning materials",09/12/2013 00:00:00,"30232824",205.2,"ALLIANCE DISPOSABLES LTD"
"Bracknell Forest Council","http://opendatacommunities.org/id/unitary-authority/bracknell-forest","Bracknell Forest Council","00MA","Vehicles &  Plant","Vehicles and Plant Summary Account","Fuel Card Holding Account","Petrol",30/11/2013 00:00:00,"6535455",5675.3,"ALLSTAR BUSINESS SOLUTIONS LTD"
"Bracknell Forest Council","http://opendatacommunities.org/id/unitary-authority/bracknell-forest","Bracknell Forest Council","00MA","Service Management & Support Services","Service Management & Support Services","Training - Environment & Public Protection","Training Costs",17/12/2013 00:00:00,"6536404",695,"ALPHA PARKING LTD"
"Bracknell Forest Council","http://opendatacommunities.org/id/unitary-authority/bracknell-forest","Bracknell Forest Council","00MA","Vehicles &  Plant","Vehicles and Plant Summary Account","Vehicles and Plant","Operating Lease Charge",19/11/2013 00:00:00,"6535013",4042.3,"ALPHABET (GB) LTD"
"Bracknell Forest Council","http://opendatacommunities.org/id/unitary-authority/bracknell-forest","Bracknell Forest Council","00MA","Vehicles &  Plant","Vehicles and Plant Summary Account","Vehicles and Plant","Operating Lease Charge",01/12/2013 00:00:00,"6537059",534.99,"ALPHABET (GB) LTD"
"Bracknell Forest Council","http://opendatacommunities.org/id/unitary-authority/bracknell-forest","Bracknell Forest Council","00MA","Older People (Aged 65 or Over)","Nursing Home Placements","Nursing EMI Placements - Elderly","Contracted Services",17/12/2013 00:00:00,"30232702",2754.4,"AMBERBROOK MANAGEMENT LTD"
"Bracknell Forest Council","http://opendatacommunities.org/id/unitary-authority/bracknell-forest","Bracknell Forest Council","00MA","Older People (Aged 65 or Over)","Nursing Home Placements","Nursing Home Placements-Elderly","Contracted Services",17/12/2013 00:00:00,"30232702",703.26,"AMBERBROOK MANAGEMENT LTD"
"Bracknell Forest Council","http://opendatacommunities.org/id/unitary-authority/bracknell-forest","Bracknell Forest Council","00MA","Older People (Aged 65 or Over)","Nursing Home Placements","Nursing Home Placements-Elderly","Contracted Services",17/12/2013 00:00:00,"30232702",2461.44,"AMBERBROOK MANAGEMENT LTD"
"Bracknell Forest Council","http://opendatacommunities.org/id/unitary-authority/bracknell-forest","Bracknell Forest Council","00MA","Older People (Aged 65 or Over)","Nursing Home Placements","Nursing Home Placements-Elderly","Contracted Services",17/12/2013 00:00:00,"30232702",2461.44,"AMBERBROOK MANAGEMENT LTD"
"Bracknell Forest Council","http://opendatacommunities.org/id/unitary-authority/bracknell-forest","Bracknell Forest Council","00MA","Older People (Aged 65 or Over)","Residential Care Home Placements","Residential Placements-Elderly","Contracted Services",17/12/2013 00:00:00,"30232702",2011.2,"AMBERBROOK MANAGEMENT LTD"
"Bracknell Forest Council","http://opendatacommunities.org/id/unitary-authority/bracknell-forest","Bracknell Forest Council","00MA","Older People (Aged 65 or Over)","Residential Care Home Placements","Residential Placements-Elderly","Contracted Services",17/12/2013 00:00:00,"30232702",2011.2,"AMBERBROOK MANAGEMENT LTD"
"Bracknell Forest Council","http://opendatacommunities.org/id/unitary-authority/bracknell-forest","Bracknell Forest Council","00MA","Older People (Aged 65 or Over)","Nursing Home Placements","Nursing Home Placements-Elderly","Contracted Services",17/12/2013 00:00:00,"30232702",2461.44,"AMBERBROOK MANAGEMENT LTD"
"Bracknell Forest Council","http://opendatacommunities.org/id/unitary-authority/bracknell-forest","Bracknell Forest Council","00MA","Older People (Aged 65 or Over)","Nursing Home Placements","Nursing EMI Placements - Elderly","Contracted Services",17/12/2013 00:00:00,"30232702",2461.44,"AMBERBROOK MANAGEMENT LTD"
"Bracknell Forest Council","http://opendatacommunities.org/id/unitary-authority/bracknell-forest","Bracknell Forest Council","00MA","Older People (Aged 65 or Over)","Nursing Home Placements","Nursing Home Placements-Elderly","Contracted Services",17/12/2013 00:00:00,"30232702",2461.44,"AMBERBROOK MANAGEMENT LTD"
"Bracknell Forest Council","http://opendatacommunities.org/id/unitary-authority/bracknell-forest","Bracknell Forest Council","00MA","Older People (Aged 65 or Over)","Nursing Home Placements","Nursing EMI Placements - Elderly","Contracted Services",17/12/2013 00:00:00,"30232702",5508.76,"AMBERBROOK MANAGEMENT LTD"
"Bracknell Forest Council","http://opendatacommunities.org/id/unitary-authority/bracknell-forest","Bracknell Forest Council","00MA","Older People (Aged 65 or Over)","Nursing Home Placements","Nursing EMI Placements - Elderly","Contracted Services",17/12/2013 00:00:00,"30232702",2461.44,"AMBERBROOK MANAGEMENT LTD"
"Bracknell Forest Council","http://opendatacommunities.org/id/unitary-authority/bracknell-forest","Bracknell Forest Council","00MA","Physical Disability/Sensory Impairment","Nursing Home Placements","Nursing Home Placements-Physical Disabty","Contracted Services",17/12/2013 00:00:00,"30232702",2754.4,"AMBERBROOK MANAGEMENT LTD"
"Bracknell Forest Council","http://opendatacommunities.org/id/unitary-authority/bracknell-forest","Bracknell Forest Council","00MA","Older People (Aged 65 or Over)","Nursing Home Placements","Nursing Home Placements-Elderly","Contracted Services",17/12/2013 00:00:00,"30232702",-3780.06,"AMBERBROOK MANAGEMENT LTD"
"Bracknell Forest Council","http://opendatacommunities.org/id/unitary-authority/bracknell-forest","Bracknell Forest Council","00MA","Older People (Aged 65 or Over)","Nursing Home Placements","Nursing Home Placements-Elderly","Contracted Services",17/12/2013 00:00:00,"30232702",2461.44,"AMBERBROOK MANAGEMENT LTD"
"Bracknell Forest Council","http://opendatacommunities.org/id/unitary-authority/bracknell-forest","Bracknell Forest Council","00MA","Older People (Aged 65 or Over)","Nursing Home Placements","Nursing Home Placements-Elderly","Contracted Services",17/12/2013 00:00:00,"30232702",2461.44,"AMBERBROOK MANAGEMENT LTD"
"Bracknell Forest Council","http://opendatacommunities.org/id/unitary-authority/bracknell-forest","Bracknell Forest Council","00MA","Older People (Aged 65 or Over)","Residential Care Home Placements","Residential EMI Placements - Elderly","Contracted Services",17/12/2013 00:00:00,"30232702",2011.2,"AMBERBROOK MANAGEMENT LTD"
"Bracknell Forest Council","http://opendatacommunities.org/id/unitary-authority/bracknell-forest","Bracknell Forest Council","00MA","Older People (Aged 65 or Over)","Nursing Home Placements","Nursing Home Placements MH 65 and Over","Contracted Services",17/12/2013 00:00:00,"30232702",2461.44,"AMBERBROOK MANAGEMENT LTD"
"Bracknell Forest Council","http://opendatacommunities.org/id/unitary-authority/bracknell-forest","Bracknell Forest Council","00MA","Older People (Aged 65 or Over)","Residential Care Home Placements","Residential EMI Placements - Elderly","Contracted Services",17/12/2013 00:00:00,"30232702",4812.51,"AMBERBROOK MANAGEMENT LTD"
"Bracknell Forest Council","http://opendatacommunities.org/id/unitary-authority/bracknell-forest","Bracknell Forest Council","00MA","Older People (Aged 65 or Over)","Residential Care Home Placements","Residential EMI Placements - Elderly","Contracted Services",17/12/2013 00:00:00,"30232702",2011.2,"AMBERBROOK MANAGEMENT LTD"
"Bracknell Forest Council","http://opendatacommunities.org/id/unitary-authority/bracknell-forest","Bracknell Forest Council","00MA","Learning Disability (under 65)","Residential Care Home Placements","Residential Placements-Lrng Disab","Contracted Services",17/12/2013 00:00:00,"30232702",8040,"AMBERWOOD LODGE"
"Bracknell Forest Council","http://opendatacommunities.org/id/unitary-authority/bracknell-forest","Bracknell Forest Council","00MA","Business Support","Premises Development","Easthampstead Park Conference Centre","R&M - Service Contracts",05/11/2013 00:00:00,"6535526",1042.34,"AMBIUS"
"Bracknell Forest Council","http://opendatacommunities.org/id/unitary-authority/bracknell-forest","Bracknell Forest Council","00MA","Family Support Services","Other family support services","C&F Section 17 Over 11's Team","Other Support to Clients",04/12/2013 00:00:00,"6535841",810,"AMEGREEN CHILDRENS SERVICES"
"Bracknell Forest Council","http://opendatacommunities.org/id/unitary-authority/bracknell-forest","Bracknell Forest Council","00MA","Family Support Services","Other family support services","C&F Section 17 Over 11's Team","Other Support to Clients",04/12/2013 00:00:00,"6535843",1920,"AMEGREEN CHILDRENS SERVICES"
"Bracknell Forest Council","http://opendatacommunities.org/id/unitary-authority/bracknell-forest","Bracknell Forest Council","00MA","Service Management & Support Services","Service Management & Support Services","Departmental Office Services","Furniture - Purchase",25/11/2013 00:00:00,"6535824",834,"AMG OFFICE FURNITURE LIMITED"
"Bracknell Forest Council","http://opendatacommunities.org/id/unitary-authority/bracknell-forest","Bracknell Forest Council","00MA","Commissioning and Social Work","Commissioning and Social Work","Family Placement","Agency",04/10/2013 00:00:00,"6536018",2144,"AMMONITE PSYCHOTHERAPY LIMITED"
"Bracknell Forest Council","http://opendatacommunities.org/id/unitary-authority/bracknell-forest","Bracknell Forest Council","00MA","Commissioning and Social Work","Commissioning and Social Work","Family Placement","Agency",20/12/2013 00:00:00,"6536898",2006.8,"AMMONITE PSYCHOTHERAPY LIMITED"
"Bracknell Forest Council","http://opendatacommunities.org/id/unitary-authority/bracknell-forest","Bracknell Forest Council","00MA","Commissioning and Social Work","Commissioning and Social Work","Family Placement","Agency",20/12/2013 00:00:00,"6536899",1949.6,"AMMONITE PSYCHOTHERAPY LIMITED"
"Bracknell Forest Council","http://opendatacommunities.org/id/unitary-authority/bracknell-forest","Bracknell Forest Council","00MA","Older People (Aged 65 or Over)","Residential Care Home Placements","Residential Placements-Elderly","Contracted Services",17/12/2013 00:00:00,"30232702",1732.36,"ANCHOR TRUST"
"Bracknell Forest Council","http://opendatacommunities.org/id/unitary-authority/bracknell-forest","Bracknell Forest Council","00MA","Mental Health Needs (Under 65)","Nursing Home Placements","Nursing Home Placements-Mental Illness","Contracted Services",17/12/2013 00:00:00,"30232702",4400,"APPLE HILL NURSING HOME"
"Bracknell Forest Council","http://opendatacommunities.org/id/unitary-authority/bracknell-forest","Bracknell Forest Council","00MA","Family Support Services","Home care","Assistance Cash in Kind/Care Needs","Voluntary Sector Service Providers",03/09/2013 00:00:00,"6535108",1303.06,"ARK HOME HEALTHCARE LTD"
"Bracknell Forest Council","http://opendatacommunities.org/id/unitary-authority/bracknell-forest","Bracknell Forest Council","00MA","Family Support Services","Home care","Assistance Cash in Kind/Care Needs","Voluntary Sector Service Providers",10/06/2013 00:00:00,"6535111",890,"ARK HOME HEALTHCARE LTD"
"Bracknell Forest Council","http://opendatacommunities.org/id/unitary-authority/bracknell-forest","Bracknell Forest Council","00MA","Family Support Services","Home care","Assistance Cash in Kind/Care Needs","Voluntary Sector Service Providers",03/12/2013 00:00:00,"6536833",946.2,"ARK HOME HEALTHCARE LTD"
"Bracknell Forest Council","http://opendatacommunities.org/id/unitary-authority/bracknell-forest","Bracknell Forest Council","00MA","Early Years","Centrally managed Expenditure - Early Years","Early Years and Childcare","Grants and Donations",20/12/2013 00:00:00,"30233080",7809.1,"ASCOT & CRANBOURNE PRE-SCHOOL"
"Bracknell Forest Council","http://opendatacommunities.org/id/unitary-authority/bracknell-forest","Bracknell Forest Council","00MA","Older People (Aged 65 or Over)","Residential Care Home Placements","Respite EMI","Contracted Services",17/12/2013 00:00:00,"30232701",1000,"ASCOT NURSING HOME LTD"
"Bracknell Forest Council","http://opendatacommunities.org/id/unitary-authority/bracknell-forest","Bracknell Forest Council","00MA","Mental Health Needs (Under 65)","Nursing Home Placements","Nursing Home Placements-Mental Illness","Contracted Services",17/12/2013 00:00:00,"30232702",2609.44,"ASCOT NURSING HOME LTD"
"Bracknell Forest Council","http://opendatacommunities.org/id/unitary-authority/bracknell-forest","Bracknell Forest Council","00MA","Physical Disability/Sensory Impairment","Nursing Home Placements","Nursing Home Placements-Physical Disabty","Contracted Services",17/12/2013 00:00:00,"30232702",4356.92,"ASCOT NURSING HOME LTD"
"Bracknell Forest Council","http://opendatacommunities.org/id/unitary-authority/bracknell-forest","Bracknell Forest Council","00MA","Older People (Aged 65 or Over)","Nursing Home Placements","Nursing Home Placements-Elderly","Contracted Services",17/12/2013 00:00:00,"30232702",2461.44,"CARE UK COMMUNITY PARTNERSHIPS LTD"
"Bracknell Forest Council","http://opendatacommunities.org/id/unitary-authority/bracknell-forest","Bracknell Forest Council","00MA","Older People (Aged 65 or Over)","Nursing Home Placements","Nursing Home Placements-Elderly","Contracted Services",17/12/2013 00:00:00,"30232702",2461.44,"CARE UK COMMUNITY PARTNERSHIPS LTD"
"Bracknell Forest Council","http://opendatacommunities.org/id/unitary-authority/bracknell-forest","Bracknell Forest Council","00MA","Older People (Aged 65 or Over)","Home Care","Homecare EMI","Contracted Services",10/12/2013 00:00:00,"30232302",1664.4,"CARE UK HOMECARE LTD"
"Bracknell Forest Council","http://opendatacommunities.org/id/unitary-authority/bracknell-forest","Bracknell Forest Council","00MA","Older People (Aged 65 or Over)","Home Care","Homecare EMI","Contracted Services",10/12/2013 00:00:00,"30232302",908.2,"CARE UK HOMECARE LTD"
"Bracknell Forest Council","http://opendatacommunities.org/id/unitary-authority/bracknell-forest","Bracknell Forest Council","00MA","Older People (Aged 65 or Over)","Home Care","Homecare EMI","Contracted Services",10/12/2013 00:00:00,"30232302",60.8,"CARE UK HOMECARE LTD"
"Bracknell Forest Council","http://opendatacommunities.org/id/unitary-authority/bracknell-forest","Bracknell Forest Council","00MA","Older People (Aged 65 or Over)","Home Care","Homecare EMI","Contracted Services",10/12/2013 00:00:00,"30232302",630.8,"CARE UK HOMECARE LTD"
"Bracknell Forest Council","http://opendatacommunities.org/id/unitary-authority/bracknell-forest","Bracknell Forest Council","00MA","Older People (Aged 65 or Over)","Home Care","Homecare EMI","Contracted Services",10/12/2013 00:00:00,"30232302",152,"CARE UK HOMECARE LTD"
"Bracknell Forest Council","http://opendatacommunities.org/id/unitary-authority/bracknell-forest","Bracknell Forest Council","00MA","Older People (Aged 65 or Over)","Home Care","Home Care-Elderly","Contracted Services",10/12/2013 00:00:00,"30232302",790.4,"CARE UK HOMECARE LTD"
"Bracknell Forest Council","http://opendatacommunities.org/id/unitary-authority/bracknell-forest","Bracknell Forest Council","00MA","Older People (Aged 65 or Over)","Home Care","Home Care-Elderly","Contracted Services",10/12/2013 00:00:00,"30232302",638.4,"CARE UK HOMECARE LTD"
"Bracknell Forest Council","http://opendatacommunities.org/id/unitary-authority/bracknell-forest","Bracknell Forest Council","00MA","Older People (Aged 65 or Over)","Home Care","Home Care-Elderly","Contracted Services",10/12/2013 00:00:00,"30232302",520.6,"CARE UK HOMECARE LTD"
"Bracknell Forest Council","http://opendatacommunities.org/id/unitary-authority/bracknell-forest","Bracknell Forest Council","00MA","Older People (Aged 65 or Over)","Home Care","Home Care-Elderly","Contracted Services",10/12/2013 00:00:00,"30232302",558.6,"CARE UK HOMECARE LTD"
"Bracknell Forest Council","http://opendatacommunities.org/id/unitary-authority/bracknell-forest","Bracknell Forest Council","00MA","Older People (Aged 65 or Over)","Home Care","Home Care-Elderly","Contracted Services",10/12/2013 00:00:00,"30232302",64.6,"CARE UK HOMECARE LTD"
"Bracknell Forest Council","http://opendatacommunities.org/id/unitary-authority/bracknell-forest","Bracknell Forest Council","00MA","Older People (Aged 65 or Over)","Home Care","Home Care-Elderly","Contracted Services",10/12/2013 00:00:00,"30232302",3028.6,"CARE UK HOMECARE LTD"
"Bracknell Forest Council","http://opendatacommunities.org/id/unitary-authority/bracknell-forest","Bracknell Forest Council","00MA","Physical Disability/Sensory Impairment","Homecare","Home Care-Phys Disab","Contracted Services",10/12/2013 00:00:00,"30232302",957.6,"CARE UK HOMECARE LTD"
"Bracknell Forest Council","http://opendatacommunities.org/id/unitary-authority/bracknell-forest","Bracknell Forest Council","00MA","Physical Disability/Sensory Impairment","Homecare","Home Care-Phys Disab","Contracted Services",10/12/2013 00:00:00,"30232302",197.6,"CARE UK HOMECARE LTD"
"Bracknell Forest Council","http://opendatacommunities.org/id/unitary-authority/bracknell-forest","Bracknell Forest Council","00MA","Older People (Aged 65 or Over)","Nursing Home Placements","Nursing Home Placements MH 65 and Over","Contracted Services",17/12/2013 00:00:00,"30232702",4238.28,"ASCOT NURSING HOME LTD"
"Bracknell Forest Council","http://opendatacommunities.org/id/unitary-authority/bracknell-forest","Bracknell Forest Council","00MA","Older People (Aged 65 or Over)","Residential Care Home Placements","Respite EMI","Contracted Services",17/12/2013 00:00:00,"30232704",450,"ASCOT NURSING HOME LTD"
"Bracknell Forest Council","http://opendatacommunities.org/id/unitary-authority/bracknell-forest","Bracknell Forest Council","00MA","Older People (Aged 65 or Over)","Nursing Home Placements","Nursing Home Placements-Elderly","Contracted Services",17/12/2013 00:00:00,"30232702",2461.44,"ASCOT RESIDENTIAL HOMES LTD"
"Bracknell Forest Council","http://opendatacommunities.org/id/unitary-authority/bracknell-forest","Bracknell Forest Council","00MA","Older People (Aged 65 or Over)","Nursing Home Placements","Nursing Home Placements-Elderly","Contracted Services",17/12/2013 00:00:00,"30232702",2461.44,"ASCOT RESIDENTIAL HOMES LTD"
"Bracknell Forest Council","http://opendatacommunities.org/id/unitary-authority/bracknell-forest","Bracknell Forest Council","00MA","Older People (Aged 65 or Over)","Nursing Home Placements","Nursing Home Placements-Elderly","Contracted Services",17/12/2013 00:00:00,"30232702",2932.27,"ASCOT RESIDENTIAL HOMES LTD"
"Bracknell Forest Council","http://opendatacommunities.org/id/unitary-authority/bracknell-forest","Bracknell Forest Council","00MA","Older People (Aged 65 or Over)","Nursing Home Placements","Nursing Home Placements-Elderly","Contracted Services",17/12/2013 00:00:00,"30232702",2461.44,"ASCOT RESIDENTIAL HOMES LTD"
"Bracknell Forest Council","http://opendatacommunities.org/id/unitary-authority/bracknell-forest","Bracknell Forest Council","00MA","Holding Accounts","Landscape Services","Landscape Services Operational","Materials",09/11/2013 00:00:00,"6535038",559.93,"ASHVALE LANDSCAPE SUPPLIES"
"Bracknell Forest Council","http://opendatacommunities.org/id/unitary-authority/bracknell-forest","Bracknell Forest Council","00MA","Management and Support Services - CYPL","Holding Codes - net nil","Education Library Service - Resources","Audio/Visual materials",25/11/2013 00:00:00,"6534673",1830.65,"ASKEWS & HOLTS LIBRARY SERVICE"
"Bracknell Forest Council","http://opendatacommunities.org/id/unitary-authority/bracknell-forest","Bracknell Forest Council","00MA","Management and Support Services - CYPL","Holding Codes - net nil","Education Library Service - Resources","Audio/Visual materials",11/11/2013 00:00:00,"6534674",2859.29,"ASKEWS & HOLTS LIBRARY SERVICE"
"Bracknell Forest Council","http://opendatacommunities.org/id/unitary-authority/bracknell-forest","Bracknell Forest Council","00MA","Management and Support Services - CYPL","Holding Codes - net nil","Education Library Service - Resources","Audio/Visual materials",28/10/2013 00:00:00,"6535502",1052.38,"ASKEWS & HOLTS LIBRARY SERVICE"
"Bracknell Forest Council","http://opendatacommunities.org/id/unitary-authority/bracknell-forest","Bracknell Forest Council","00MA","Libraries","Stock Ordering, Cataloguing & Distribution","Library Book Fund","Audio/Visual materials",02/12/2013 00:00:00,"6535700",596.1,"ASKEWS & HOLTS LIBRARY SERVICE"
"Bracknell Forest Council","http://opendatacommunities.org/id/unitary-authority/bracknell-forest","Bracknell Forest Council","00MA","Libraries","Stock Ordering, Cataloguing & Distribution","Library Book Fund","Audio/Visual materials",02/12/2013 00:00:00,"6535700",1243.78,"ASKEWS & HOLTS LIBRARY SERVICE"
"Bracknell Forest Council","http://opendatacommunities.org/id/unitary-authority/bracknell-forest","Bracknell Forest Council","00MA","Management and Support Services - CYPL","Holding Codes - net nil","Education Library Service - Resources","Audio/Visual materials",02/12/2013 00:00:00,"6535888",1494.58,"ASKEWS & HOLTS LIBRARY SERVICE"
"Bracknell Forest Council","http://opendatacommunities.org/id/unitary-authority/bracknell-forest","Bracknell Forest Council","00MA","Physical Disability/Sensory Impairment","Homecare","Home Care-Phys Disab","Contracted Services",10/12/2013 00:00:00,"30232302",3123.6,"CARE UK HOMECARE LTD"
"Bracknell Forest Council","http://opendatacommunities.org/id/unitary-authority/bracknell-forest","Bracknell Forest Council","00MA","Older People (Aged 65 or Over)","Home Care","Home Care-Elderly","Contracted Services",10/12/2013 00:00:00,"30232302",623.2,"CARE UK HOMECARE LTD"
"Bracknell Forest Council","http://opendatacommunities.org/id/unitary-authority/bracknell-forest","Bracknell Forest Council","00MA","Older People (Aged 65 or Over)","Home Care","Home Care-Elderly","Contracted Services",10/12/2013 00:00:00,"30232302",532,"CARE UK HOMECARE LTD"
"Bracknell Forest Council","http://opendatacommunities.org/id/unitary-authority/bracknell-forest","Bracknell Forest Council","00MA","Older People (Aged 65 or Over)","Home Care","Home Care-Elderly","Contracted Services",10/12/2013 00:00:00,"30232302",722,"CARE UK HOMECARE LTD"
"Bracknell Forest Council","http://opendatacommunities.org/id/unitary-authority/bracknell-forest","Bracknell Forest Council","00MA","Older People (Aged 65 or Over)","Home Care","Home Care-Elderly","Contracted Services",10/12/2013 00:00:00,"30232302",1067.8,"CARE UK HOMECARE LTD"
"Bracknell Forest Council","http://opendatacommunities.org/id/unitary-authority/bracknell-forest","Bracknell Forest Council","00MA","Older People (Aged 65 or Over)","Home Care","Home Care-Elderly","Contracted Services",10/12/2013 00:00:00,"30232302",1592.2,"CARE UK HOMECARE LTD"
"Bracknell Forest Council","http://opendatacommunities.org/id/unitary-authority/bracknell-forest","Bracknell Forest Council","00MA","Older People (Aged 65 or Over)","Home Care","Home Care-Elderly","Contracted Services",10/12/2013 00:00:00,"30232302",1945.6,"CARE UK HOMECARE LTD"
"Bracknell Forest Council","http://opendatacommunities.org/id/unitary-authority/bracknell-forest","Bracknell Forest Council","00MA","Older People (Aged 65 or Over)","Home Care","Home Care-Elderly","Contracted Services",10/12/2013 00:00:00,"30232302",364.8,"CARE UK HOMECARE LTD"
"Bracknell Forest Council","http://opendatacommunities.org/id/unitary-authority/bracknell-forest","Bracknell Forest Council","00MA","Older People (Aged 65 or Over)","Home Care","Homecare PD 65 and Over","Contracted Services",10/12/2013 00:00:00,"30232302",2537.4,"CARE UK HOMECARE LTD"
"Bracknell Forest Council","http://opendatacommunities.org/id/unitary-authority/bracknell-forest","Bracknell Forest Council","00MA","Physical Disability/Sensory Impairment","Homecare","Home Care-Phys Disab","Contracted Services",10/12/2013 00:00:00,"30232302",1018.4,"CARE UK HOMECARE LTD"
"Bracknell Forest Council","http://opendatacommunities.org/id/unitary-authority/bracknell-forest","Bracknell Forest Council","00MA","Physical Disability/Sensory Impairment","Homecare","Home Care-Phys Disab","Contracted Services",10/12/2013 00:00:00,"30232302",1117.2,"CARE UK HOMECARE LTD"
"Bracknell Forest Council","http://opendatacommunities.org/id/unitary-authority/bracknell-forest","Bracknell Forest Council","00MA","Older People (Aged 65 or Over)","Home Care","Home Care-Elderly","Contracted Services",10/12/2013 00:00:00,"30232302",456,"CARE UK HOMECARE LTD"
"Bracknell Forest Council","http://opendatacommunities.org/id/unitary-authority/bracknell-forest","Bracknell Forest Council","00MA","Older People (Aged 65 or Over)","Home Care","Home Care-Elderly","Contracted Services",10/12/2013 00:00:00,"30232302",91.2,"CARE UK HOMECARE LTD"
"Bracknell Forest Council","http://opendatacommunities.org/id/unitary-authority/bracknell-forest","Bracknell Forest Council","00MA","Older People (Aged 65 or Over)","Home Care","Home Care-Elderly","Contracted Services",10/12/2013 00:00:00,"30232302",558.6,"CARE UK HOMECARE LTD"
"Bracknell Forest Council","http://opendatacommunities.org/id/unitary-authority/bracknell-forest","Bracknell Forest Council","00MA","Older People (Aged 65 or Over)","Home Care","Home Care-Elderly","Contracted Services",10/12/2013 00:00:00,"30232302",2401.6,"CARE UK HOMECARE LTD"
"Bracknell Forest Council","http://opendatacommunities.org/id/unitary-authority/bracknell-forest","Bracknell Forest Council","00MA","Management and Support Services - CYPL","Holding Codes - net nil","Education Library Service - Resources","Audio/Visual materials",09/12/2013 00:00:00,"6536381",2861.3,"ASKEWS & HOLTS LIBRARY SERVICE"
"Bracknell Forest Council","http://opendatacommunities.org/id/unitary-authority/bracknell-forest","Bracknell Forest Council","00MA","Libraries","Stock Ordering, Cataloguing & Distribution","Library Book Fund","Audio/Visual materials",09/12/2013 00:00:00,"6536485",554.69,"ASKEWS & HOLTS LIBRARY SERVICE"
"Bracknell Forest Council","http://opendatacommunities.org/id/unitary-authority/bracknell-forest","Bracknell Forest Council","00MA","Libraries","Stock Ordering, Cataloguing & Distribution","Library Book Fund","Audio/Visual materials",16/12/2013 00:00:00,"6536486",582.36,"ASKEWS & HOLTS LIBRARY SERVICE"
"Bracknell Forest Council","http://opendatacommunities.org/id/unitary-authority/bracknell-forest","Bracknell Forest Council","00MA","Structural Maintenance","Bridges","Bridges","Other Fees for Bought-in Services",04/12/2013 00:00:00,"6535745",4456.53,"ATKINS LIMITED"
"Bracknell Forest Council","http://opendatacommunities.org/id/unitary-authority/bracknell-forest","Bracknell Forest Council","00MA","Structural Maintenance","Bridges","Bridges - Other Roads","Consultants Fees",04/12/2013 00:00:00,"6535745",2001.56,"ATKINS LIMITED"
"Bracknell Forest Council","http://opendatacommunities.org/id/unitary-authority/bracknell-forest","Bracknell Forest Council","00MA","","","Structural Maintenance of Bridges","Other Direct Expenses",04/12/2013 00:00:00,"6535745",3657,"ATKINS LIMITED"
"Bracknell Forest Council","http://opendatacommunities.org/id/unitary-authority/bracknell-forest","Bracknell Forest Council","00MA","","","Twin Bridges","Other Direct Expenses",04/12/2013 00:00:00,"6535745",1364.05,"ATKINS LIMITED"
"Bracknell Forest Council","http://opendatacommunities.org/id/unitary-authority/bracknell-forest","Bracknell Forest Council","00MA","Management and Support Services - CYPL","Holding Codes - net nil","Education Library Service","Other Fees for Bought-in Services",02/12/2013 00:00:00,"6536658",778.78,"AUTHORS ALOUD UK"
"Bracknell Forest Council","http://opendatacommunities.org/id/unitary-authority/bracknell-forest","Bracknell Forest Council","00MA","Learning Disability (under 65)","Residential Care Home Placements","Residential Placements-Lrng Disab","Contracted Services",17/12/2013 00:00:00,"30232702",5260.52,"AUTISM SPECIALISED CARE HOMES LTD"
"Bracknell Forest Council","http://opendatacommunities.org/id/unitary-authority/bracknell-forest","Bracknell Forest Council","00MA","Learning Disability (under 65)","Residential Care Home Placements","Residential Placements-Lrng Disab","Contracted Services",17/12/2013 00:00:00,"30232702",6025.84,"AVON AUTISTIC FOUNDATION"
"Bracknell Forest Council","http://opendatacommunities.org/id/unitary-authority/bracknell-forest","Bracknell Forest Council","00MA","Economic Development","Economic Development","Town Centre Management","Other Fees for Bought-in Services",10/12/2013 00:00:00,"6535303",7500,"AYLESFORD ELECTRICAL CONTRACTORS"
"Bracknell Forest Council","http://opendatacommunities.org/id/unitary-authority/bracknell-forest","Bracknell Forest Council","00MA","Cemeteries, Crematoria & Mortuary Services","Cemeteries & Crematorium","Easthampstead Park Cemetery & Crematorium","Contract Cleaning",26/11/2013 00:00:00,"6534935",857,"BAC CLEANING SERVICES"
"Bracknell Forest Council","http://opendatacommunities.org/id/unitary-authority/bracknell-forest","Bracknell Forest Council","00MA","Cemeteries, Crematoria & Mortuary Services","Cemeteries & Crematorium","Easthampstead Park Cemetery & Crematorium","Contract Cleaning",28/12/2013 00:00:00,"6537028",857,"BAC CLEANING SERVICES"
"Bracknell Forest Council","http://opendatacommunities.org/id/unitary-authority/bracknell-forest","Bracknell Forest Council","00MA","Physical Activity","Physical activity for children","Physical Activity - Children (Berks)","Contracted Services",16/12/2013 00:00:00,"6536412",23546.21,"BACYP"
"Bracknell Forest Council","http://opendatacommunities.org/id/unitary-authority/bracknell-forest","Bracknell Forest Council","00MA","Street Lighting (including Energy Costs)","Street Lighting","Lighting","Contracted Services",02/12/2013 00:00:00,"6535567",65756.16,"BALFOUR BEATTY INFRASTRUCTURE SERVICES"
"Bracknell Forest Council","http://opendatacommunities.org/id/unitary-authority/bracknell-forest","Bracknell Forest Council","00MA","Services to Young People","Other Services to Young People","Portman Close Running Costs","Office Stationery",31/12/2013 00:00:00,"30233373",42.28,"BANNER"
"Bracknell Forest Council","http://opendatacommunities.org/id/unitary-authority/bracknell-forest","Bracknell Forest Council","00MA","Management and Support Services - CYPL","Holding Codes - net nil","South East Grid for Learning","Office Stationery",31/12/2013 00:00:00,"30233373",1.69,"BANNER"
"Bracknell Forest Council","http://opendatacommunities.org/id/unitary-authority/bracknell-forest","Bracknell Forest Council","00MA","Management and Support Services - CYPL","Holding Codes - net nil","South East Grid for Learning","Office Stationery",31/12/2013 00:00:00,"30233373",0.25,"BANNER"
"Bracknell Forest Council","http://opendatacommunities.org/id/unitary-authority/bracknell-forest","Bracknell Forest Council","00MA","Services to Young People","Other Services to Young People","Portman Close Running Costs","Office Stationery",31/12/2013 00:00:00,"30233373",21.02,"BANNER"
"Bracknell Forest Council","http://opendatacommunities.org/id/unitary-authority/bracknell-forest","Bracknell Forest Council","00MA","Services to Young People","Other Services to Young People","Portman Close Running Costs","Office Stationery",31/12/2013 00:00:00,"30233373",18.55,"BANNER"
"Bracknell Forest Council","http://opendatacommunities.org/id/unitary-authority/bracknell-forest","Bracknell Forest Council","00MA","Central Support Services - COF","Customer Service Centre","Cashiers Services","Office Stationery",31/12/2013 00:00:00,"30233373",2.35,"BANNER"
"Bracknell Forest Council","http://opendatacommunities.org/id/unitary-authority/bracknell-forest","Bracknell Forest Council","00MA","Recreation, Sports and Leisure","Dual Use Centres","Edgbarrow/Sandhurst Joint Expenses","Office Stationery",31/12/2013 00:00:00,"30233373",30.52,"BANNER"
"Bracknell Forest Council","http://opendatacommunities.org/id/unitary-authority/bracknell-forest","Bracknell Forest Council","00MA","Recreation, Sports and Leisure","Dual Use Centres","Edgbarrow/Sandhurst Joint Expenses","Office Stationery",31/12/2013 00:00:00,"30233373",2.92,"BANNER"
"Bracknell Forest Council","http://opendatacommunities.org/id/unitary-authority/bracknell-forest","Bracknell Forest Council","00MA","Recreation, Sports and Leisure","Dual Use Centres","Edgbarrow/Sandhurst Joint Expenses","Office Stationery",31/12/2013 00:00:00,"30233373",2.8,"BANNER"
"Bracknell Forest Council","http://opendatacommunities.org/id/unitary-authority/bracknell-forest","Bracknell Forest Council","00MA","Management and Support Services - CYPL","Unallocated Early years Related Expenditure","SSEYCG Management & Admin","Office Stationery",31/12/2013 00:00:00,"30233373",3.3,"BANNER"
"Bracknell Forest Council","http://opendatacommunities.org/id/unitary-authority/bracknell-forest","Bracknell Forest Council","00MA","Other Welfare Services","Other Welfare Services","Forestcare - Operational","Office Stationery",31/12/2013 00:00:00,"30233373",3.12,"BANNER"
"Bracknell Forest Council","http://opendatacommunities.org/id/unitary-authority/bracknell-forest","Bracknell Forest Council","00MA","Other Welfare Services","Other Welfare Services","Forestcare - Operational","Office Stationery",31/12/2013 00:00:00,"30233373",2.96,"BANNER"
"Bracknell Forest Council","http://opendatacommunities.org/id/unitary-authority/bracknell-forest","Bracknell Forest Council","00MA","Recreation, Sports and Leisure","Indoor Sports & Recreation Facilities","Leisure DSO - Leisure Centre","Office Stationery",31/12/2013 00:00:00,"30233373",17.1,"BANNER"
"Bracknell Forest Council","http://opendatacommunities.org/id/unitary-authority/bracknell-forest","Bracknell Forest Council","00MA","Central Support Services - COF","Legal","Legal Services","Office Stationery",31/12/2013 00:00:00,"30233373",36.32,"BANNER"
"Bracknell Forest Council","http://opendatacommunities.org/id/unitary-authority/bracknell-forest","Bracknell Forest Council","00MA","Central Support Services - COF","Legal","Legal Services","Office Stationery",31/12/2013 00:00:00,"30233373",86.3,"BANNER"
"Bracknell Forest Council","http://opendatacommunities.org/id/unitary-authority/bracknell-forest","Bracknell Forest Council","00MA","Holding Accounts in Budget Book COF","Corporate Services - Office Services","Office Services - General Expenses","Office Stationery",31/12/2013 00:00:00,"30233373",50,"BANNER"
"Bracknell Forest Council","http://opendatacommunities.org/id/unitary-authority/bracknell-forest","Bracknell Forest Council","00MA","Management and Support Services - CYPL","Holding Codes - net nil","South East Grid for Learning","Office Stationery",31/12/2013 00:00:00,"30233373",12.48,"BANNER"
"Bracknell Forest Council","http://opendatacommunities.org/id/unitary-authority/bracknell-forest","Bracknell Forest Council","00MA","Management and Support Services - CYPL","Holding Codes - net nil","South East Grid for Learning","Office Stationery",31/12/2013 00:00:00,"30233373",12.06,"BANNER"
"Bracknell Forest Council","http://opendatacommunities.org/id/unitary-authority/bracknell-forest","Bracknell Forest Council","00MA","Management and Support Services - CYPL","Strategy, Resources and Early Interventions","Reception & Office Services","Office Stationery",31/12/2013 00:00:00,"30233373",2.1,"BANNER"
"Bracknell Forest Council","http://opendatacommunities.org/id/unitary-authority/bracknell-forest","Bracknell Forest Council","00MA","Management and Support Services - CYPL","Strategy, Resources and Early Interventions","Reception & Office Services","Office Stationery",31/12/2013 00:00:00,"30233373",1.1,"BANNER"
"Bracknell Forest Council","http://opendatacommunities.org/id/unitary-authority/bracknell-forest","Bracknell Forest Council","00MA","Management and Support Services - CYPL","Strategy, Resources and Early Interventions","Reception & Office Services","Office Stationery",31/12/2013 00:00:00,"30233373",221.1,"BANNER"
"Bracknell Forest Council","http://opendatacommunities.org/id/unitary-authority/bracknell-forest","Bracknell Forest Council","00MA","Management and Support Services - CYPL","Strategy, Resources and Early Interventions","Reception & Office Services","Office Stationery",31/12/2013 00:00:00,"30233373",49.54,"BANNER"
"Bracknell Forest Council","http://opendatacommunities.org/id/unitary-authority/bracknell-forest","Bracknell Forest Council","00MA","Management and Support Services - CYPL","Strategy, Resources and Early Interventions","Reception & Office Services","Office Stationery",31/12/2013 00:00:00,"30233373",37.96,"BANNER"
"Bracknell Forest Council","http://opendatacommunities.org/id/unitary-authority/bracknell-forest","Bracknell Forest Council","00MA","Management and Support Services - CYPL","Strategy, Resources and Early Interventions","Reception & Office Services","Office Stationery",31/12/2013 00:00:00,"30233373",26.56,"BANNER"
"Bracknell Forest Council","http://opendatacommunities.org/id/unitary-authority/bracknell-forest","Bracknell Forest Council","00MA","Management and Support Services - CYPL","Strategy, Resources and Early Interventions","Reception & Office Services","Office Stationery",31/12/2013 00:00:00,"30233373",14.4,"BANNER"
"Bracknell Forest Council","http://opendatacommunities.org/id/unitary-authority/bracknell-forest","Bracknell Forest Council","00MA","Management and Support Services - CYPL","Strategy, Resources and Early Interventions","Reception & Office Services","Office Stationery",31/12/2013 00:00:00,"30233373",7.38,"BANNER"
"Bracknell Forest Council","http://opendatacommunities.org/id/unitary-authority/bracknell-forest","Bracknell Forest Council","00MA","Management and Support Services - CYPL","Strategy, Resources and Early Interventions","Reception & Office Services","Office Stationery",31/12/2013 00:00:00,"30233373",61.45,"BANNER"
"Bracknell Forest Council","http://opendatacommunities.org/id/unitary-authority/bracknell-forest","Bracknell Forest Council","00MA","Management and Support Services - CYPL","Strategy, Resources and Early Interventions","Reception & Office Services","Office Stationery",31/12/2013 00:00:00,"30233373",59.2,"BANNER"
"Bracknell Forest Council","http://opendatacommunities.org/id/unitary-authority/bracknell-forest","Bracknell Forest Council","00MA","Management and Support Services - CYPL","Strategy, Resources and Early Interventions","Reception & Office Services","Office Stationery",31/12/2013 00:00:00,"30233373",50.73,"BANNER"
"Bracknell Forest Council","http://opendatacommunities.org/id/unitary-authority/bracknell-forest","Bracknell Forest Council","00MA","Management and Support Services - CYPL","Strategy, Resources and Early Interventions","Reception & Office Services","Office Stationery",31/12/2013 00:00:00,"30233373",14.13,"BANNER"
"Bracknell Forest Council","http://opendatacommunities.org/id/unitary-authority/bracknell-forest","Bracknell Forest Council","00MA","Management and Support Services - CYPL","Strategy, Resources and Early Interventions","Reception & Office Services","Office Stationery",31/12/2013 00:00:00,"30233373",8.9,"BANNER"
"Bracknell Forest Council","http://opendatacommunities.org/id/unitary-authority/bracknell-forest","Bracknell Forest Council","00MA","Services to Young People","Other Services to Young People","Portman Close Running Costs","Office Stationery",31/12/2013 00:00:00,"30233373",30.24,"BANNER"
"Bracknell Forest Council","http://opendatacommunities.org/id/unitary-authority/bracknell-forest","Bracknell Forest Council","00MA","Services to Young People","Other Services to Young People","Portman Close Running Costs","Office Stationery",31/12/2013 00:00:00,"30233373",124.8,"BANNER"
"Bracknell Forest Council","http://opendatacommunities.org/id/unitary-authority/bracknell-forest","Bracknell Forest Council","00MA","Older People (Aged 65 or Over)","Assessment & Care Management","Emergency Duty Team (Out of Hours Serv)","Office Stationery",31/12/2013 00:00:00,"30233373",56.36,"BANNER"
"Bracknell Forest Council","http://opendatacommunities.org/id/unitary-authority/bracknell-forest","Bracknell Forest Council","00MA","Support Services & Management Costs","Management and Administration","Head of Service -Adults","Office Stationery",31/12/2013 00:00:00,"30233373",25.84,"BANNER"
"Bracknell Forest Council","http://opendatacommunities.org/id/unitary-authority/bracknell-forest","Bracknell Forest Council","00MA","Support Services & Management Costs","Management and Administration","Head of Service -Adults","Office Stationery",31/12/2013 00:00:00,"30233373",5.7,"BANNER"
"Bracknell Forest Council","http://opendatacommunities.org/id/unitary-authority/bracknell-forest","Bracknell Forest Council","00MA","Support Services & Management Costs","Management and Administration","Head of Service -Adults","Office Stationery",31/12/2013 00:00:00,"30233373",3.15,"BANNER"
"Bracknell Forest Council","http://opendatacommunities.org/id/unitary-authority/bracknell-forest","Bracknell Forest Council","00MA","Support Services & Management Costs","Management and Administration","Head of Service -Adults","Office Stationery",31/12/2013 00:00:00,"30233373",1.89,"BANNER"
"Bracknell Forest Council","http://opendatacommunities.org/id/unitary-authority/bracknell-forest","Bracknell Forest Council","00MA","Youth Justice","Youth Offender Teams","YJB Core Funding","Office Stationery",31/12/2013 00:00:00,"30233373",6.75,"BANNER"
"Bracknell Forest Council","http://opendatacommunities.org/id/unitary-authority/bracknell-forest","Bracknell Forest Council","00MA","Youth Justice","Youth Offender Teams","YJB Core Funding","Office Stationery",31/12/2013 00:00:00,"30233373",4.84,"BANNER"
"Bracknell Forest Council","http://opendatacommunities.org/id/unitary-authority/bracknell-forest","Bracknell Forest Council","00MA","Youth Justice","Youth Offender Teams","YJB Core Funding","Office Stationery",31/12/2013 00:00:00,"30233373",3.89,"BANNER"
"Bracknell Forest Council","http://opendatacommunities.org/id/unitary-authority/bracknell-forest","Bracknell Forest Council","00MA","Youth Justice","Youth Offender Teams","YJB Core Funding","Office Stationery",31/12/2013 00:00:00,"30233373",3.52,"BANNER"
"Bracknell Forest Council","http://opendatacommunities.org/id/unitary-authority/bracknell-forest","Bracknell Forest Council","00MA","Youth Justice","Youth Offender Teams","YJB Core Funding","Office Stationery",31/12/2013 00:00:00,"30233373",2.02,"BANNER"
"Bracknell Forest Council","http://opendatacommunities.org/id/unitary-authority/bracknell-forest","Bracknell Forest Council","00MA","Youth Justice","Youth Offender Teams","YJB Core Funding","Office Stationery",31/12/2013 00:00:00,"30233373",1.11,"BANNER"
"Bracknell Forest Council","http://opendatacommunities.org/id/unitary-authority/bracknell-forest","Bracknell Forest Council","00MA","Recreation, Sports and Leisure","Indoor Sports & Recreation Facilities","Leisure DSO - Leisure Centre","Office Stationery",31/12/2013 00:00:00,"30233373",6.22,"BANNER"
"Bracknell Forest Council","http://opendatacommunities.org/id/unitary-authority/bracknell-forest","Bracknell Forest Council","00MA","Recreation, Sports and Leisure","Indoor Sports & Recreation Facilities","Leisure DSO - Leisure Centre","Office Stationery",31/12/2013 00:00:00,"30233373",3,"BANNER"
"Bracknell Forest Council","http://opendatacommunities.org/id/unitary-authority/bracknell-forest","Bracknell Forest Council","00MA","Recreation, Sports and Leisure","Indoor Sports & Recreation Facilities","Leisure DSO - Leisure Centre","Office Stationery",31/12/2013 00:00:00,"30233373",2.9,"BANNER"
"Bracknell Forest Council","http://opendatacommunities.org/id/unitary-authority/bracknell-forest","Bracknell Forest Council","00MA","Management and Support Services - CYPL","Strategy, Resources and Early Interventions","Reception & Office Services","Office Stationery",31/12/2013 00:00:00,"30233373",5.2,"BANNER"
"Bracknell Forest Council","http://opendatacommunities.org/id/unitary-authority/bracknell-forest","Bracknell Forest Council","00MA","Commissioning and Social Work","Commissioning and Social Work","Administration Running Costs","Office Stationery",31/12/2013 00:00:00,"30233373",1.3,"BANNER"
"Bracknell Forest Council","http://opendatacommunities.org/id/unitary-authority/bracknell-forest","Bracknell Forest Council","00MA","Support Services & Management Costs","Management and Administration","Head of Service -Adults","Office Stationery",31/12/2013 00:00:00,"30233373",9.5,"BANNER"
"Bracknell Forest Council","http://opendatacommunities.org/id/unitary-authority/bracknell-forest","Bracknell Forest Council","00MA","Support Services & Management Costs","Management and Administration","Head of Service -Adults","Office Stationery",31/12/2013 00:00:00,"30233373",5.81,"BANNER"
"Bracknell Forest Council","http://opendatacommunities.org/id/unitary-authority/bracknell-forest","Bracknell Forest Council","00MA","Support Services & Management Costs","Management and Administration","Head of Service -Adults","Office Stationery",31/12/2013 00:00:00,"30233373",4.89,"BANNER"
"Bracknell Forest Council","http://opendatacommunities.org/id/unitary-authority/bracknell-forest","Bracknell Forest Council","00MA","Support Services & Management Costs","Management and Administration","Head of Service -Adults","Office Stationery",31/12/2013 00:00:00,"30233373",4.58,"BANNER"
"Bracknell Forest Council","http://opendatacommunities.org/id/unitary-authority/bracknell-forest","Bracknell Forest Council","00MA","Support Services & Management Costs","Management and Administration","Head of Service -Adults","Office Stationery",31/12/2013 00:00:00,"30233373",3.81,"BANNER"
"Bracknell Forest Council","http://opendatacommunities.org/id/unitary-authority/bracknell-forest","Bracknell Forest Council","00MA","Registration of Electors","Registration of Electors","Electoral Registration","Office Stationery",31/12/2013 00:00:00,"30233373",89.75,"BANNER"
"Bracknell Forest Council","http://opendatacommunities.org/id/unitary-authority/bracknell-forest","Bracknell Forest Council","00MA","Registration of Electors","Registration of Electors","Electoral Registration","Office Stationery",31/12/2013 00:00:00,"30233373",30.88,"BANNER"
"Bracknell Forest Council","http://opendatacommunities.org/id/unitary-authority/bracknell-forest","Bracknell Forest Council","00MA","Early Years","Children's Centres","The Willows Children's Centre","Office Stationery",31/12/2013 00:00:00,"30233373",7.66,"BANNER"
"Bracknell Forest Council","http://opendatacommunities.org/id/unitary-authority/bracknell-forest","Bracknell Forest Council","00MA","Commissioning and Social Work","Commissioning and Social Work","Administration Running Costs","Office Stationery",31/12/2013 00:00:00,"30233373",120.6,"BANNER"
"Bracknell Forest Council","http://opendatacommunities.org/id/unitary-authority/bracknell-forest","Bracknell Forest Council","00MA","Commissioning and Social Work","Commissioning and Social Work","Administration Running Costs","Office Stationery",31/12/2013 00:00:00,"30233373",16.2,"BANNER"
"Bracknell Forest Council","http://opendatacommunities.org/id/unitary-authority/bracknell-forest","Bracknell Forest Council","00MA","Early Years","Children's Centres","The Willows Children's Centre","Office Stationery",31/12/2013 00:00:00,"30233373",2.75,"BANNER"
"Bracknell Forest Council","http://opendatacommunities.org/id/unitary-authority/bracknell-forest","Bracknell Forest Council","00MA","Early Years","Children's Centres","The Willows Children's Centre","Office Stationery",31/12/2013 00:00:00,"30233373",2.75,"BANNER"
"Bracknell Forest Council","http://opendatacommunities.org/id/unitary-authority/bracknell-forest","Bracknell Forest Council","00MA","Early Years","Children's Centres","The Willows Children's Centre","Office Stationery",31/12/2013 00:00:00,"30233373",0.91,"BANNER"
"Bracknell Forest Council","http://opendatacommunities.org/id/unitary-authority/bracknell-forest","Bracknell Forest Council","00MA","Management and Support Services - CYPL","Strategy, Resources and Early Interventions","Reception & Office Services","Office Stationery",31/12/2013 00:00:00,"30233373",122.9,"BANNER"
"Bracknell Forest Council","http://opendatacommunities.org/id/unitary-authority/bracknell-forest","Bracknell Forest Council","00MA","Management and Support Services - CYPL","Strategy, Resources and Early Interventions","Reception & Office Services","Office Stationery",31/12/2013 00:00:00,"30233373",9.24,"BANNER"
"Bracknell Forest Council","http://opendatacommunities.org/id/unitary-authority/bracknell-forest","Bracknell Forest Council","00MA","Management and Support Services - CYPL","Strategy, Resources and Early Interventions","Reception & Office Services","Office Stationery",31/12/2013 00:00:00,"30233373",7.78,"BANNER"
"Bracknell Forest Council","http://opendatacommunities.org/id/unitary-authority/bracknell-forest","Bracknell Forest Council","00MA","Management and Support Services - CYPL","Strategy, Resources and Early Interventions","Reception & Office Services","Office Stationery",31/12/2013 00:00:00,"30233373",61.45,"BANNER"
"Bracknell Forest Council","http://opendatacommunities.org/id/unitary-authority/bracknell-forest","Bracknell Forest Council","00MA","Recreation, Sports and Leisure","Indoor Sports & Recreation Facilities","Leisure DSO - Leisure Centre","Office Stationery",31/12/2013 00:00:00,"30233373",1.98,"BANNER"
"Bracknell Forest Council","http://opendatacommunities.org/id/unitary-authority/bracknell-forest","Bracknell Forest Council","00MA","Recreation, Sports and Leisure","Indoor Sports & Recreation Facilities","Leisure DSO - Leisure Centre","Office Stationery",31/12/2013 00:00:00,"30233373",1.2,"BANNER"
"Bracknell Forest Council","http://opendatacommunities.org/id/unitary-authority/bracknell-forest","Bracknell Forest Council","00MA","Recreation, Sports and Leisure","Indoor Sports & Recreation Facilities","Leisure DSO - Leisure Centre","Office Stationery",31/12/2013 00:00:00,"30233373",9.45,"BANNER"
"Bracknell Forest Council","http://opendatacommunities.org/id/unitary-authority/bracknell-forest","Bracknell Forest Council","00MA","Recreation, Sports and Leisure","Indoor Sports & Recreation Facilities","Leisure DSO - Leisure Centre","Office Stationery",31/12/2013 00:00:00,"30233373",8.62,"BANNER"
"Bracknell Forest Council","http://opendatacommunities.org/id/unitary-authority/bracknell-forest","Bracknell Forest Council","00MA","Registration of Electors","Registration of Electors","Electoral Registration","Office Stationery",31/12/2013 00:00:00,"30233373",62.4,"BANNER"
"Bracknell Forest Council","http://opendatacommunities.org/id/unitary-authority/bracknell-forest","Bracknell Forest Council","00MA","Registration of Electors","Registration of Electors","Electoral Registration","Office Stationery",31/12/2013 00:00:00,"30233373",54.04,"BANNER"
"Bracknell Forest Council","http://opendatacommunities.org/id/unitary-authority/bracknell-forest","Bracknell Forest Council","00MA","Support Services & Management Costs","Management and Administration","Head of Service -Adults","Office Stationery",31/12/2013 00:00:00,"30233373",1.45,"BANNER"
"Bracknell Forest Council","http://opendatacommunities.org/id/unitary-authority/bracknell-forest","Bracknell Forest Council","00MA","Support Services & Management Costs","Management and Administration","Head of Service -Adults","Office Stationery",31/12/2013 00:00:00,"30233373",0.99,"BANNER"
"Bracknell Forest Council","http://opendatacommunities.org/id/unitary-authority/bracknell-forest","Bracknell Forest Council","00MA","Support Services & Management Costs","Management and Administration","Head of Service -Adults","Office Stationery",31/12/2013 00:00:00,"30233373",74.88,"BANNER"
"Bracknell Forest Council","http://opendatacommunities.org/id/unitary-authority/bracknell-forest","Bracknell Forest Council","00MA","Management and Support Services - CYPL","Unallocated Schools Budget Related Expenditure","Behaviour & Education Support Team","Office Stationery",31/12/2013 00:00:00,"30233373",35.7,"BANNER"
"Bracknell Forest Council","http://opendatacommunities.org/id/unitary-authority/bracknell-forest","Bracknell Forest Council","00MA","Central Support Services - COF","Customer Service Centre","Cashiers Services","Office Stationery",31/12/2013 00:00:00,"30233373",71.23,"BANNER"
"Bracknell Forest Council","http://opendatacommunities.org/id/unitary-authority/bracknell-forest","Bracknell Forest Council","00MA","Commissioning and Social Work","Commissioning and Social Work","Administration Running Costs","Office Stationery",31/12/2013 00:00:00,"30233373",0.43,"BANNER"
"Bracknell Forest Council","http://opendatacommunities.org/id/unitary-authority/bracknell-forest","Bracknell Forest Council","00MA","Management and Support Services - CYPL","Unallocated Early years Related Expenditure","SSEYCG Management & Admin","Office Stationery",31/12/2013 00:00:00,"30233373",30.4,"BANNER"
"Bracknell Forest Council","http://opendatacommunities.org/id/unitary-authority/bracknell-forest","Bracknell Forest Council","00MA","Management and Support Services - CYPL","Unallocated Early years Related Expenditure","SSEYCG Management & Admin","Office Stationery",31/12/2013 00:00:00,"30233373",12.16,"BANNER"
"Bracknell Forest Council","http://opendatacommunities.org/id/unitary-authority/bracknell-forest","Bracknell Forest Council","00MA","Commissioning and Social Work","Commissioning and Social Work","Administration Running Costs","Office Stationery",31/12/2013 00:00:00,"30233373",0.22,"BANNER"
"Bracknell Forest Council","http://opendatacommunities.org/id/unitary-authority/bracknell-forest","Bracknell Forest Council","00MA","Registration of Electors","Registration of Electors","Electoral Registration","Office Stationery",31/12/2013 00:00:00,"30233373",5.68,"BANNER"
"Bracknell Forest Council","http://opendatacommunities.org/id/unitary-authority/bracknell-forest","Bracknell Forest Council","00MA","Registration of Electors","Registration of Electors","Electoral Registration","Office Stationery",31/12/2013 00:00:00,"30233373",5.66,"BANNER"
"Bracknell Forest Council","http://opendatacommunities.org/id/unitary-authority/bracknell-forest","Bracknell Forest Council","00MA","Registration of Electors","Registration of Electors","Electoral Registration","Office Stationery",31/12/2013 00:00:00,"30233373",5.38,"BANNER"
"Bracknell Forest Council","http://opendatacommunities.org/id/unitary-authority/bracknell-forest","Bracknell Forest Council","00MA","Commissioning and Social Work","Commissioning and Social Work","Administration Running Costs","Office Stationery",31/12/2013 00:00:00,"30233373",14.88,"BANNER"
"Bracknell Forest Council","http://opendatacommunities.org/id/unitary-authority/bracknell-forest","Bracknell Forest Council","00MA","Commissioning and Social Work","Commissioning and Social Work","Administration Running Costs","Office Stationery",31/12/2013 00:00:00,"30233373",7.72,"BANNER"
"Bracknell Forest Council","http://opendatacommunities.org/id/unitary-authority/bracknell-forest","Bracknell Forest Council","00MA","Commissioning and Social Work","Commissioning and Social Work","Administration Running Costs","Office Stationery",31/12/2013 00:00:00,"30233373",4.69,"BANNER"
"Bracknell Forest Council","http://opendatacommunities.org/id/unitary-authority/bracknell-forest","Bracknell Forest Council","00MA","Commissioning and Social Work","Commissioning and Social Work","Administration Running Costs","Office Stationery",31/12/2013 00:00:00,"30233373",3.28,"BANNER"
"Bracknell Forest Council","http://opendatacommunities.org/id/unitary-authority/bracknell-forest","Bracknell Forest Council","00MA","Central Support Services - COF","Legal","Legal Services","Office Stationery",31/12/2013 00:00:00,"30233373",28,"BANNER"
"Bracknell Forest Council","http://opendatacommunities.org/id/unitary-authority/bracknell-forest","Bracknell Forest Council","00MA","Support Services & Management Costs","Management and Administration","Head of Service -Adults","Office Stationery",31/12/2013 00:00:00,"30233373",25.19,"BANNER"
"Bracknell Forest Council","http://opendatacommunities.org/id/unitary-authority/bracknell-forest","Bracknell Forest Council","00MA","Support Services & Management Costs","Management and Administration","Head of Service -Adults","Office Stationery",31/12/2013 00:00:00,"30233373",10.1,"BANNER"
"Bracknell Forest Council","http://opendatacommunities.org/id/unitary-authority/bracknell-forest","Bracknell Forest Council","00MA","Support Services & Management Costs","Management and Administration","Head of Service -Adults","Office Stationery",31/12/2013 00:00:00,"30233373",13.49,"BANNER"
"Bracknell Forest Council","http://opendatacommunities.org/id/unitary-authority/bracknell-forest","Bracknell Forest Council","00MA","Support Services & Management Costs","Management and Administration","Head of Service -Adults","Office Stationery",31/12/2013 00:00:00,"30233373",10.94,"BANNER"
"Bracknell Forest Council","http://opendatacommunities.org/id/unitary-authority/bracknell-forest","Bracknell Forest Council","00MA","Support Services & Management Costs","Management and Administration","Head of Service -Adults","Office Stationery",31/12/2013 00:00:00,"30233373",20.76,"BANNER"
"Bracknell Forest Council","http://opendatacommunities.org/id/unitary-authority/bracknell-forest","Bracknell Forest Council","00MA","Support Services & Management Costs","Management and Administration","Head of Service -Adults","Office Stationery",31/12/2013 00:00:00,"30233373",6.34,"BANNER"
"Bracknell Forest Council","http://opendatacommunities.org/id/unitary-authority/bracknell-forest","Bracknell Forest Council","00MA","Commissioning and Social Work","Commissioning and Social Work","Administration Running Costs","Office Stationery",31/12/2013 00:00:00,"30233373",18.3,"BANNER"
"Bracknell Forest Council","http://opendatacommunities.org/id/unitary-authority/bracknell-forest","Bracknell Forest Council","00MA","Commissioning and Social Work","Commissioning and Social Work","Administration Running Costs","Office Stationery",31/12/2013 00:00:00,"30233373",8.82,"BANNER"
"Bracknell Forest Council","http://opendatacommunities.org/id/unitary-authority/bracknell-forest","Bracknell Forest Council","00MA","Holding Accounts in Budget Book COF","Corporate Services - Office Services","Office Services - General Expenses","Office Stationery",31/12/2013 00:00:00,"30233373",2.1,"BANNER"
"Bracknell Forest Council","http://opendatacommunities.org/id/unitary-authority/bracknell-forest","Bracknell Forest Council","00MA","Support Services & Management Costs","Management and Administration","Head of Service -Adults","Office Stationery",31/12/2013 00:00:00,"30233373",74.88,"BANNER"
"Bracknell Forest Council","http://opendatacommunities.org/id/unitary-authority/bracknell-forest","Bracknell Forest Council","00MA","Support Services & Management Costs","Management and Administration","Head of Service -Adults","Office Stationery",31/12/2013 00:00:00,"30233373",14.36,"BANNER"
"Bracknell Forest Council","http://opendatacommunities.org/id/unitary-authority/bracknell-forest","Bracknell Forest Council","00MA","Support Services & Management Costs","Management and Administration","Head of Service -Adults","Office Stationery",31/12/2013 00:00:00,"30233373",2.96,"BANNER"
"Bracknell Forest Council","http://opendatacommunities.org/id/unitary-authority/bracknell-forest","Bracknell Forest Council","00MA","Family Support Services","Other family support services","Family Centre Running Costs","Office Stationery",31/12/2013 00:00:00,"30233373",49.92,"BANNER"
"Bracknell Forest Council","http://opendatacommunities.org/id/unitary-authority/bracknell-forest","Bracknell Forest Council","00MA","Family Support Services","Other family support services","Family Centre Running Costs","Office Stationery",31/12/2013 00:00:00,"30233373",22.08,"BANNER"
"Bracknell Forest Council","http://opendatacommunities.org/id/unitary-authority/bracknell-forest","Bracknell Forest Council","00MA","Family Support Services","Other family support services","Family Centre Running Costs","Office Stationery",31/12/2013 00:00:00,"30233373",13.36,"BANNER"
"Bracknell Forest Council","http://opendatacommunities.org/id/unitary-authority/bracknell-forest","Bracknell Forest Council","00MA","Older People (Aged 65 or Over)","Assessment & Care Management","Emergency Duty Team (Out of Hours Serv)","Office Stationery",31/12/2013 00:00:00,"30233373",24.58,"BANNER"
"Bracknell Forest Council","http://opendatacommunities.org/id/unitary-authority/bracknell-forest","Bracknell Forest Council","00MA","Older People (Aged 65 or Over)","Assessment & Care Management","Emergency Duty Team (Out of Hours Serv)","Office Stationery",31/12/2013 00:00:00,"30233373",24.15,"BANNER"
"Bracknell Forest Council","http://opendatacommunities.org/id/unitary-authority/bracknell-forest","Bracknell Forest Council","00MA","Older People (Aged 65 or Over)","Assessment & Care Management","Emergency Duty Team (Out of Hours Serv)","Office Stationery",31/12/2013 00:00:00,"30233373",17.6,"BANNER"
"Bracknell Forest Council","http://opendatacommunities.org/id/unitary-authority/bracknell-forest","Bracknell Forest Council","00MA","Older People (Aged 65 or Over)","Assessment & Care Management","Emergency Duty Team (Out of Hours Serv)","Office Stationery",31/12/2013 00:00:00,"30233373",2.54,"BANNER"
"Bracknell Forest Council","http://opendatacommunities.org/id/unitary-authority/bracknell-forest","Bracknell Forest Council","00MA","Commissioning and Social Work","Commissioning and Social Work","Care Leavers Team & Client Costs","Office Stationery",31/12/2013 00:00:00,"30233373",4.41,"BANNER"
"Bracknell Forest Council","http://opendatacommunities.org/id/unitary-authority/bracknell-forest","Bracknell Forest Council","00MA","Commissioning and Social Work","Commissioning and Social Work","Care Leavers Team & Client Costs","Office Stationery",31/12/2013 00:00:00,"30233373",3.6,"BANNER"
"Bracknell Forest Council","http://opendatacommunities.org/id/unitary-authority/bracknell-forest","Bracknell Forest Council","00MA","Commissioning and Social Work","Commissioning and Social Work","Care Leavers Team & Client Costs","Office Stationery",31/12/2013 00:00:00,"30233373",3.1,"BANNER"
"Bracknell Forest Council","http://opendatacommunities.org/id/unitary-authority/bracknell-forest","Bracknell Forest Council","00MA","Commissioning and Social Work","Commissioning and Social Work","Care Leavers Team & Client Costs","Office Stationery",31/12/2013 00:00:00,"30233373",2.49,"BANNER"
"Bracknell Forest Council","http://opendatacommunities.org/id/unitary-authority/bracknell-forest","Bracknell Forest Council","00MA","Commissioning and Social Work","Commissioning and Social Work","Care Leavers Team & Client Costs","Office Stationery",31/12/2013 00:00:00,"30233373",2.02,"BANNER"
"Bracknell Forest Council","http://opendatacommunities.org/id/unitary-authority/bracknell-forest","Bracknell Forest Council","00MA","Commissioning and Social Work","Commissioning and Social Work","Administration Running Costs","Office Stationery",31/12/2013 00:00:00,"30233373",2.47,"BANNER"
"Bracknell Forest Council","http://opendatacommunities.org/id/unitary-authority/bracknell-forest","Bracknell Forest Council","00MA","Commissioning and Social Work","Commissioning and Social Work","Administration Running Costs","Office Stationery",31/12/2013 00:00:00,"30233373",1.56,"BANNER"
"Bracknell Forest Council","http://opendatacommunities.org/id/unitary-authority/bracknell-forest","Bracknell Forest Council","00MA","Commissioning and Social Work","Commissioning and Social Work","Administration Running Costs","Office Stationery",31/12/2013 00:00:00,"30233373",263.1,"BANNER"
"Bracknell Forest Council","http://opendatacommunities.org/id/unitary-authority/bracknell-forest","Bracknell Forest Council","00MA","Support Services & Management Costs","Management and Administration","Head of Service -Adults","Office Stationery",31/12/2013 00:00:00,"30233373",1.54,"BANNER"
"Bracknell Forest Council","http://opendatacommunities.org/id/unitary-authority/bracknell-forest","Bracknell Forest Council","00MA","Support Services & Management Costs","Management and Administration","Head of Service -Adults","Office Stationery",31/12/2013 00:00:00,"30233373",5.34,"BANNER"
"Bracknell Forest Council","http://opendatacommunities.org/id/unitary-authority/bracknell-forest","Bracknell Forest Council","00MA","Support Services & Management Costs","Management and Administration","Head of Service -Adults","Office Stationery",31/12/2013 00:00:00,"30233373",1.4,"BANNER"
"Bracknell Forest Council","http://opendatacommunities.org/id/unitary-authority/bracknell-forest","Bracknell Forest Council","00MA","Commissioning and Social Work","Commissioning and Social Work","Care Leavers Team & Client Costs","Office Stationery",31/12/2013 00:00:00,"30233373",9.78,"BANNER"
"Bracknell Forest Council","http://opendatacommunities.org/id/unitary-authority/bracknell-forest","Bracknell Forest Council","00MA","Central Support Services - COF","Construction and Property","Easthampstead House","Office Stationery",31/12/2013 00:00:00,"30233373",204.62,"BANNER"
"Bracknell Forest Council","http://opendatacommunities.org/id/unitary-authority/bracknell-forest","Bracknell Forest Council","00MA","Central Support Services - COF","Construction and Property","Easthampstead House","Office Stationery",31/12/2013 00:00:00,"30233373",0.44,"BANNER"
"Bracknell Forest Council","http://opendatacommunities.org/id/unitary-authority/bracknell-forest","Bracknell Forest Council","00MA","Recreation, Sports and Leisure","Indoor Sports & Recreation Facilities","Leisure DSO - Leisure Centre","Office Stationery",31/12/2013 00:00:00,"30233373",13.56,"BANNER"
"Bracknell Forest Council","http://opendatacommunities.org/id/unitary-authority/bracknell-forest","Bracknell Forest Council","00MA","Recreation, Sports and Leisure","Indoor Sports & Recreation Facilities","Leisure DSO - Leisure Centre","Office Stationery",31/12/2013 00:00:00,"30233373",12.33,"BANNER"
"Bracknell Forest Council","http://opendatacommunities.org/id/unitary-authority/bracknell-forest","Bracknell Forest Council","00MA","Recreation, Sports and Leisure","Indoor Sports & Recreation Facilities","Leisure DSO - Leisure Centre","Office Stationery",31/12/2013 00:00:00,"30233373",5.65,"BANNER"
"Bracknell Forest Council","http://opendatacommunities.org/id/unitary-authority/bracknell-forest","Bracknell Forest Council","00MA","Recreation, Sports and Leisure","Indoor Sports & Recreation Facilities","Leisure DSO - Leisure Centre","Office Stationery",31/12/2013 00:00:00,"30233373",2.6,"BANNER"
"Bracknell Forest Council","http://opendatacommunities.org/id/unitary-authority/bracknell-forest","Bracknell Forest Council","00MA","Commissioning and Social Work","Commissioning and Social Work","Care Leavers Team & Client Costs","Office Stationery",31/12/2013 00:00:00,"30233373",6.4,"BANNER"
"Bracknell Forest Council","http://opendatacommunities.org/id/unitary-authority/bracknell-forest","Bracknell Forest Council","00MA","Commissioning and Social Work","Commissioning and Social Work","Administration Running Costs","Office Stationery",31/12/2013 00:00:00,"30233373",120.6,"BANNER"
"Bracknell Forest Council","http://opendatacommunities.org/id/unitary-authority/bracknell-forest","Bracknell Forest Council","00MA","Support Services & Management Costs","Management and Administration","Head of Service -Adults","Office Stationery",31/12/2013 00:00:00,"30233373",72.36,"BANNER"
"Bracknell Forest Council","http://opendatacommunities.org/id/unitary-authority/bracknell-forest","Bracknell Forest Council","00MA","Support Services & Management Costs","Management and Administration","Head of Service -Adults","Office Stationery",31/12/2013 00:00:00,"30233373",9.94,"BANNER"
"Bracknell Forest Council","http://opendatacommunities.org/id/unitary-authority/bracknell-forest","Bracknell Forest Council","00MA","Support Services & Management Costs","Management and Administration","Head of Service -Adults","Office Stationery",31/12/2013 00:00:00,"30233373",15.25,"BANNER"
"Bracknell Forest Council","http://opendatacommunities.org/id/unitary-authority/bracknell-forest","Bracknell Forest Council","00MA","Management and Support Services - CYPL","Unallocated Early years Related Expenditure","SSEYCG Management & Admin","Office Stationery",31/12/2013 00:00:00,"30233373",18,"BANNER"
"Bracknell Forest Council","http://opendatacommunities.org/id/unitary-authority/bracknell-forest","Bracknell Forest Council","00MA","Recreation, Sports and Leisure","Indoor Sports & Recreation Facilities","Leisure DSO - Leisure Centre","Office Stationery",31/12/2013 00:00:00,"30233373",10.88,"BANNER"
"Bracknell Forest Council","http://opendatacommunities.org/id/unitary-authority/bracknell-forest","Bracknell Forest Council","00MA","Recreation, Sports and Leisure","Indoor Sports & Recreation Facilities","Leisure DSO - Leisure Centre","Office Stationery",31/12/2013 00:00:00,"30233373",8.17,"BANNER"
"Bracknell Forest Council","http://opendatacommunities.org/id/unitary-authority/bracknell-forest","Bracknell Forest Council","00MA","Recreation, Sports and Leisure","Indoor Sports & Recreation Facilities","Leisure DSO - Leisure Centre","Office Stationery",31/12/2013 00:00:00,"30233373",3,"BANNER"
"Bracknell Forest Council","http://opendatacommunities.org/id/unitary-authority/bracknell-forest","Bracknell Forest Council","00MA","Support Services & Management Costs","Management and Administration","Head of Service -Adults","Office Stationery",31/12/2013 00:00:00,"30233373",19.01,"BANNER"
"Bracknell Forest Council","http://opendatacommunities.org/id/unitary-authority/bracknell-forest","Bracknell Forest Council","00MA","Support Services & Management Costs","Management and Administration","Head of Service -Adults","Office Stationery",31/12/2013 00:00:00,"30233373",13.32,"BANNER"
"Bracknell Forest Council","http://opendatacommunities.org/id/unitary-authority/bracknell-forest","Bracknell Forest Council","00MA","Support Services & Management Costs","Management and Administration","Head of Service -Adults","Office Stationery",31/12/2013 00:00:00,"30233373",8.1,"BANNER"
"Bracknell Forest Council","http://opendatacommunities.org/id/unitary-authority/bracknell-forest","Bracknell Forest Council","00MA","Support Services & Management Costs","Management and Administration","Head of Service -Adults","Office Stationery",31/12/2013 00:00:00,"30233373",3.81,"BANNER"
"Bracknell Forest Council","http://opendatacommunities.org/id/unitary-authority/bracknell-forest","Bracknell Forest Council","00MA","Support Services & Management Costs","Management and Administration","Head of Service -Adults","Office Stationery",31/12/2013 00:00:00,"30233373",0.99,"BANNER"
"Bracknell Forest Council","http://opendatacommunities.org/id/unitary-authority/bracknell-forest","Bracknell Forest Council","00MA","Older People (Aged 65 or Over)","Home Care","Home Care-Elderly","Contracted Services",10/12/2013 00:00:00,"30232302",661.2,"CARE UK HOMECARE LTD"
"Bracknell Forest Council","http://opendatacommunities.org/id/unitary-authority/bracknell-forest","Bracknell Forest Council","00MA","Older People (Aged 65 or Over)","Home Care","Home Care-Elderly","Contracted Services",10/12/2013 00:00:00,"30232302",1694.8,"CARE UK HOMECARE LTD"
"Bracknell Forest Council","http://opendatacommunities.org/id/unitary-authority/bracknell-forest","Bracknell Forest Council","00MA","Older People (Aged 65 or Over)","Home Care","Home Care-Elderly","Contracted Services",10/12/2013 00:00:00,"30232302",1390.8,"CARE UK HOMECARE LTD"
"Bracknell Forest Council","http://opendatacommunities.org/id/unitary-authority/bracknell-forest","Bracknell Forest Council","00MA","Older People (Aged 65 or Over)","Home Care","Home Care-Elderly","Contracted Services",10/12/2013 00:00:00,"30232302",319.2,"CARE UK HOMECARE LTD"
"Bracknell Forest Council","http://opendatacommunities.org/id/unitary-authority/bracknell-forest","Bracknell Forest Council","00MA","Older People (Aged 65 or Over)","Home Care","Home Care-Elderly","Contracted Services",10/12/2013 00:00:00,"30232302",91.2,"CARE UK HOMECARE LTD"
"Bracknell Forest Council","http://opendatacommunities.org/id/unitary-authority/bracknell-forest","Bracknell Forest Council","00MA","Older People (Aged 65 or Over)","Home Care","Home Care-Elderly","Contracted Services",10/12/2013 00:00:00,"30232302",1801.2,"CARE UK HOMECARE LTD"
"Bracknell Forest Council","http://opendatacommunities.org/id/unitary-authority/bracknell-forest","Bracknell Forest Council","00MA","Older People (Aged 65 or Over)","Home Care","Home Care-Elderly","Contracted Services",10/12/2013 00:00:00,"30232302",212.8,"CARE UK HOMECARE LTD"
"Bracknell Forest Council","http://opendatacommunities.org/id/unitary-authority/bracknell-forest","Bracknell Forest Council","00MA","Older People (Aged 65 or Over)","Home Care","Home Care-Elderly","Contracted Services",10/12/2013 00:00:00,"30232302",501.6,"CARE UK HOMECARE LTD"
"Bracknell Forest Council","http://opendatacommunities.org/id/unitary-authority/bracknell-forest","Bracknell Forest Council","00MA","Older People (Aged 65 or Over)","Home Care","Home Care-Elderly","Contracted Services",10/12/2013 00:00:00,"30232302",418,"CARE UK HOMECARE LTD"
"Bracknell Forest Council","http://opendatacommunities.org/id/unitary-authority/bracknell-forest","Bracknell Forest Council","00MA","Older People (Aged 65 or Over)","Home Care","Home Care-Elderly","Contracted Services",10/12/2013 00:00:00,"30232302",471.2,"CARE UK HOMECARE LTD"
"Bracknell Forest Council","http://opendatacommunities.org/id/unitary-authority/bracknell-forest","Bracknell Forest Council","00MA","Mental Health Needs (Under 65)","Homecare","Home Care Mental Illness","Contracted Services",10/12/2013 00:00:00,"30232302",277.4,"CARE UK HOMECARE LTD"
"Bracknell Forest Council","http://opendatacommunities.org/id/unitary-authority/bracknell-forest","Bracknell Forest Council","00MA","Physical Disability/Sensory Impairment","Homecare","Home Care-Phys Disab","Contracted Services",10/12/2013 00:00:00,"30232302",1928.6,"CARE UK HOMECARE LTD"
"Bracknell Forest Council","http://opendatacommunities.org/id/unitary-authority/bracknell-forest","Bracknell Forest Council","00MA","Physical Disability/Sensory Impairment","Homecare","Home Care-Phys Disab","Contracted Services",10/12/2013 00:00:00,"30232302",326.8,"CARE UK HOMECARE LTD"
"Bracknell Forest Council","http://opendatacommunities.org/id/unitary-authority/bracknell-forest","Bracknell Forest Council","00MA","Older People (Aged 65 or Over)","Home Care","Home Care-Elderly","Contracted Services",10/12/2013 00:00:00,"30232302",334.4,"CARE UK HOMECARE LTD"
"Bracknell Forest Council","http://opendatacommunities.org/id/unitary-authority/bracknell-forest","Bracknell Forest Council","00MA","Older People (Aged 65 or Over)","Home Care","Home Care-Elderly","Contracted Services",10/12/2013 00:00:00,"30232302",528.2,"CARE UK HOMECARE LTD"
"Bracknell Forest Council","http://opendatacommunities.org/id/unitary-authority/bracknell-forest","Bracknell Forest Council","00MA","Older People (Aged 65 or Over)","Home Care","Home Care-Elderly","Contracted Services",10/12/2013 00:00:00,"30232302",2793,"CARE UK HOMECARE LTD"
"Bracknell Forest Council","http://opendatacommunities.org/id/unitary-authority/bracknell-forest","Bracknell Forest Council","00MA","Learning Disability (under 65)","Homecare","Supported Living (Homecare) LD","Contracted Services",12/12/2013 00:00:00,"30232462",556.89,"CARE UK HOMECARE LTD"
"Bracknell Forest Council","http://opendatacommunities.org/id/unitary-authority/bracknell-forest","Bracknell Forest Council","00MA","Learning Disability (under 65)","Homecare","Supported Living (Homecare) LD","Contracted Services",17/12/2013 00:00:00,"30232704",572.8,"CARE UK HOMECARE LTD"
"Bracknell Forest Council","http://opendatacommunities.org/id/unitary-authority/bracknell-forest","Bracknell Forest Council","00MA","Family Support Services","Other family support services","C&F Section 17 Under 11's Team","Contracted Services",20/11/2013 00:00:00,"6535130",760.95,"CARELINE"
"Bracknell Forest Council","http://opendatacommunities.org/id/unitary-authority/bracknell-forest","Bracknell Forest Council","00MA","Children Looked After","Other children looked after services","Larchwood","Agency",11/12/2013 00:00:00,"6536458",783.9,"CARELINE"
"Bracknell Forest Council","http://opendatacommunities.org/id/unitary-authority/bracknell-forest","Bracknell Forest Council","00MA","Other School Related Education Services","Special Education","SEN Staff","Agency",04/12/2013 00:00:00,"6536984",659.88,"CARELINE"
"Bracknell Forest Council","http://opendatacommunities.org/id/unitary-authority/bracknell-forest","Bracknell Forest Council","00MA","Physical Disability/Sensory Impairment","Residential Care Home Placements","Residential Placements-Phys Disab","Contracted Services",17/12/2013 00:00:00,"30232702",2671.92,"CARETECH COMMUNITY SERVICES"
"Bracknell Forest Council","http://opendatacommunities.org/id/unitary-authority/bracknell-forest","Bracknell Forest Council","00MA","Commissioning and Social Work","Commissioning and Social Work","Family Group Conferences","Consultants Fees",30/11/2013 00:00:00,"6535368",583.42,"CAROL BIGNELL"
"Bracknell Forest Council","http://opendatacommunities.org/id/unitary-authority/bracknell-forest","Bracknell Forest Council","00MA","Commissioning and Social Work","Commissioning and Social Work","Family Group Conferences","Consultants Fees",13/12/2013 00:00:00,"6536432",563.02,"CAROL BIGNELL"
"Bracknell Forest Council","http://opendatacommunities.org/id/unitary-authority/bracknell-forest","Bracknell Forest Council","00MA","Homelessness","Private Sector Accom leased by Authority","Leased Accommodation - Homeless Families","Fixtures & Fittings - Purchase",16/10/2013 00:00:00,"6534596",742,"CARP-A-TEX (READING) LTD"
"Bracknell Forest Council","http://opendatacommunities.org/id/unitary-authority/bracknell-forest","Bracknell Forest Council","00MA","Homelessness","Private Sector Accom leased by Authority","Leased Accommodation - Homeless Families","R&M - Reactive",12/12/2013 00:00:00,"6536615",900,"CARP-A-TEX (READING) LTD"
"Bracknell Forest Council","http://opendatacommunities.org/id/unitary-authority/bracknell-forest","Bracknell Forest Council","00MA","Homelessness","Private Sector Accom leased by Authority","Leased Accommodation - Homeless Families","R&M - Reactive",12/12/2013 00:00:00,"6536616",970,"CARP-A-TEX (READING) LTD"
"Bracknell Forest Council","http://opendatacommunities.org/id/unitary-authority/bracknell-forest","Bracknell Forest Council","00MA","Management and Support Services - CYPL","Strategy, Resources and Early Interventions","Extended Schools Buyback","Other Fees for Bought-in Services",27/11/2013 00:00:00,"6534523",500,"CATHERINE BARRETT (THERAPY)"
"Bracknell Forest Council","http://opendatacommunities.org/id/unitary-authority/bracknell-forest","Bracknell Forest Council","00MA","Management and Support Services - CYPL","Strategy, Resources and Early Interventions","Reception & Office Services","Furniture - Purchase",13/12/2013 00:00:00,"6536190",785,"CBS BUSINESS FURNITURE LTD"
"Bracknell Forest Council","http://opendatacommunities.org/id/unitary-authority/bracknell-forest","Bracknell Forest Council","00MA","Support Services & Management Costs","Management and Administration","Head of Service -Adults","Office Stationery",31/12/2013 00:00:00,"30233373",53.1,"BANNER"
"Bracknell Forest Council","http://opendatacommunities.org/id/unitary-authority/bracknell-forest","Bracknell Forest Council","00MA","Support Services & Management Costs","Management and Administration","Head of Service -Adults","Office Stationery",31/12/2013 00:00:00,"30233373",6.24,"BANNER"
"Bracknell Forest Council","http://opendatacommunities.org/id/unitary-authority/bracknell-forest","Bracknell Forest Council","00MA","Support Services & Management Costs","Management and Administration","Head of Service -Adults","Office Stationery",31/12/2013 00:00:00,"30233373",5.68,"BANNER"
"Bracknell Forest Council","http://opendatacommunities.org/id/unitary-authority/bracknell-forest","Bracknell Forest Council","00MA","Youth Justice","Youth Offender Teams","YJB Core Funding","Office Stationery",31/12/2013 00:00:00,"30233373",57.35,"BANNER"
"Bracknell Forest Council","http://opendatacommunities.org/id/unitary-authority/bracknell-forest","Bracknell Forest Council","00MA","Youth Justice","Youth Offender Teams","YJB Core Funding","Office Stationery",31/12/2013 00:00:00,"30233373",14.1,"BANNER"
"Bracknell Forest Council","http://opendatacommunities.org/id/unitary-authority/bracknell-forest","Bracknell Forest Council","00MA","Other Welfare Services","Other Welfare Services","Forestcare - Operational","Office Stationery",31/12/2013 00:00:00,"30233373",46.53,"BANNER"
"Bracknell Forest Council","http://opendatacommunities.org/id/unitary-authority/bracknell-forest","Bracknell Forest Council","00MA","Recreation, Sports and Leisure","Indoor Sports & Recreation Facilities","Leisure DSO - Leisure Centre","Office Stationery",31/12/2013 00:00:00,"30233373",2,"BANNER"
"Bracknell Forest Council","http://opendatacommunities.org/id/unitary-authority/bracknell-forest","Bracknell Forest Council","00MA","Recreation, Sports and Leisure","Indoor Sports & Recreation Facilities","Leisure DSO - Leisure Centre","Office Stationery",31/12/2013 00:00:00,"30233373",12.64,"BANNER"
"Bracknell Forest Council","http://opendatacommunities.org/id/unitary-authority/bracknell-forest","Bracknell Forest Council","00MA","Support Services & Management Costs","Management and Administration","Head of Service -Adults","Office Stationery",31/12/2013 00:00:00,"30233373",12.28,"BANNER"
"Bracknell Forest Council","http://opendatacommunities.org/id/unitary-authority/bracknell-forest","Bracknell Forest Council","00MA","Support Services & Management Costs","Management and Administration","Head of Service -Adults","Office Stationery",31/12/2013 00:00:00,"30233373",5.34,"BANNER"
"Bracknell Forest Council","http://opendatacommunities.org/id/unitary-authority/bracknell-forest","Bracknell Forest Council","00MA","Support Services & Management Costs","Management and Administration","Head of Service -Adults","Office Stationery",31/12/2013 00:00:00,"30233373",7.2,"BANNER"
"Bracknell Forest Council","http://opendatacommunities.org/id/unitary-authority/bracknell-forest","Bracknell Forest Council","00MA","Support Services & Management Costs","Management and Administration","Head of Service -Adults","Office Stationery",31/12/2013 00:00:00,"30233373",5.08,"BANNER"
"Bracknell Forest Council","http://opendatacommunities.org/id/unitary-authority/bracknell-forest","Bracknell Forest Council","00MA","Support Services & Management Costs","Management and Administration","Head of Service -Adults","Office Stationery",31/12/2013 00:00:00,"30233373",0.7,"BANNER"
"Bracknell Forest Council","http://opendatacommunities.org/id/unitary-authority/bracknell-forest","Bracknell Forest Council","00MA","Central Support Services - COF","Legal","Legal Services","Office Stationery",31/12/2013 00:00:00,"30233373",1.2,"BANNER"
"Bracknell Forest Council","http://opendatacommunities.org/id/unitary-authority/bracknell-forest","Bracknell Forest Council","00MA","Central Support Services - COF","Legal","Legal Services","Office Stationery",31/12/2013 00:00:00,"30233373",74.88,"BANNER"
"Bracknell Forest Council","http://opendatacommunities.org/id/unitary-authority/bracknell-forest","Bracknell Forest Council","00MA","Central Support Services - COF","Legal","Legal Services","Office Stationery",31/12/2013 00:00:00,"30233373",11.96,"BANNER"
"Bracknell Forest Council","http://opendatacommunities.org/id/unitary-authority/bracknell-forest","Bracknell Forest Council","00MA","Central Support Services - COF","Legal","Legal Services","Office Stationery",31/12/2013 00:00:00,"30233373",10.62,"BANNER"
"Bracknell Forest Council","http://opendatacommunities.org/id/unitary-authority/bracknell-forest","Bracknell Forest Council","00MA","Management and Support Services - CYPL","Unallocated Early years Related Expenditure","SSEYCG Management & Admin","Office Stationery",31/12/2013 00:00:00,"30233373",73.74,"BANNER"
"Bracknell Forest Council","http://opendatacommunities.org/id/unitary-authority/bracknell-forest","Bracknell Forest Council","00MA","Support Services & Management Costs","Management and Administration","Head of Service -Adults","Office Stationery",31/12/2013 00:00:00,"30233373",94.06,"BANNER"
"Bracknell Forest Council","http://opendatacommunities.org/id/unitary-authority/bracknell-forest","Bracknell Forest Council","00MA","Support Services & Management Costs","Management and Administration","Head of Service -Adults","Office Stationery",31/12/2013 00:00:00,"30233373",42.93,"BANNER"
"Bracknell Forest Council","http://opendatacommunities.org/id/unitary-authority/bracknell-forest","Bracknell Forest Council","00MA","Support Services & Management Costs","Management and Administration","Head of Service -Adults","Office Stationery",31/12/2013 00:00:00,"30233373",74,"BANNER"
"Bracknell Forest Council","http://opendatacommunities.org/id/unitary-authority/bracknell-forest","Bracknell Forest Council","00MA","Recreation, Sports and Leisure","Indoor Sports & Recreation Facilities","Leisure DSO - Leisure Centre","Office Stationery",31/12/2013 00:00:00,"30233373",7.44,"BANNER"
"Bracknell Forest Council","http://opendatacommunities.org/id/unitary-authority/bracknell-forest","Bracknell Forest Council","00MA","Recreation, Sports and Leisure","Indoor Sports & Recreation Facilities","Leisure DSO - Leisure Centre","Office Stationery",31/12/2013 00:00:00,"30233373",17.64,"BANNER"
"Bracknell Forest Council","http://opendatacommunities.org/id/unitary-authority/bracknell-forest","Bracknell Forest Council","00MA","Recreation, Sports and Leisure","Indoor Sports & Recreation Facilities","Leisure DSO - Leisure Centre","Office Stationery",31/12/2013 00:00:00,"30233373",12.29,"BANNER"
"Bracknell Forest Council","http://opendatacommunities.org/id/unitary-authority/bracknell-forest","Bracknell Forest Council","00MA","Recreation, Sports and Leisure","Indoor Sports & Recreation Facilities","Leisure DSO - Leisure Centre","Office Stationery",31/12/2013 00:00:00,"30233373",4.81,"BANNER"
"Bracknell Forest Council","http://opendatacommunities.org/id/unitary-authority/bracknell-forest","Bracknell Forest Council","00MA","Recreation, Sports and Leisure","Indoor Sports & Recreation Facilities","Leisure DSO - Leisure Centre","Office Stationery",31/12/2013 00:00:00,"30233373",1.26,"BANNER"
"Bracknell Forest Council","http://opendatacommunities.org/id/unitary-authority/bracknell-forest","Bracknell Forest Council","00MA","Other Welfare Services","Other Welfare Services","Forestcare - Operational","Office Stationery",31/12/2013 00:00:00,"30233373",12.12,"BANNER"
"Bracknell Forest Council","http://opendatacommunities.org/id/unitary-authority/bracknell-forest","Bracknell Forest Council","00MA","Other Welfare Services","Other Welfare Services","Forestcare - Operational","Office Stationery",31/12/2013 00:00:00,"30233373",4.69,"BANNER"
"Bracknell Forest Council","http://opendatacommunities.org/id/unitary-authority/bracknell-forest","Bracknell Forest Council","00MA","Other Welfare Services","Other Welfare Services","Forestcare - Operational","Office Stationery",31/12/2013 00:00:00,"30233373",3.26,"BANNER"
"Bracknell Forest Council","http://opendatacommunities.org/id/unitary-authority/bracknell-forest","Bracknell Forest Council","00MA","Central Support Services - COF","Legal","Legal Services","Office Stationery",31/12/2013 00:00:00,"30233373",0.28,"BANNER"
"Bracknell Forest Council","http://opendatacommunities.org/id/unitary-authority/bracknell-forest","Bracknell Forest Council","00MA","Management and Support Services - CYPL","Unallocated Early years Related Expenditure","SSEYCG Management & Admin","Office Stationery",31/12/2013 00:00:00,"30233373",37.1,"BANNER"
"Bracknell Forest Council","http://opendatacommunities.org/id/unitary-authority/bracknell-forest","Bracknell Forest Council","00MA","Management and Support Services - CYPL","Unallocated Early years Related Expenditure","SSEYCG Management & Admin","Office Stationery",31/12/2013 00:00:00,"30233373",13.66,"BANNER"
"Bracknell Forest Council","http://opendatacommunities.org/id/unitary-authority/bracknell-forest","Bracknell Forest Council","00MA","Management and Support Services - CYPL","Unallocated Early years Related Expenditure","SSEYCG Management & Admin","Office Stationery",31/12/2013 00:00:00,"30233373",9.08,"BANNER"
"Bracknell Forest Council","http://opendatacommunities.org/id/unitary-authority/bracknell-forest","Bracknell Forest Council","00MA","Management and Support Services - CYPL","Unallocated Early years Related Expenditure","SSEYCG Management & Admin","Office Stationery",31/12/2013 00:00:00,"30233373",1.01,"BANNER"
"Bracknell Forest Council","http://opendatacommunities.org/id/unitary-authority/bracknell-forest","Bracknell Forest Council","00MA","Management and Support Services - CYPL","Unallocated Early years Related Expenditure","SSEYCG Management & Admin","Office Stationery",31/12/2013 00:00:00,"30233373",17.04,"BANNER"
"Bracknell Forest Council","http://opendatacommunities.org/id/unitary-authority/bracknell-forest","Bracknell Forest Council","00MA","Early Years","Children's Centres","The Willows Children's Centre","Office Stationery",31/12/2013 00:00:00,"30233373",52.76,"BANNER"
"Bracknell Forest Council","http://opendatacommunities.org/id/unitary-authority/bracknell-forest","Bracknell Forest Council","00MA","Management and Support Services - CYPL","Strategy, Resources and Early Interventions","Reception & Office Services","Office Stationery",31/12/2013 00:00:00,"30233373",3.81,"BANNER"
"Bracknell Forest Council","http://opendatacommunities.org/id/unitary-authority/bracknell-forest","Bracknell Forest Council","00MA","Recreation, Sports and Leisure","Indoor Sports & Recreation Facilities","Leisure DSO - Leisure Centre","Office Stationery",31/12/2013 00:00:00,"30233373",8.54,"BANNER"
"Bracknell Forest Council","http://opendatacommunities.org/id/unitary-authority/bracknell-forest","Bracknell Forest Council","00MA","Recreation, Sports and Leisure","Indoor Sports & Recreation Facilities","Leisure DSO - Leisure Centre","Office Stationery",31/12/2013 00:00:00,"30233373",6.84,"BANNER"
"Bracknell Forest Council","http://opendatacommunities.org/id/unitary-authority/bracknell-forest","Bracknell Forest Council","00MA","Recreation, Sports and Leisure","Indoor Sports & Recreation Facilities","Leisure DSO - Coral Reef","Office Stationery",31/12/2013 00:00:00,"30233373",114.7,"BANNER"
"Bracknell Forest Council","http://opendatacommunities.org/id/unitary-authority/bracknell-forest","Bracknell Forest Council","00MA","Recreation, Sports and Leisure","Indoor Sports & Recreation Facilities","Leisure DSO - Coral Reef","Office Stationery",31/12/2013 00:00:00,"30233373",13.5,"BANNER"
"Bracknell Forest Council","http://opendatacommunities.org/id/unitary-authority/bracknell-forest","Bracknell Forest Council","00MA","Recreation, Sports and Leisure","Indoor Sports & Recreation Facilities","Leisure DSO - Coral Reef","Office Stationery",31/12/2013 00:00:00,"30233373",5.66,"BANNER"
"Bracknell Forest Council","http://opendatacommunities.org/id/unitary-authority/bracknell-forest","Bracknell Forest Council","00MA","Recreation, Sports and Leisure","Indoor Sports & Recreation Facilities","Leisure DSO - Coral Reef","Office Stationery",31/12/2013 00:00:00,"30233373",0.56,"BANNER"
"Bracknell Forest Council","http://opendatacommunities.org/id/unitary-authority/bracknell-forest","Bracknell Forest Council","00MA","Recreation, Sports and Leisure","Indoor Sports & Recreation Facilities","Leisure DSO - Coral Reef","Office Stationery",31/12/2013 00:00:00,"30233373",0.26,"BANNER"
"Bracknell Forest Council","http://opendatacommunities.org/id/unitary-authority/bracknell-forest","Bracknell Forest Council","00MA","Other Welfare Services","Other Welfare Services","Forestcare - Operational","Office Stationery",31/12/2013 00:00:00,"30233373",2.7,"BANNER"
"Bracknell Forest Council","http://opendatacommunities.org/id/unitary-authority/bracknell-forest","Bracknell Forest Council","00MA","Other Welfare Services","Other Welfare Services","Forestcare - Operational","Office Stationery",31/12/2013 00:00:00,"30233373",1.2,"BANNER"
"Bracknell Forest Council","http://opendatacommunities.org/id/unitary-authority/bracknell-forest","Bracknell Forest Council","00MA","Other Welfare Services","Other Welfare Services","Forestcare - Operational","Office Stationery",31/12/2013 00:00:00,"30233373",0.64,"BANNER"
"Bracknell Forest Council","http://opendatacommunities.org/id/unitary-authority/bracknell-forest","Bracknell Forest Council","00MA","Other Welfare Services","Other Welfare Services","Forestcare - Operational","Office Stationery",31/12/2013 00:00:00,"30233373",0.63,"BANNER"
"Bracknell Forest Council","http://opendatacommunities.org/id/unitary-authority/bracknell-forest","Bracknell Forest Council","00MA","Other Welfare Services","Other Welfare Services","Forestcare - Operational","Office Stationery",31/12/2013 00:00:00,"30233373",0.2,"BANNER"
"Bracknell Forest Council","http://opendatacommunities.org/id/unitary-authority/bracknell-forest","Bracknell Forest Council","00MA","Support Services & Management Costs","Management and Administration","Head of Service -Adults","Office Stationery",31/12/2013 00:00:00,"30233373",124.8,"BANNER"
"Bracknell Forest Council","http://opendatacommunities.org/id/unitary-authority/bracknell-forest","Bracknell Forest Council","00MA","Support Services & Management Costs","Management and Administration","Head of Service -Adults","Office Stationery",31/12/2013 00:00:00,"30233373",6.34,"BANNER"
"Bracknell Forest Council","http://opendatacommunities.org/id/unitary-authority/bracknell-forest","Bracknell Forest Council","00MA","Support Services & Management Costs","Management and Administration","Head of Service -Adults","Office Stationery",31/12/2013 00:00:00,"30233373",28.61,"BANNER"
"Bracknell Forest Council","http://opendatacommunities.org/id/unitary-authority/bracknell-forest","Bracknell Forest Council","00MA","Support Services & Management Costs","Management and Administration","Head of Service -Adults","Office Stationery",31/12/2013 00:00:00,"30233373",14.36,"BANNER"
"Bracknell Forest Council","http://opendatacommunities.org/id/unitary-authority/bracknell-forest","Bracknell Forest Council","00MA","Support Services & Management Costs","Management and Administration","Head of Service -Adults","Office Stationery",31/12/2013 00:00:00,"30233373",6.24,"BANNER"
"Bracknell Forest Council","http://opendatacommunities.org/id/unitary-authority/bracknell-forest","Bracknell Forest Council","00MA","Services to Young People","Other Services to Young People","Portman Close Running Costs","Office Stationery",31/12/2013 00:00:00,"30233373",64.36,"BANNER"
"Bracknell Forest Council","http://opendatacommunities.org/id/unitary-authority/bracknell-forest","Bracknell Forest Council","00MA","Services to Young People","Other Services to Young People","Portman Close Running Costs","Office Stationery",31/12/2013 00:00:00,"30233373",37.3,"BANNER"
"Bracknell Forest Council","http://opendatacommunities.org/id/unitary-authority/bracknell-forest","Bracknell Forest Council","00MA","Services to Young People","Other Services to Young People","Portman Close Running Costs","Office Stationery",31/12/2013 00:00:00,"30233373",24.24,"BANNER"
"Bracknell Forest Council","http://opendatacommunities.org/id/unitary-authority/bracknell-forest","Bracknell Forest Council","00MA","Services to Young People","Other Services to Young People","Portman Close Running Costs","Office Stationery",31/12/2013 00:00:00,"30233373",20.2,"BANNER"
"Bracknell Forest Council","http://opendatacommunities.org/id/unitary-authority/bracknell-forest","Bracknell Forest Council","00MA","Services to Young People","Other Services to Young People","Portman Close Running Costs","Office Stationery",31/12/2013 00:00:00,"30233373",11.47,"BANNER"
"Bracknell Forest Council","http://opendatacommunities.org/id/unitary-authority/bracknell-forest","Bracknell Forest Council","00MA","Recreation, Sports and Leisure","Indoor Sports & Recreation Facilities","Leisure DSO - Leisure Centre","Office Stationery",31/12/2013 00:00:00,"30233373",49.16,"BANNER"
"Bracknell Forest Council","http://opendatacommunities.org/id/unitary-authority/bracknell-forest","Bracknell Forest Council","00MA","Central Support Services - COF","Legal","Legal Services","Office Stationery",31/12/2013 00:00:00,"30233373",13.5,"BANNER"
"Bracknell Forest Council","http://opendatacommunities.org/id/unitary-authority/bracknell-forest","Bracknell Forest Council","00MA","Management and Support Services - CYPL","Holding Codes - net nil","South East Grid for Learning","Office Stationery",31/12/2013 00:00:00,"30233373",5.98,"BANNER"
"Bracknell Forest Council","http://opendatacommunities.org/id/unitary-authority/bracknell-forest","Bracknell Forest Council","00MA","Support Services & Management Costs","Management and Administration","Head of Service -Adults","Office Stationery",31/12/2013 00:00:00,"30233373",36.84,"BANNER"
"Bracknell Forest Council","http://opendatacommunities.org/id/unitary-authority/bracknell-forest","Bracknell Forest Council","00MA","Support Services & Management Costs","Management and Administration","Head of Service -Adults","Office Stationery",31/12/2013 00:00:00,"30233373",15.06,"BANNER"
"Bracknell Forest Council","http://opendatacommunities.org/id/unitary-authority/bracknell-forest","Bracknell Forest Council","00MA","Family Support Services","Other family support services","Family Centre Running Costs","Office Stationery",31/12/2013 00:00:00,"30233373",4.55,"BANNER"
"Bracknell Forest Council","http://opendatacommunities.org/id/unitary-authority/bracknell-forest","Bracknell Forest Council","00MA","Service Management & Support Services","Service Management & Support Services","Departmental Office Services","Office Stationery",31/12/2013 00:00:00,"30233373",4.8,"BANNER"
"Bracknell Forest Council","http://opendatacommunities.org/id/unitary-authority/bracknell-forest","Bracknell Forest Council","00MA","Service Management & Support Services","Service Management & Support Services","Departmental Office Services","Office Stationery",31/12/2013 00:00:00,"30233373",2.5,"BANNER"
"Bracknell Forest Council","http://opendatacommunities.org/id/unitary-authority/bracknell-forest","Bracknell Forest Council","00MA","Service Management & Support Services","Service Management & Support Services","Departmental Office Services","Office Stationery",31/12/2013 00:00:00,"30233373",1.54,"BANNER"
"Bracknell Forest Council","http://opendatacommunities.org/id/unitary-authority/bracknell-forest","Bracknell Forest Council","00MA","Registration Births, Deaths & Marriages","Registration births, deaths and marriages","Registration Marriages","Office Stationery",31/12/2013 00:00:00,"30233373",1.01,"BANNER"
"Bracknell Forest Council","http://opendatacommunities.org/id/unitary-authority/bracknell-forest","Bracknell Forest Council","00MA","Early Years","Children's Centres","The Oaks Children's Centre","Office Stationery",31/12/2013 00:00:00,"30233373",1.3,"BANNER"
"Bracknell Forest Council","http://opendatacommunities.org/id/unitary-authority/bracknell-forest","Bracknell Forest Council","00MA","Early Years","Children's Centres","The Oaks Children's Centre","Office Stationery",31/12/2013 00:00:00,"30233373",0.7,"BANNER"
"Bracknell Forest Council","http://opendatacommunities.org/id/unitary-authority/bracknell-forest","Bracknell Forest Council","00MA","Learning Disability (under 65)","Assessment & Care Management","Learning Disability Team","Office Stationery",31/12/2013 00:00:00,"30233373",45.88,"BANNER"
"Bracknell Forest Council","http://opendatacommunities.org/id/unitary-authority/bracknell-forest","Bracknell Forest Council","00MA","Learning Disability (under 65)","Assessment & Care Management","Learning Disability Team","Office Stationery",31/12/2013 00:00:00,"30233373",33,"BANNER"
"Bracknell Forest Council","http://opendatacommunities.org/id/unitary-authority/bracknell-forest","Bracknell Forest Council","00MA","Learning Disability (under 65)","Assessment & Care Management","Learning Disability Team","Office Stationery",31/12/2013 00:00:00,"30233373",22.02,"BANNER"
"Bracknell Forest Council","http://opendatacommunities.org/id/unitary-authority/bracknell-forest","Bracknell Forest Council","00MA","Service Management & Support Services","Service Management & Support Services","Departmental Office Services","Office Stationery",31/12/2013 00:00:00,"30233373",0.99,"BANNER"
"Bracknell Forest Council","http://opendatacommunities.org/id/unitary-authority/bracknell-forest","Bracknell Forest Council","00MA","Service Management & Support Services","Service Management & Support Services","Departmental Office Services","Office Stationery",31/12/2013 00:00:00,"30233373",0.75,"BANNER"
"Bracknell Forest Council","http://opendatacommunities.org/id/unitary-authority/bracknell-forest","Bracknell Forest Council","00MA","Service Management & Support Services","Service Management & Support Services","Departmental Office Services","Office Stationery",31/12/2013 00:00:00,"30233373",37.44,"BANNER"
"Bracknell Forest Council","http://opendatacommunities.org/id/unitary-authority/bracknell-forest","Bracknell Forest Council","00MA","Service Management & Support Services","Service Management & Support Services","Departmental Office Services","Office Stationery",31/12/2013 00:00:00,"30233373",9.5,"BANNER"
"Bracknell Forest Council","http://opendatacommunities.org/id/unitary-authority/bracknell-forest","Bracknell Forest Council","00MA","Management and Support Services - CYPL","Unallocated Schools Budget Related Expenditure","Primary Resource Centre","Office Stationery",31/12/2013 00:00:00,"30233373",10.18,"BANNER"
"Bracknell Forest Council","http://opendatacommunities.org/id/unitary-authority/bracknell-forest","Bracknell Forest Council","00MA","Management and Support Services - CYPL","Unallocated Schools Budget Related Expenditure","Primary Resource Centre","Office Stationery",31/12/2013 00:00:00,"30233373",9.5,"BANNER"
"Bracknell Forest Council","http://opendatacommunities.org/id/unitary-authority/bracknell-forest","Bracknell Forest Council","00MA","Registration Births, Deaths & Marriages","Registration births, deaths and marriages","Registration Marriages","Office Stationery",31/12/2013 00:00:00,"30233373",3.87,"BANNER"
"Bracknell Forest Council","http://opendatacommunities.org/id/unitary-authority/bracknell-forest","Bracknell Forest Council","00MA","Registration Births, Deaths & Marriages","Registration births, deaths and marriages","Registration Marriages","Office Stationery",31/12/2013 00:00:00,"30233373",41.99,"BANNER"
"Bracknell Forest Council","http://opendatacommunities.org/id/unitary-authority/bracknell-forest","Bracknell Forest Council","00MA","Registration Births, Deaths & Marriages","Registration births, deaths and marriages","Registration Marriages","Office Stationery",31/12/2013 00:00:00,"30233373",12.48,"BANNER"
"Bracknell Forest Council","http://opendatacommunities.org/id/unitary-authority/bracknell-forest","Bracknell Forest Council","00MA","Registration Births, Deaths & Marriages","Registration births, deaths and marriages","Registration Marriages","Office Stationery",31/12/2013 00:00:00,"30233373",10.54,"BANNER"
"Bracknell Forest Council","http://opendatacommunities.org/id/unitary-authority/bracknell-forest","Bracknell Forest Council","00MA","Registration Births, Deaths & Marriages","Registration births, deaths and marriages","Registration Marriages","Office Stationery",31/12/2013 00:00:00,"30233373",6.09,"BANNER"
"Bracknell Forest Council","http://opendatacommunities.org/id/unitary-authority/bracknell-forest","Bracknell Forest Council","00MA","Registration Births, Deaths & Marriages","Registration births, deaths and marriages","Registration Marriages","Office Stationery",31/12/2013 00:00:00,"30233373",1.72,"BANNER"
"Bracknell Forest Council","http://opendatacommunities.org/id/unitary-authority/bracknell-forest","Bracknell Forest Council","00MA","Service Management & Support Services","Service Management & Support Services","Departmental Office Services","Office Stationery",31/12/2013 00:00:00,"30233373",3.51,"BANNER"
"Bracknell Forest Council","http://opendatacommunities.org/id/unitary-authority/bracknell-forest","Bracknell Forest Council","00MA","Service Management & Support Services","Service Management & Support Services","Departmental Office Services","Office Stationery",31/12/2013 00:00:00,"30233373",27.36,"BANNER"
"Bracknell Forest Council","http://opendatacommunities.org/id/unitary-authority/bracknell-forest","Bracknell Forest Council","00MA","Older People (Aged 65 or Over)","Residential Care Home Placements","Heathlands EPH","Office Stationery",31/12/2013 00:00:00,"30233373",6.78,"BANNER"
"Bracknell Forest Council","http://opendatacommunities.org/id/unitary-authority/bracknell-forest","Bracknell Forest Council","00MA","Older People (Aged 65 or Over)","Residential Care Home Placements","Heathlands EPH","Office Stationery",31/12/2013 00:00:00,"30233373",5.39,"BANNER"
"Bracknell Forest Council","http://opendatacommunities.org/id/unitary-authority/bracknell-forest","Bracknell Forest Council","00MA","Older People (Aged 65 or Over)","Residential Care Home Placements","Heathlands EPH","Office Stationery",31/12/2013 00:00:00,"30233373",2.2,"BANNER"
"Bracknell Forest Council","http://opendatacommunities.org/id/unitary-authority/bracknell-forest","Bracknell Forest Council","00MA","Older People (Aged 65 or Over)","Residential Care Home Placements","Heathlands EPH","Office Stationery",31/12/2013 00:00:00,"30233373",0.62,"BANNER"
"Bracknell Forest Council","http://opendatacommunities.org/id/unitary-authority/bracknell-forest","Bracknell Forest Council","00MA","Older People (Aged 65 or Over)","Residential Care Home Placements","Heathlands EPH","Office Stationery",31/12/2013 00:00:00,"30233373",57.94,"BANNER"
"Bracknell Forest Council","http://opendatacommunities.org/id/unitary-authority/bracknell-forest","Bracknell Forest Council","00MA","Culture and Heritage","Heritage Museums & Galleries","The Look Out","Office Stationery",31/12/2013 00:00:00,"30233373",24.2,"BANNER"
"Bracknell Forest Council","http://opendatacommunities.org/id/unitary-authority/bracknell-forest","Bracknell Forest Council","00MA","Central Support Services - COF","Personnel","Personnel Services","Office Stationery",31/12/2013 00:00:00,"30233373",37.44,"BANNER"
"Bracknell Forest Council","http://opendatacommunities.org/id/unitary-authority/bracknell-forest","Bracknell Forest Council","00MA","Services to Young People","Adult and Community Learning","Community Learning","Office Stationery",31/12/2013 00:00:00,"30233373",8.9,"BANNER"
"Bracknell Forest Council","http://opendatacommunities.org/id/unitary-authority/bracknell-forest","Bracknell Forest Council","00MA","Services to Young People","Adult and Community Learning","Community Learning","Office Stationery",31/12/2013 00:00:00,"30233373",2.6,"BANNER"
"Bracknell Forest Council","http://opendatacommunities.org/id/unitary-authority/bracknell-forest","Bracknell Forest Council","00MA","Management and Support Services - CYPL","Unallocated Schools Budget Related Expenditure","Primary Resource Centre","Office Stationery",31/12/2013 00:00:00,"30233373",65.95,"BANNER"
"Bracknell Forest Council","http://opendatacommunities.org/id/unitary-authority/bracknell-forest","Bracknell Forest Council","00MA","Management and Support Services - CYPL","Unallocated Schools Budget Related Expenditure","Primary Resource Centre","Office Stationery",31/12/2013 00:00:00,"30233373",57.7,"BANNER"
"Bracknell Forest Council","http://opendatacommunities.org/id/unitary-authority/bracknell-forest","Bracknell Forest Council","00MA","Management and Support Services - CYPL","Unallocated Schools Budget Related Expenditure","Primary Resource Centre","Office Stationery",31/12/2013 00:00:00,"30233373",27.64,"BANNER"
"Bracknell Forest Council","http://opendatacommunities.org/id/unitary-authority/bracknell-forest","Bracknell Forest Council","00MA","Older People (Aged 65 or Over)","Residential Care Home Placements","Bridgewell Unit","Office Stationery",31/12/2013 00:00:00,"30233373",16.56,"BANNER"
"Bracknell Forest Council","http://opendatacommunities.org/id/unitary-authority/bracknell-forest","Bracknell Forest Council","00MA","Service Management & Support Services","Service Management & Support Services","Departmental Office Services","Office Stationery",31/12/2013 00:00:00,"30233373",20.81,"BANNER"
"Bracknell Forest Council","http://opendatacommunities.org/id/unitary-authority/bracknell-forest","Bracknell Forest Council","00MA","Service Management & Support Services","Service Management & Support Services","Departmental Office Services","Office Stationery",31/12/2013 00:00:00,"30233373",13.34,"BANNER"
"Bracknell Forest Council","http://opendatacommunities.org/id/unitary-authority/bracknell-forest","Bracknell Forest Council","00MA","Service Management & Support Services","Service Management & Support Services","Departmental Office Services","Office Stationery",31/12/2013 00:00:00,"30233373",6.95,"BANNER"
"Bracknell Forest Council","http://opendatacommunities.org/id/unitary-authority/bracknell-forest","Bracknell Forest Council","00MA","Service Management & Support Services","Service Management & Support Services","Departmental Office Services","Office Stationery",31/12/2013 00:00:00,"30233373",3.64,"BANNER"
"Bracknell Forest Council","http://opendatacommunities.org/id/unitary-authority/bracknell-forest","Bracknell Forest Council","00MA","Service Management & Support Services","Service Management & Support Services","Departmental Office Services","Office Stationery",31/12/2013 00:00:00,"30233373",13.91,"BANNER"
"Bracknell Forest Council","http://opendatacommunities.org/id/unitary-authority/bracknell-forest","Bracknell Forest Council","00MA","Service Management & Support Services","Service Management & Support Services","Departmental Office Services","Office Stationery",31/12/2013 00:00:00,"30233373",7.26,"BANNER"
"Bracknell Forest Council","http://opendatacommunities.org/id/unitary-authority/bracknell-forest","Bracknell Forest Council","00MA","Service Management & Support Services","Service Management & Support Services","Departmental Office Services","Office Stationery",31/12/2013 00:00:00,"30233373",6.8,"BANNER"
"Bracknell Forest Council","http://opendatacommunities.org/id/unitary-authority/bracknell-forest","Bracknell Forest Council","00MA","Culture and Heritage","Heritage Museums & Galleries","The Look Out","Office Stationery",31/12/2013 00:00:00,"30233373",53.9,"BANNER"
"Bracknell Forest Council","http://opendatacommunities.org/id/unitary-authority/bracknell-forest","Bracknell Forest Council","00MA","Management and Support Services - CYPL","Unallocated Schools Budget Related Expenditure","Primary Resource Centre","Office Stationery",31/12/2013 00:00:00,"30233373",0.25,"BANNER"
"Bracknell Forest Council","http://opendatacommunities.org/id/unitary-authority/bracknell-forest","Bracknell Forest Council","00MA","Management and Support Services - CYPL","Unallocated Schools Budget Related Expenditure","Primary Resource Centre","Office Stationery",31/12/2013 00:00:00,"30233373",46.8,"BANNER"
"Bracknell Forest Council","http://opendatacommunities.org/id/unitary-authority/bracknell-forest","Bracknell Forest Council","00MA","Services to Young People","Adult and Community Learning","Open Learning Centre - Brakenhale","Office Stationery",31/12/2013 00:00:00,"30233373",56.76,"BANNER"
"Bracknell Forest Council","http://opendatacommunities.org/id/unitary-authority/bracknell-forest","Bracknell Forest Council","00MA","Other School Related Education Services","Learner Support","Learning & Achievement","Office Stationery",31/12/2013 00:00:00,"30233373",42.7,"BANNER"
"Bracknell Forest Council","http://opendatacommunities.org/id/unitary-authority/bracknell-forest","Bracknell Forest Council","00MA","Other School Related Education Services","Learner Support","Learning & Achievement","Office Stationery",31/12/2013 00:00:00,"30233373",34.75,"BANNER"
"Bracknell Forest Council","http://opendatacommunities.org/id/unitary-authority/bracknell-forest","Bracknell Forest Council","00MA","Central Support Services - COF","Information Technology","Information Technology - Management","Office Stationery",31/12/2013 00:00:00,"30233373",0.18,"BANNER"
"Bracknell Forest Council","http://opendatacommunities.org/id/unitary-authority/bracknell-forest","Bracknell Forest Council","00MA","Service Management & Support Services","Service Management & Support Services","Departmental Office Services","Office Stationery",31/12/2013 00:00:00,"30233373",3.68,"BANNER"
"Bracknell Forest Council","http://opendatacommunities.org/id/unitary-authority/bracknell-forest","Bracknell Forest Council","00MA","Service Management & Support Services","Service Management & Support Services","Departmental Office Services","Office Stationery",31/12/2013 00:00:00,"30233373",3.48,"BANNER"
"Bracknell Forest Council","http://opendatacommunities.org/id/unitary-authority/bracknell-forest","Bracknell Forest Council","00MA","Service Management & Support Services","Service Management & Support Services","Departmental Office Services","Office Stationery",31/12/2013 00:00:00,"30233373",1.07,"BANNER"
"Bracknell Forest Council","http://opendatacommunities.org/id/unitary-authority/bracknell-forest","Bracknell Forest Council","00MA","Service Management & Support Services","Service Management & Support Services","Departmental Office Services","Office Stationery",31/12/2013 00:00:00,"30233373",62.4,"BANNER"
"Bracknell Forest Council","http://opendatacommunities.org/id/unitary-authority/bracknell-forest","Bracknell Forest Council","00MA","Service Management & Support Services","Service Management & Support Services","Departmental Office Services","Office Stationery",31/12/2013 00:00:00,"30233373",1.04,"BANNER"
"Bracknell Forest Council","http://opendatacommunities.org/id/unitary-authority/bracknell-forest","Bracknell Forest Council","00MA","Service Management & Support Services","Service Management & Support Services","Departmental Office Services","Office Stationery",31/12/2013 00:00:00,"30233373",39.46,"BANNER"
"Bracknell Forest Council","http://opendatacommunities.org/id/unitary-authority/bracknell-forest","Bracknell Forest Council","00MA","Service Management & Support Services","Service Management & Support Services","Departmental Office Services","Office Stationery",31/12/2013 00:00:00,"30233373",24.06,"BANNER"
"Bracknell Forest Council","http://opendatacommunities.org/id/unitary-authority/bracknell-forest","Bracknell Forest Council","00MA","Services to Young People","Other Services to Young People","Adventure Education Work","Office Stationery",31/12/2013 00:00:00,"30233373",9.62,"BANNER"
"Bracknell Forest Council","http://opendatacommunities.org/id/unitary-authority/bracknell-forest","Bracknell Forest Council","00MA","Services to Young People","Other Services to Young People","Adventure Education Work","Office Stationery",31/12/2013 00:00:00,"30233373",3.08,"BANNER"
"Bracknell Forest Council","http://opendatacommunities.org/id/unitary-authority/bracknell-forest","Bracknell Forest Council","00MA","Corporate Management COF","Corporate Management COF","Chief Executive & Support","Office Stationery",31/12/2013 00:00:00,"30233373",24.96,"BANNER"
"Bracknell Forest Council","http://opendatacommunities.org/id/unitary-authority/bracknell-forest","Bracknell Forest Council","00MA","Central Support Services - COF","Policy Unit","Chief Executive's Office","Office Stationery",31/12/2013 00:00:00,"30233373",26.34,"BANNER"
"Bracknell Forest Council","http://opendatacommunities.org/id/unitary-authority/bracknell-forest","Bracknell Forest Council","00MA","Older People (Aged 65 or Over)","Residential Care Home Placements","Heathlands EPH","Office Stationery",31/12/2013 00:00:00,"30233373",9.95,"BANNER"
"Bracknell Forest Council","http://opendatacommunities.org/id/unitary-authority/bracknell-forest","Bracknell Forest Council","00MA","Older People (Aged 65 or Over)","Residential Care Home Placements","Heathlands EPH","Office Stationery",31/12/2013 00:00:00,"30233373",8.69,"BANNER"
"Bracknell Forest Council","http://opendatacommunities.org/id/unitary-authority/bracknell-forest","Bracknell Forest Council","00MA","","","Time Square Accommodation","Construction - Contract Payments",18/12/2013 00:00:00,"6536752",600,"CBS BUSINESS FURNITURE LTD"
"Bracknell Forest Council","http://opendatacommunities.org/id/unitary-authority/bracknell-forest","Bracknell Forest Council","00MA","Open Spaces","Community Parks & Open Spaces","Tree Service","Contracted Services",12/12/2013 00:00:00,"6536556",645,"CEDARDALE"
"Bracknell Forest Council","http://opendatacommunities.org/id/unitary-authority/bracknell-forest","Bracknell Forest Council","00MA","Special Schools","Centrally managed Expenditure - Special","Supporting SEN Pre 16","Voluntary Sector Service Providers",18/11/2013 00:00:00,"6535423",4760,"CFBT- SCHOOL IMPROVMENT SERVICE"
"Bracknell Forest Council","http://opendatacommunities.org/id/unitary-authority/bracknell-forest","Bracknell Forest Council","00MA","Special Schools","Centrally managed Expenditure - Special","Supporting SEN Pre 16","Voluntary Sector Service Providers",03/10/2013 00:00:00,"6533521",11757.17,"CHAILEY HERITAGE FOUNDATION"
"Bracknell Forest Council","http://opendatacommunities.org/id/unitary-authority/bracknell-forest","Bracknell Forest Council","00MA","Older People (Aged 65 or Over)","Residential Care Home Placements","Residential EMI Placements - Elderly","Contracted Services",17/12/2013 00:00:00,"30232702",2011.2,"CHARNLEY CARE HOMES LTD"
"Bracknell Forest Council","http://opendatacommunities.org/id/unitary-authority/bracknell-forest","Bracknell Forest Council","00MA","Older People (Aged 65 or Over)","Residential Care Home Placements","Residential EMI Placements - Elderly","Contracted Services",17/12/2013 00:00:00,"30232702",2011.2,"CHARNLEY CARE HOMES LTD"
"Bracknell Forest Council","http://opendatacommunities.org/id/unitary-authority/bracknell-forest","Bracknell Forest Council","00MA","Older People (Aged 65 or Over)","Residential Care Home Placements","Residential EMI Placements - Elderly","Contracted Services",17/12/2013 00:00:00,"30232702",2800,"CHARNLEY CARE HOMES LTD"
"Bracknell Forest Council","http://opendatacommunities.org/id/unitary-authority/bracknell-forest","Bracknell Forest Council","00MA","Older People (Aged 65 or Over)","Residential Care Home Placements","Residential EMI Placements - Elderly","Contracted Services",17/12/2013 00:00:00,"30232702",5011.2,"CHARNLEY CARE HOMES LTD"
"Bracknell Forest Council","http://opendatacommunities.org/id/unitary-authority/bracknell-forest","Bracknell Forest Council","00MA","Older People (Aged 65 or Over)","Residential Care Home Placements","Residential EMI Placements - Elderly","Contracted Services",17/12/2013 00:00:00,"30232702",2011.2,"CHARNLEY CARE HOMES LTD"
"Bracknell Forest Council","http://opendatacommunities.org/id/unitary-authority/bracknell-forest","Bracknell Forest Council","00MA","Service Management & Support Services","Service Management & Support Services","Departmental Personnel","Professional Subscriptions & Legal Practising Cert",06/12/2013 00:00:00,"6535134",805,"CHARTERED INSTITUTE OF ENVIRONMENTAL HEALTH"
"Bracknell Forest Council","http://opendatacommunities.org/id/unitary-authority/bracknell-forest","Bracknell Forest Council","00MA","Service Management & Support Services","Service Management & Support Services","Departmental Personnel","Professional Subscriptions & Legal Practising Cert",11/12/2013 00:00:00,"6535333",795,"CHARTERED INSTITUTE OF ENVIRONMENTAL HEALTH"
"Bracknell Forest Council","http://opendatacommunities.org/id/unitary-authority/bracknell-forest","Bracknell Forest Council","00MA","Management and Support Services - CYPL","Unallocated Schools Budget Related Expenditure","Mainstream - Element 3 top up non BFC pre 16","RB of Windsor & Maidenhead",13/11/2013 00:00:00,"6534481",7188,"CHARTERS SCHOOL"
"Bracknell Forest Council","http://opendatacommunities.org/id/unitary-authority/bracknell-forest","Bracknell Forest Council","00MA","Culture and Heritage","Heritage Museums & Galleries","The Look Out","Office Stationery",31/12/2013 00:00:00,"30233373",124.8,"BANNER"
"Bracknell Forest Council","http://opendatacommunities.org/id/unitary-authority/bracknell-forest","Bracknell Forest Council","00MA","Central Support Services - COF","Finance","Finance Departmental Administration","Office Stationery",31/12/2013 00:00:00,"30233373",122.99,"BANNER"
"Bracknell Forest Council","http://opendatacommunities.org/id/unitary-authority/bracknell-forest","Bracknell Forest Council","00MA","Central Support Services - COF","Finance","Finance Departmental Administration","Office Stationery",31/12/2013 00:00:00,"30233373",49.92,"BANNER"
"Bracknell Forest Council","http://opendatacommunities.org/id/unitary-authority/bracknell-forest","Bracknell Forest Council","00MA","Central Support Services - COF","Finance","Finance Departmental Administration","Office Stationery",31/12/2013 00:00:00,"30233373",17.48,"BANNER"
"Bracknell Forest Council","http://opendatacommunities.org/id/unitary-authority/bracknell-forest","Bracknell Forest Council","00MA","Central Support Services - COF","Finance","Finance Departmental Administration","Office Stationery",31/12/2013 00:00:00,"30233373",6.54,"BANNER"
"Bracknell Forest Council","http://opendatacommunities.org/id/unitary-authority/bracknell-forest","Bracknell Forest Council","00MA","Other School Related Education Services","Learner Support","Learning & Achievement","Office Stationery",31/12/2013 00:00:00,"30233373",25.95,"BANNER"
"Bracknell Forest Council","http://opendatacommunities.org/id/unitary-authority/bracknell-forest","Bracknell Forest Council","00MA","Other School Related Education Services","Learner Support","Learning & Achievement","Office Stationery",31/12/2013 00:00:00,"30233373",21.3,"BANNER"
"Bracknell Forest Council","http://opendatacommunities.org/id/unitary-authority/bracknell-forest","Bracknell Forest Council","00MA","Other School Related Education Services","Learner Support","Learning & Achievement","Office Stationery",31/12/2013 00:00:00,"30233373",13.32,"BANNER"
"Bracknell Forest Council","http://opendatacommunities.org/id/unitary-authority/bracknell-forest","Bracknell Forest Council","00MA","Other School Related Education Services","Learner Support","Learning & Achievement","Office Stationery",31/12/2013 00:00:00,"30233373",9.45,"BANNER"
"Bracknell Forest Council","http://opendatacommunities.org/id/unitary-authority/bracknell-forest","Bracknell Forest Council","00MA","Other School Related Education Services","Learner Support","Learning & Achievement","Office Stationery",31/12/2013 00:00:00,"30233373",4.49,"BANNER"
"Bracknell Forest Council","http://opendatacommunities.org/id/unitary-authority/bracknell-forest","Bracknell Forest Council","00MA","Management and Support Services - CYPL","Holding Codes - net nil","Education Library Service","Office Stationery",31/12/2013 00:00:00,"30233373",19.07,"BANNER"
"Bracknell Forest Council","http://opendatacommunities.org/id/unitary-authority/bracknell-forest","Bracknell Forest Council","00MA","Management and Support Services - CYPL","Holding Codes - net nil","Education Library Service","Office Stationery",31/12/2013 00:00:00,"30233373",13.91,"BANNER"
"Bracknell Forest Council","http://opendatacommunities.org/id/unitary-authority/bracknell-forest","Bracknell Forest Council","00MA","Management and Support Services - CYPL","Holding Codes - net nil","Education Library Service","Office Stationery",31/12/2013 00:00:00,"30233373",10.87,"BANNER"
"Bracknell Forest Council","http://opendatacommunities.org/id/unitary-authority/bracknell-forest","Bracknell Forest Council","00MA","Management and Support Services - CYPL","Holding Codes - net nil","Education Library Service","Office Stationery",31/12/2013 00:00:00,"30233373",13.91,"BANNER"
"Bracknell Forest Council","http://opendatacommunities.org/id/unitary-authority/bracknell-forest","Bracknell Forest Council","00MA","Management and Support Services - CYPL","Holding Codes - net nil","Education Library Service","Office Stationery",31/12/2013 00:00:00,"30233373",-13.91,"BANNER"
"Bracknell Forest Council","http://opendatacommunities.org/id/unitary-authority/bracknell-forest","Bracknell Forest Council","00MA","Management and Support Services - CYPL","Unallocated Schools Budget Related Expenditure","Mainstream - Element 3 top up non BFC pre 16","RB of Windsor & Maidenhead",20/11/2013 00:00:00,"6535525",3620,"CHARTERS SCHOOL"
"Bracknell Forest Council","http://opendatacommunities.org/id/unitary-authority/bracknell-forest","Bracknell Forest Council","00MA","Management and Support Services - CYPL","Unallocated Schools Budget Related Expenditure","Mainstream - Element 3 top up non BFC post 16","RB of Windsor & Maidenhead",20/11/2013 00:00:00,"6535525",724,"CHARTERS SCHOOL"
"Bracknell Forest Council","http://opendatacommunities.org/id/unitary-authority/bracknell-forest","Bracknell Forest Council","00MA","Early Years","Centrally managed Expenditure - Early Years","Early Years and Childcare","Grants and Donations",17/12/2013 00:00:00,"30232841",137.2,"CHAVEY DOWN PRE-SCHOOL"
"Bracknell Forest Council","http://opendatacommunities.org/id/unitary-authority/bracknell-forest","Bracknell Forest Council","00MA","Early Years","Centrally managed Expenditure - Early Years","Early Years and Childcare","Grants and Donations",20/12/2013 00:00:00,"30233080",5867.47,"CHAVEY DOWN PRE-SCHOOL"
"Bracknell Forest Council","http://opendatacommunities.org/id/unitary-authority/bracknell-forest","Bracknell Forest Council","00MA","Culture and Heritage","Heritage Museums & Galleries","The Look Out","Cost of Goods Sold",02/12/2013 00:00:00,"6535598",869.73,"CHEATWELL GAMES"
"Bracknell Forest Council","http://opendatacommunities.org/id/unitary-authority/bracknell-forest","Bracknell Forest Council","00MA","Sexual Health Services","STI testing and treatment","Sexual Health - STI Testing & Treatment (Bracknell)","Contracted Services",15/11/2013 00:00:00,"6536331",535,"CHELSEA AND WESTMINSTER HOSPITAL NHS FOUNDATION TRUST"
"Bracknell Forest Council","http://opendatacommunities.org/id/unitary-authority/bracknell-forest","Bracknell Forest Council","00MA","Sexual Health Services","STI testing and treatment","Sexual Health - STI Testing & Treatment (Bracknell)","Contracted Services",04/12/2013 00:00:00,"6536558",629.04,"CHELSEA AND WESTMINSTER HOSPITAL NHS FOUNDATION TRUST"
"Bracknell Forest Council","http://opendatacommunities.org/id/unitary-authority/bracknell-forest","Bracknell Forest Council","00MA","Housing Benefits Administration","Housing Benefits Administration","Housing Local Welfare Provision - Programme","Contracted Services",27/11/2013 00:00:00,"6535386",628.5,"CHENEYS"
"Bracknell Forest Council","http://opendatacommunities.org/id/unitary-authority/bracknell-forest","Bracknell Forest Council","00MA","Older People (Aged 65 or Over)","Nursing Home Placements","Nursing Home Placements-Elderly","Contracted Services",17/12/2013 00:00:00,"30232702",4905.12,"CHERRY GARDEN NURSING HOME"
"Bracknell Forest Council","http://opendatacommunities.org/id/unitary-authority/bracknell-forest","Bracknell Forest Council","00MA","Older People (Aged 65 or Over)","Nursing Home Placements","Nursing Home Placements-Elderly","Contracted Services",17/12/2013 00:00:00,"30232702",2461.44,"CHERRY GARDEN NURSING HOME"
"Bracknell Forest Council","http://opendatacommunities.org/id/unitary-authority/bracknell-forest","Bracknell Forest Council","00MA","Older People (Aged 65 or Over)","Nursing Home Placements","Nursing Home Placements-Elderly","Contracted Services",17/12/2013 00:00:00,"30232702",2461.44,"CHERRY GARDEN NURSING HOME"
"Bracknell Forest Council","http://opendatacommunities.org/id/unitary-authority/bracknell-forest","Bracknell Forest Council","00MA","Older People (Aged 65 or Over)","Nursing Home Placements","Nursing Home Placements-Elderly","Contracted Services",17/12/2013 00:00:00,"30232702",2754.4,"CHERRY GARDEN NURSING HOME"
"Bracknell Forest Council","http://opendatacommunities.org/id/unitary-authority/bracknell-forest","Bracknell Forest Council","00MA","Central Support Services - COF","Information Technology","Information Technology - Management","Office Stationery",31/12/2013 00:00:00,"30233373",19.8,"BANNER"
"Bracknell Forest Council","http://opendatacommunities.org/id/unitary-authority/bracknell-forest","Bracknell Forest Council","00MA","Central Support Services - COF","Information Technology","Information Technology - Management","Office Stationery",31/12/2013 00:00:00,"30233373",9.76,"BANNER"
"Bracknell Forest Council","http://opendatacommunities.org/id/unitary-authority/bracknell-forest","Bracknell Forest Council","00MA","Open Spaces","Community Parks & Open Spaces","Urban Parks  - Maintenance","Office Stationery",31/12/2013 00:00:00,"30233373",20.09,"BANNER"
"Bracknell Forest Council","http://opendatacommunities.org/id/unitary-authority/bracknell-forest","Bracknell Forest Council","00MA","Open Spaces","Community Parks & Open Spaces","Urban Parks  - Maintenance","Office Stationery",31/12/2013 00:00:00,"30233373",18.8,"BANNER"
"Bracknell Forest Council","http://opendatacommunities.org/id/unitary-authority/bracknell-forest","Bracknell Forest Council","00MA","Open Spaces","Community Parks & Open Spaces","Urban Parks  - Maintenance","Office Stationery",31/12/2013 00:00:00,"30233373",11.47,"BANNER"
"Bracknell Forest Council","http://opendatacommunities.org/id/unitary-authority/bracknell-forest","Bracknell Forest Council","00MA","Learning Disability (under 65)","Assessment & Care Management","Learning Disability Team","Office Stationery",31/12/2013 00:00:00,"30233373",17.3,"BANNER"
"Bracknell Forest Council","http://opendatacommunities.org/id/unitary-authority/bracknell-forest","Bracknell Forest Council","00MA","Learning Disability (under 65)","Assessment & Care Management","Learning Disability Team","Office Stationery",31/12/2013 00:00:00,"30233373",5.39,"BANNER"
"Bracknell Forest Council","http://opendatacommunities.org/id/unitary-authority/bracknell-forest","Bracknell Forest Council","00MA","Central Support Services - COF","Personnel","Personnel Services","Office Stationery",31/12/2013 00:00:00,"30233373",8.82,"BANNER"
"Bracknell Forest Council","http://opendatacommunities.org/id/unitary-authority/bracknell-forest","Bracknell Forest Council","00MA","Central Support Services - COF","Personnel","Personnel Services","Office Stationery",31/12/2013 00:00:00,"30233373",3.26,"BANNER"
"Bracknell Forest Council","http://opendatacommunities.org/id/unitary-authority/bracknell-forest","Bracknell Forest Council","00MA","Central Support Services - COF","Personnel","Personnel Services","Office Stationery",31/12/2013 00:00:00,"30233373",0.7,"BANNER"
"Bracknell Forest Council","http://opendatacommunities.org/id/unitary-authority/bracknell-forest","Bracknell Forest Council","00MA","Service Management & Support Services","Service Management & Support Services","Departmental Office Services","Office Stationery",31/12/2013 00:00:00,"30233373",8.8,"BANNER"
"Bracknell Forest Council","http://opendatacommunities.org/id/unitary-authority/bracknell-forest","Bracknell Forest Council","00MA","Service Management & Support Services","Service Management & Support Services","Departmental Office Services","Office Stationery",31/12/2013 00:00:00,"30233373",4.89,"BANNER"
"Bracknell Forest Council","http://opendatacommunities.org/id/unitary-authority/bracknell-forest","Bracknell Forest Council","00MA","Service Management & Support Services","Service Management & Support Services","Departmental Office Services","Office Stationery",31/12/2013 00:00:00,"30233373",3.93,"BANNER"
"Bracknell Forest Council","http://opendatacommunities.org/id/unitary-authority/bracknell-forest","Bracknell Forest Council","00MA","Older People (Aged 65 or Over)","Residential Care Home Placements","Heathlands EPH","Office Stationery",31/12/2013 00:00:00,"30233373",4.11,"BANNER"
"Bracknell Forest Council","http://opendatacommunities.org/id/unitary-authority/bracknell-forest","Bracknell Forest Council","00MA","Other School Related Education Services","Learner Support","Learning & Achievement","Office Stationery",31/12/2013 00:00:00,"30233373",4,"BANNER"
"Bracknell Forest Council","http://opendatacommunities.org/id/unitary-authority/bracknell-forest","Bracknell Forest Council","00MA","Management and Support Services - CYPL","Unallocated Schools Budget Related Expenditure","Family Intervention Project","Office Stationery",31/12/2013 00:00:00,"30233373",1.96,"BANNER"
"Bracknell Forest Council","http://opendatacommunities.org/id/unitary-authority/bracknell-forest","Bracknell Forest Council","00MA","Central Support Services - COF","Policy Unit","Chief Executive's Office","Office Stationery",31/12/2013 00:00:00,"30233373",1.9,"BANNER"
"Bracknell Forest Council","http://opendatacommunities.org/id/unitary-authority/bracknell-forest","Bracknell Forest Council","00MA","Central Support Services - COF","Policy Unit","Chief Executive's Office","Office Stationery",31/12/2013 00:00:00,"30233373",0.43,"BANNER"
"Bracknell Forest Council","http://opendatacommunities.org/id/unitary-authority/bracknell-forest","Bracknell Forest Council","00MA","Central Support Services - COF","Policy Unit","Chief Executive's Office","Office Stationery",31/12/2013 00:00:00,"30233373",4.89,"BANNER"
"Bracknell Forest Council","http://opendatacommunities.org/id/unitary-authority/bracknell-forest","Bracknell Forest Council","00MA","Central Support Services - COF","Policy Unit","Chief Executive's Office","Office Stationery",31/12/2013 00:00:00,"30233373",3.78,"BANNER"
"Bracknell Forest Council","http://opendatacommunities.org/id/unitary-authority/bracknell-forest","Bracknell Forest Council","00MA","Central Support Services - COF","Policy Unit","Chief Executive's Office","Office Stationery",31/12/2013 00:00:00,"30233373",0.73,"BANNER"
"Bracknell Forest Council","http://opendatacommunities.org/id/unitary-authority/bracknell-forest","Bracknell Forest Council","00MA","Central Support Services - COF","Personnel","Personnel Services","Office Stationery",31/12/2013 00:00:00,"30233373",34.84,"BANNER"
"Bracknell Forest Council","http://opendatacommunities.org/id/unitary-authority/bracknell-forest","Bracknell Forest Council","00MA","Democratic Representation & Management COF","Democratic Representation & Management - COF","Committee Servicing","Office Stationery",31/12/2013 00:00:00,"30233373",124.8,"BANNER"
"Bracknell Forest Council","http://opendatacommunities.org/id/unitary-authority/bracknell-forest","Bracknell Forest Council","00MA","Democratic Representation & Management COF","Democratic Representation & Management - COF","Committee Servicing","Office Stationery",31/12/2013 00:00:00,"30233373",27.95,"BANNER"
"Bracknell Forest Council","http://opendatacommunities.org/id/unitary-authority/bracknell-forest","Bracknell Forest Council","00MA","Democratic Representation & Management COF","Democratic Representation & Management - COF","Committee Servicing","Office Stationery",31/12/2013 00:00:00,"30233373",21.08,"BANNER"
"Bracknell Forest Council","http://opendatacommunities.org/id/unitary-authority/bracknell-forest","Bracknell Forest Council","00MA","Democratic Representation & Management COF","Democratic Representation & Management - COF","Committee Servicing","Office Stationery",31/12/2013 00:00:00,"30233373",18.87,"BANNER"
"Bracknell Forest Council","http://opendatacommunities.org/id/unitary-authority/bracknell-forest","Bracknell Forest Council","00MA","Central Support Services - COF","Finance","Finance Departmental Administration","Office Stationery",31/12/2013 00:00:00,"30233373",106.56,"BANNER"
"Bracknell Forest Council","http://opendatacommunities.org/id/unitary-authority/bracknell-forest","Bracknell Forest Council","00MA","Democratic Representation & Management COF","Democratic Representation & Management - COF","Committee Servicing","Office Stationery",31/12/2013 00:00:00,"30233373",21.08,"BANNER"
"Bracknell Forest Council","http://opendatacommunities.org/id/unitary-authority/bracknell-forest","Bracknell Forest Council","00MA","Democratic Representation & Management COF","Democratic Representation & Management - COF","Committee Servicing","Office Stationery",31/12/2013 00:00:00,"30233373",-21.08,"BANNER"
"Bracknell Forest Council","http://opendatacommunities.org/id/unitary-authority/bracknell-forest","Bracknell Forest Council","00MA","Central Support Services - COF","Policy Unit","Chief Executive's Office","Office Stationery",31/12/2013 00:00:00,"30233373",0.52,"BANNER"
"Bracknell Forest Council","http://opendatacommunities.org/id/unitary-authority/bracknell-forest","Bracknell Forest Council","00MA","Central Support Services - COF","Policy Unit","Chief Executive's Office","Office Stationery",31/12/2013 00:00:00,"30233373",0.4,"BANNER"
"Bracknell Forest Council","http://opendatacommunities.org/id/unitary-authority/bracknell-forest","Bracknell Forest Council","00MA","Other Adult Services","Substance Abuse (Addictions)","New Hope Running Costs","Office Stationery",31/12/2013 00:00:00,"30233373",22.17,"BANNER"
"Bracknell Forest Council","http://opendatacommunities.org/id/unitary-authority/bracknell-forest","Bracknell Forest Council","00MA","Other Adult Services","Substance Abuse (Addictions)","New Hope Running Costs","Office Stationery",31/12/2013 00:00:00,"30233373",32.72,"BANNER"
"Bracknell Forest Council","http://opendatacommunities.org/id/unitary-authority/bracknell-forest","Bracknell Forest Council","00MA","Other Adult Services","Substance Abuse (Addictions)","New Hope Running Costs","Office Stationery",31/12/2013 00:00:00,"30233373",24.12,"BANNER"
"Bracknell Forest Council","http://opendatacommunities.org/id/unitary-authority/bracknell-forest","Bracknell Forest Council","00MA","Other Adult Services","Substance Abuse (Addictions)","New Hope Running Costs","Office Stationery",31/12/2013 00:00:00,"30233373",6.98,"BANNER"
"Bracknell Forest Council","http://opendatacommunities.org/id/unitary-authority/bracknell-forest","Bracknell Forest Council","00MA","Other Adult Services","Substance Abuse (Addictions)","New Hope Running Costs","Office Stationery",31/12/2013 00:00:00,"30233373",1.4,"BANNER"
"Bracknell Forest Council","http://opendatacommunities.org/id/unitary-authority/bracknell-forest","Bracknell Forest Council","00MA","Service Management & Support Services","Service Management & Support Services","Departmental Office Services","Office Stationery",31/12/2013 00:00:00,"30233373",1.8,"BANNER"
"Bracknell Forest Council","http://opendatacommunities.org/id/unitary-authority/bracknell-forest","Bracknell Forest Council","00MA","Service Management & Support Services","Service Management & Support Services","Departmental Office Services","Office Stationery",31/12/2013 00:00:00,"30233373",0.61,"BANNER"
"Bracknell Forest Council","http://opendatacommunities.org/id/unitary-authority/bracknell-forest","Bracknell Forest Council","00MA","Service Management & Support Services","Service Management & Support Services","Departmental Office Services","Office Stationery",31/12/2013 00:00:00,"30233373",49.92,"BANNER"
"Bracknell Forest Council","http://opendatacommunities.org/id/unitary-authority/bracknell-forest","Bracknell Forest Council","00MA","Service Management & Support Services","Service Management & Support Services","Departmental Office Services","Office Stationery",31/12/2013 00:00:00,"30233373",1.28,"BANNER"
"Bracknell Forest Council","http://opendatacommunities.org/id/unitary-authority/bracknell-forest","Bracknell Forest Council","00MA","Service Management & Support Services","Service Management & Support Services","Departmental Office Services","Office Stationery",31/12/2013 00:00:00,"30233373",0.75,"BANNER"
"Bracknell Forest Council","http://opendatacommunities.org/id/unitary-authority/bracknell-forest","Bracknell Forest Council","00MA","Libraries","Library Management & Administration","Library Administration","Office Stationery",31/12/2013 00:00:00,"30233373",8.22,"BANNER"
"Bracknell Forest Council","http://opendatacommunities.org/id/unitary-authority/bracknell-forest","Bracknell Forest Council","00MA","Libraries","Library Management & Administration","Library Administration","Office Stationery",31/12/2013 00:00:00,"30233373",5.49,"BANNER"
"Bracknell Forest Council","http://opendatacommunities.org/id/unitary-authority/bracknell-forest","Bracknell Forest Council","00MA","Libraries","Library Management & Administration","Library Administration","Office Stationery",31/12/2013 00:00:00,"30233373",4.53,"BANNER"
"Bracknell Forest Council","http://opendatacommunities.org/id/unitary-authority/bracknell-forest","Bracknell Forest Council","00MA","Libraries","Library Management & Administration","Library Administration","Office Stationery",31/12/2013 00:00:00,"30233373",4.4,"BANNER"
"Bracknell Forest Council","http://opendatacommunities.org/id/unitary-authority/bracknell-forest","Bracknell Forest Council","00MA","Libraries","Library Management & Administration","Library Administration","Office Stationery",31/12/2013 00:00:00,"30233373",4.08,"BANNER"
"Bracknell Forest Council","http://opendatacommunities.org/id/unitary-authority/bracknell-forest","Bracknell Forest Council","00MA","Libraries","Library Management & Administration","Library Administration","Office Stationery",31/12/2013 00:00:00,"30233373",0.88,"BANNER"
"Bracknell Forest Council","http://opendatacommunities.org/id/unitary-authority/bracknell-forest","Bracknell Forest Council","00MA","Services to Young People","Other Services to Young People","Adventure Education Work","Office Stationery",31/12/2013 00:00:00,"30233373",12.68,"BANNER"
"Bracknell Forest Council","http://opendatacommunities.org/id/unitary-authority/bracknell-forest","Bracknell Forest Council","00MA","Service Management & Support Services","Service Management & Support Services","Departmental Office Services","Office Stationery",31/12/2013 00:00:00,"30233373",15.8,"BANNER"
"Bracknell Forest Council","http://opendatacommunities.org/id/unitary-authority/bracknell-forest","Bracknell Forest Council","00MA","Service Management & Support Services","Service Management & Support Services","Departmental Office Services","Office Stationery",31/12/2013 00:00:00,"30233373",12.28,"BANNER"
"Bracknell Forest Council","http://opendatacommunities.org/id/unitary-authority/bracknell-forest","Bracknell Forest Council","00MA","Service Management & Support Services","Service Management & Support Services","Departmental Office Services","Office Stationery",31/12/2013 00:00:00,"30233373",7.86,"BANNER"
"Bracknell Forest Council","http://opendatacommunities.org/id/unitary-authority/bracknell-forest","Bracknell Forest Council","00MA","Service Management & Support Services","Service Management & Support Services","Departmental Office Services","Office Stationery",31/12/2013 00:00:00,"30233373",4.27,"BANNER"
"Bracknell Forest Council","http://opendatacommunities.org/id/unitary-authority/bracknell-forest","Bracknell Forest Council","00MA","Service Management & Support Services","Service Management & Support Services","Departmental Office Services","Office Stationery",31/12/2013 00:00:00,"30233373",0.75,"BANNER"
"Bracknell Forest Council","http://opendatacommunities.org/id/unitary-authority/bracknell-forest","Bracknell Forest Council","00MA","Service Management & Support Services","Service Management & Support Services","Departmental Office Services","Office Stationery",31/12/2013 00:00:00,"30233373",0.75,"BANNER"
"Bracknell Forest Council","http://opendatacommunities.org/id/unitary-authority/bracknell-forest","Bracknell Forest Council","00MA","Service Management & Support Services","Service Management & Support Services","Departmental Office Services","Office Stationery",31/12/2013 00:00:00,"30233373",0.63,"BANNER"
"Bracknell Forest Council","http://opendatacommunities.org/id/unitary-authority/bracknell-forest","Bracknell Forest Council","00MA","Service Management & Support Services","Service Management & Support Services","Departmental Office Services","Office Stationery",31/12/2013 00:00:00,"30233373",10.3,"BANNER"
"Bracknell Forest Council","http://opendatacommunities.org/id/unitary-authority/bracknell-forest","Bracknell Forest Council","00MA","Service Management & Support Services","Service Management & Support Services","Departmental Office Services","Office Stationery",31/12/2013 00:00:00,"30233373",8.74,"BANNER"
"Bracknell Forest Council","http://opendatacommunities.org/id/unitary-authority/bracknell-forest","Bracknell Forest Council","00MA","Early Years","Children's Centres","The Oaks Children's Centre","Office Stationery",31/12/2013 00:00:00,"30233373",26.38,"BANNER"
"Bracknell Forest Council","http://opendatacommunities.org/id/unitary-authority/bracknell-forest","Bracknell Forest Council","00MA","Early Years","Children's Centres","The Oaks Children's Centre","Office Stationery",31/12/2013 00:00:00,"30233373",5.11,"BANNER"
"Bracknell Forest Council","http://opendatacommunities.org/id/unitary-authority/bracknell-forest","Bracknell Forest Council","00MA","Central Support Services - COF","Information Technology","Information Technology - Management","Office Stationery",31/12/2013 00:00:00,"30233373",16.72,"BANNER"
"Bracknell Forest Council","http://opendatacommunities.org/id/unitary-authority/bracknell-forest","Bracknell Forest Council","00MA","Central Support Services - COF","Information Technology","Information Technology - Management","Office Stationery",31/12/2013 00:00:00,"30233373",13.88,"BANNER"
"Bracknell Forest Council","http://opendatacommunities.org/id/unitary-authority/bracknell-forest","Bracknell Forest Council","00MA","Central Support Services - COF","Information Technology","Information Technology - Management","Office Stationery",31/12/2013 00:00:00,"30233373",12.13,"BANNER"
"Bracknell Forest Council","http://opendatacommunities.org/id/unitary-authority/bracknell-forest","Bracknell Forest Council","00MA","Central Support Services - COF","Information Technology","Information Technology - Management","Office Stationery",31/12/2013 00:00:00,"30233373",11.32,"BANNER"
"Bracknell Forest Council","http://opendatacommunities.org/id/unitary-authority/bracknell-forest","Bracknell Forest Council","00MA","Central Support Services - COF","Information Technology","Information Technology - Management","Office Stationery",31/12/2013 00:00:00,"30233373",27.8,"BANNER"
"Bracknell Forest Council","http://opendatacommunities.org/id/unitary-authority/bracknell-forest","Bracknell Forest Council","00MA","Management and Support Services - CYPL","Unallocated Schools Budget Related Expenditure","Family Intervention Project","Office Stationery",31/12/2013 00:00:00,"30233373",1.56,"BANNER"
"Bracknell Forest Council","http://opendatacommunities.org/id/unitary-authority/bracknell-forest","Bracknell Forest Council","00MA","Management and Support Services - CYPL","Unallocated Schools Budget Related Expenditure","Family Intervention Project","Office Stationery",31/12/2013 00:00:00,"30233373",0.86,"BANNER"
"Bracknell Forest Council","http://opendatacommunities.org/id/unitary-authority/bracknell-forest","Bracknell Forest Council","00MA","Service Management & Support Services","Service Management & Support Services","Departmental Office Services","Office Stationery",31/12/2013 00:00:00,"30233373",5.98,"BANNER"
"Bracknell Forest Council","http://opendatacommunities.org/id/unitary-authority/bracknell-forest","Bracknell Forest Council","00MA","Service Management & Support Services","Service Management & Support Services","Departmental Office Services","Office Stationery",31/12/2013 00:00:00,"30233373",1.86,"BANNER"
"Bracknell Forest Council","http://opendatacommunities.org/id/unitary-authority/bracknell-forest","Bracknell Forest Council","00MA","Libraries","Library Management & Administration","Library Administration","Office Stationery",31/12/2013 00:00:00,"30233373",57.35,"BANNER"
"Bracknell Forest Council","http://opendatacommunities.org/id/unitary-authority/bracknell-forest","Bracknell Forest Council","00MA","Libraries","Library Management & Administration","Library Administration","Office Stationery",31/12/2013 00:00:00,"30233373",26.13,"BANNER"
"Bracknell Forest Council","http://opendatacommunities.org/id/unitary-authority/bracknell-forest","Bracknell Forest Council","00MA","Open Spaces","Community Parks & Open Spaces","Urban Parks  - Maintenance","Office Stationery",31/12/2013 00:00:00,"30233373",2.04,"BANNER"
